date,department/service,beneficiary,amount,summary of purpose,category,transaction number
01.02.2017,CHILDREN'S SERVICES,METROPOLITAN HOUSING TRUST,763.6,S24 CLA,RESIDENTIAL CARE,5902221739
01.02.2017,CUSTOMER EXPERIENCE HGF,SABIO LTD,323.63,SYSTEMS,TELEPHONES (LAND LINES),5902226406
01.02.2017,F & C S EXCLUDING CORPORATE BUDGETS,AUDITEL RENTAL & SERVICE LTD,"2,605.00",CONSTITUTIONAL TEAM,OP LEASE/HIRE CHARGES:PLANT/EQUIP/FURNIT,5902228604
01.02.2017,F & C S EXCLUDING CORPORATE BUDGETS,AUDITEL RENTAL & SERVICE LTD,"-2,605.00",PAYMENTS CONTROL,OFFICE EXPENSES,2102625935
01.02.2017,F & C S EXCLUDING CORPORATE BUDGETS,METROPOLITAN HOUSING TRUST,-763.6,PAYMENTS CONTROL,OFFICE EXPENSES,2102625939
01.02.2017,F & C S EXCLUDING CORPORATE BUDGETS,MOTT MACDONALD LTD,-750.1,PAYMENTS CONTROL,OFFICE EXPENSES,2102625937
01.02.2017,F & C S EXCLUDING CORPORATE BUDGETS,SABIO LTD,-323.63,PAYMENTS CONTROL,OFFICE EXPENSES,2102625938
01.02.2017,HOUSING HRA,MOTT MACDONALD LTD,750.1,CAPITAL PS (HRA),CONSTRUCTION FEES - EMPLOYERS AGENT,5902233049
02.02.2017,ADULT SOCIAL CARE,EMMA MORTIMER,532,SAFEGUARDING TEAM,EXTERNAL AGENCIES AND BODIES,5902234781
02.02.2017,ADULT SOCIAL CARE,STEPHEN DOWN,"1,089.00",SAFEGUARDING TEAM,OTHER CONTRACTORS,5902234197
02.02.2017,ADULT SOCIAL CARE,INTERSERVE HEALTHCARE,335.66,TRANSITION 14YRS TO 18YRS,SECTION 17 PAYMENTS TO AGENCIES/CARERS,2102625831
02.02.2017,ASSET MANAGEMENT,M C TECHNICIANS LTD,525,ADAPTATIONS,OTHER R&M,5902234708
02.02.2017,CENTRAL FUNCTIONS,BLAKENEY LEIGH LTD,825,AYLESBURY,PROFESSIONAL FEES,5902234717
02.02.2017,CENTRAL FUNCTIONS,KENT COUNTY COUNCIL - LASER,"10,393.46",HEATING ACCOUNT,ELECTRICITY,5902234248
02.02.2017,CENTRAL FUNCTIONS,KENT COUNTY COUNCIL - LASER,"19,943.96",HEATING ACCOUNT,ELECTRICITY,5902234248
02.02.2017,CENTRAL FUNCTIONS,NORTHGATE PUBLIC SERVICES (UK) LTD,"12,000.00",HOME OWNERSHIP,OFFICE EXPENSES,5902234681
02.02.2017,CENTRAL FUNCTIONS,GUREL INVESTMENT LTD,596.56,HOME OWNERSHIP INCOME,HOUSING RESIDENTIAL RENTS,5902234378
02.02.2017,CENTRAL FUNCTIONS,NORTHGATE PUBLIC SERVICES (UK) LTD,"22,500.00",LEASEHOLD SERVICE CHARGE SYSTEM,CONSULTANTS SERVICES,5902234684
02.02.2017,CENTRAL FUNCTIONS,SALTASH ENTERPRISES LTD,"3,096.29",OPERATIONAL TEAM,CONSULTANTS SERVICES,2102625700
02.02.2017,CHIEF EXECUTIVE,BLAKEDOWN LANDSCAPES,578,CAPITAL PS (REGEN),CONSTRUCTION FEES  - EXTERNAL,2102625703
02.02.2017,CHIEF EXECUTIVE,CATERING PROJECTS LTD,"5,000.00",CAPITAL PS (REGEN),CONSTRUCTION FEES,5902234699
02.02.2017,CHIEF EXECUTIVE,LANDOLT & BROWN,"9,515.00",CAPITAL PS (REGEN),CONSTRUCTION FEES - ARCHITECT,5902234786
02.02.2017,CHIEF EXECUTIVE,LANDOLT & BROWN,"11,495.00",CAPITAL PS (REGEN),CONSTRUCTION FEES - ARCHITECT,5902234790
02.02.2017,CHIEF EXECUTIVE'S OFFICE,ROYAL MENCAP SOCIETY,"31,241.00",CHIEF EXEC'S OFFICE,GRANTS,5902234724
02.02.2017,CHILDREN AND ADULT,GALLIFORD TRY LTD,"135,751.42",CAPITAL PS (EDUCATION),CONSTRUCTION MAIN CONTRACT -CERTIFICATED,2102625705
02.02.2017,CHILDREN AND ADULT,RUSSELL TREW LIMITED,"29,453.34",CAPITAL PS (EDUCATION),CONSTRUCTION MAIN CONTRACT -CERTIFICATED,2102625704
02.02.2017,CHILDREN AND ADULT,NUMBER 10 INTERIM LTD,"2,625.00",CAPITAL PS (STRAT SERV),ICT ACQUISITION FEES,5902233776
02.02.2017,CHILDREN'S SERVICES,SACRED HEART CATHOLIC SCHOOL,"18,848.87",ACADEMIES SECONDARY,HIGH NEEDS - TOP UP FUNDING,2102625571
02.02.2017,CHILDREN'S SERVICES,REDACTED PERSONAL DATA,401.08,ADOPTION PLACEMENTS & INTER AGENCY,PAYMENTS TO CARERS,5902234731
02.02.2017,CHILDREN'S SERVICES,ANCHOR FOSTERCARE,"3,268.64",AGENCY FOSTERING,EXTERNAL AGENCIES AND BODIES,2102625743
02.02.2017,CHILDREN'S SERVICES,ANCHOR FOSTERCARE,"3,268.64",AGENCY FOSTERING,EXTERNAL AGENCIES AND BODIES,2102625748
02.02.2017,CHILDREN'S SERVICES,ANCHOR FOSTERCARE,"3,799.67",AGENCY FOSTERING,EXTERNAL AGENCIES AND BODIES,2102625708
02.02.2017,CHILDREN'S SERVICES,ASCENT FOSTERING AGENCY LTD,"5,690.67",AGENCY FOSTERING,EXTERNAL AGENCIES AND BODIES,2102625714
02.02.2017,CHILDREN'S SERVICES,BY THE BRIDGE LTD,"4,218.52",AGENCY FOSTERING,EXTERNAL AGENCIES AND BODIES,2102625713
02.02.2017,CHILDREN'S SERVICES,BY THE BRIDGE LTD,"4,440.57",AGENCY FOSTERING,EXTERNAL AGENCIES AND BODIES,2102625722
02.02.2017,CHILDREN'S SERVICES,BY THE BRIDGE LTD,"4,580.78",AGENCY FOSTERING,EXTERNAL AGENCIES AND BODIES,2102625717
02.02.2017,CHILDREN'S SERVICES,BY THE BRIDGE LTD,"4,580.78",AGENCY FOSTERING,EXTERNAL AGENCIES AND BODIES,2102625721
02.02.2017,CHILDREN'S SERVICES,BY THE BRIDGE LTD,"4,580.78",AGENCY FOSTERING,EXTERNAL AGENCIES AND BODIES,2102625731
02.02.2017,CHILDREN'S SERVICES,BY THE BRIDGE LTD,"4,674.27",AGENCY FOSTERING,EXTERNAL AGENCIES AND BODIES,2102625767
02.02.2017,CHILDREN'S SERVICES,BY THE BRIDGE LTD,"4,805.49",AGENCY FOSTERING,EXTERNAL AGENCIES AND BODIES,2102625716
02.02.2017,CHILDREN'S SERVICES,BY THE BRIDGE LTD,"4,805.49",AGENCY FOSTERING,EXTERNAL AGENCIES AND BODIES,2102625749
02.02.2017,CHILDREN'S SERVICES,BY THE BRIDGE LTD,"4,903.54",AGENCY FOSTERING,EXTERNAL AGENCIES AND BODIES,2102625734
02.02.2017,CHILDREN'S SERVICES,BY THE BRIDGE LTD,"5,757.14",AGENCY FOSTERING,EXTERNAL AGENCIES AND BODIES,2102625738
02.02.2017,CHILDREN'S SERVICES,CHILDREN FIRST FOSTERING AGENCY LTD,"3,875.00",AGENCY FOSTERING,EXTERNAL AGENCIES AND BODIES,2102625723
02.02.2017,CHILDREN'S SERVICES,CHILDREN FIRST FOSTERING AGENCY LTD,"3,981.33",AGENCY FOSTERING,EXTERNAL AGENCIES AND BODIES,2102625719
02.02.2017,CHILDREN'S SERVICES,CHILDREN OF ALL NATIONS LTD,"4,108.43",AGENCY FOSTERING,EXTERNAL AGENCIES AND BODIES,2102625746
02.02.2017,CHILDREN'S SERVICES,CHILDREN OF ALL NATIONS LTD,"4,108.43",AGENCY FOSTERING,EXTERNAL AGENCIES AND BODIES,2102625765
02.02.2017,CHILDREN'S SERVICES,CHILDREN OF COLOUR,"3,472.00",AGENCY FOSTERING,EXTERNAL AGENCIES AND BODIES,2102625720
02.02.2017,CHILDREN'S SERVICES,CHILDREN OF COLOUR,"3,472.00",AGENCY FOSTERING,EXTERNAL AGENCIES AND BODIES,2102625750
02.02.2017,CHILDREN'S SERVICES,CHILDREN OF COLOUR,"3,558.80",AGENCY FOSTERING,EXTERNAL AGENCIES AND BODIES,2102625711
02.02.2017,CHILDREN'S SERVICES,CHILDREN OF COLOUR,"4,251.43",AGENCY FOSTERING,EXTERNAL AGENCIES AND BODIES,2102625770
02.02.2017,CHILDREN'S SERVICES,CHILDREN OF COLOUR,"4,829.08",AGENCY FOSTERING,EXTERNAL AGENCIES AND BODIES,2102625732
02.02.2017,CHILDREN'S SERVICES,COMPASS FOSTERING SOUTH LTD,"3,077.99",AGENCY FOSTERING,EXTERNAL AGENCIES AND BODIES,2102625742
02.02.2017,CHILDREN'S SERVICES,CORE ASSETS FOSTERING LTD,"-3,211.60",AGENCY FOSTERING,EXTERNAL AGENCIES AND BODIES,2102625761
02.02.2017,CHILDREN'S SERVICES,CORE ASSETS FOSTERING LTD,"2,982.00",AGENCY FOSTERING,EXTERNAL AGENCIES AND BODIES,2102625751
02.02.2017,CHILDREN'S SERVICES,CORE ASSETS FOSTERING LTD,"3,211.60",AGENCY FOSTERING,EXTERNAL AGENCIES AND BODIES,2102625730
02.02.2017,CHILDREN'S SERVICES,CORE ASSETS FOSTERING LTD,"3,211.60",AGENCY FOSTERING,EXTERNAL AGENCIES AND BODIES,2102625764
02.02.2017,CHILDREN'S SERVICES,CORE ASSETS FOSTERING LTD,"4,788.28",AGENCY FOSTERING,EXTERNAL AGENCIES AND BODIES,2102625715
02.02.2017,CHILDREN'S SERVICES,DIVERSE CARE (UK) LTD,"4,490.04",AGENCY FOSTERING,EXTERNAL AGENCIES AND BODIES,2102625729
02.02.2017,CHILDREN'S SERVICES,FITZGERALD FOSTERING & CONSULTANCY,"3,120.00",AGENCY FOSTERING,EXTERNAL AGENCIES AND BODIES,2102625760
02.02.2017,CHILDREN'S SERVICES,INTEGRATED SERVICES PROGRAMME,"5,176.38",AGENCY FOSTERING,EXTERNAL AGENCIES AND BODIES,2102625728
02.02.2017,CHILDREN'S SERVICES,INTEGRATED SERVICES PROGRAMME,"5,176.38",AGENCY FOSTERING,EXTERNAL AGENCIES AND BODIES,2102625733
02.02.2017,CHILDREN'S SERVICES,INTEGRATED SERVICES PROGRAMME,"5,336.34",AGENCY FOSTERING,EXTERNAL AGENCIES AND BODIES,2102625718
02.02.2017,CHILDREN'S SERVICES,INTEGRATED SERVICES PROGRAMME,"5,336.34",AGENCY FOSTERING,EXTERNAL AGENCIES AND BODIES,2102625741
02.02.2017,CHILDREN'S SERVICES,INTEGRATED SERVICES PROGRAMME,"5,336.34",AGENCY FOSTERING,EXTERNAL AGENCIES AND BODIES,2102625744
02.02.2017,CHILDREN'S SERVICES,INTEGRATED SERVICES PROGRAMME,"5,336.34",AGENCY FOSTERING,EXTERNAL AGENCIES AND BODIES,2102625754
02.02.2017,CHILDREN'S SERVICES,INTEGRATED SERVICES PROGRAMME,"5,336.34",AGENCY FOSTERING,EXTERNAL AGENCIES AND BODIES,2102625755
02.02.2017,CHILDREN'S SERVICES,INTEGRATED SERVICES PROGRAMME,"5,336.34",AGENCY FOSTERING,EXTERNAL AGENCIES AND BODIES,2102625759
02.02.2017,CHILDREN'S SERVICES,INTEGRATED SERVICES PROGRAMME,"5,336.34",AGENCY FOSTERING,EXTERNAL AGENCIES AND BODIES,2102625762
02.02.2017,CHILDREN'S SERVICES,KINDERCARE FOSTERING,"3,321.34",AGENCY FOSTERING,EXTERNAL AGENCIES AND BODIES,2102625710
02.02.2017,CHILDREN'S SERVICES,KINDERCARE FOSTERING,"3,520.67",AGENCY FOSTERING,EXTERNAL AGENCIES AND BODIES,2102625745
02.02.2017,CHILDREN'S SERVICES,KINDERCARE FOSTERING,"5,212.34",AGENCY FOSTERING,EXTERNAL AGENCIES AND BODIES,2102625766
02.02.2017,CHILDREN'S SERVICES,MOMENTS FOSTERING LTD,"3,250.35",AGENCY FOSTERING,EXTERNAL AGENCIES AND BODIES,2102625712
02.02.2017,CHILDREN'S SERVICES,MOMENTS FOSTERING LTD,"3,250.35",AGENCY FOSTERING,EXTERNAL AGENCIES AND BODIES,2102625763
02.02.2017,CHILDREN'S SERVICES,MOMENTS FOSTERING LTD,"5,535.67",AGENCY FOSTERING,EXTERNAL AGENCIES AND BODIES,2102625757
02.02.2017,CHILDREN'S SERVICES,MOSAIC FOSTER CARE LTD,"6,642.68",AGENCY FOSTERING,EXTERNAL AGENCIES AND BODIES,2102625768
02.02.2017,CHILDREN'S SERVICES,ORANGE GROVE FOSTERCARE LTD,"3,675.67",AGENCY FOSTERING,EXTERNAL AGENCIES AND BODIES,2102625709
02.02.2017,CHILDREN'S SERVICES,ORANGE GROVE FOSTERCARE LTD,"3,675.67",AGENCY FOSTERING,EXTERNAL AGENCIES AND BODIES,2102625736
02.02.2017,CHILDREN'S SERVICES,RYANCARE FOSTERING,"3,541.75",AGENCY FOSTERING,EXTERNAL AGENCIES AND BODIES,2102625739
02.02.2017,CHILDREN'S SERVICES,SANKOFA CARE LTD,"3,593.21",AGENCY FOSTERING,EXTERNAL AGENCIES AND BODIES,2102625735
02.02.2017,CHILDREN'S SERVICES,SANKOFA CARE LTD,"3,929.87",AGENCY FOSTERING,EXTERNAL AGENCIES AND BODIES,2102625726
02.02.2017,CHILDREN'S SERVICES,SUPPORTED FOSTERING SERVICES,"3,228.43",AGENCY FOSTERING,EXTERNAL AGENCIES AND BODIES,2102625756
02.02.2017,CHILDREN'S SERVICES,SUPPORTED FOSTERING SERVICES,"5,629.16",AGENCY FOSTERING,EXTERNAL AGENCIES AND BODIES,2102625740
02.02.2017,CHILDREN'S SERVICES,SWIIS FOSTER CARE LTD,697.97,AGENCY FOSTERING,EXTERNAL AGENCIES AND BODIES,2102625752
02.02.2017,CHILDREN'S SERVICES,SWIIS FOSTER CARE LTD,697.97,AGENCY FOSTERING,EXTERNAL AGENCIES AND BODIES,2102625753
02.02.2017,CHILDREN'S SERVICES,THE XCEL 2000 PARTNERSHIP LTD,"3,356.86",AGENCY FOSTERING,EXTERNAL AGENCIES AND BODIES,2102625737
02.02.2017,CHILDREN'S SERVICES,TIME FOR CHILDREN LTD,"3,069.00",AGENCY FOSTERING,EXTERNAL AGENCIES AND BODIES,2102625724
02.02.2017,CHILDREN'S SERVICES,TIME FOR CHILDREN LTD,"3,100.00",AGENCY FOSTERING,EXTERNAL AGENCIES AND BODIES,2102625725
02.02.2017,CHILDREN'S SERVICES,WELCOME FOSTER CARE LTD,"3,764.33",AGENCY FOSTERING,EXTERNAL AGENCIES AND BODIES,2102625758
02.02.2017,CHILDREN'S SERVICES,WELCOME FOSTER CARE LTD,"3,764.33",AGENCY FOSTERING,EXTERNAL AGENCIES AND BODIES,2102625769
02.02.2017,CHILDREN'S SERVICES,YOUNG PEOPLE AT HEART LTD,"3,100.00",AGENCY FOSTERING,EXTERNAL AGENCIES AND BODIES,2102625727
02.02.2017,CHILDREN'S SERVICES,YOUNG PEOPLE AT HEART LTD,"3,100.00",AGENCY FOSTERING,EXTERNAL AGENCIES AND BODIES,2102625747
02.02.2017,CHILDREN'S SERVICES,WRIXONCARE SEVICES,"1,518.75",CARE GRPS  1 TO 3,OTHER PAYMENTS FOR CLIENTS,5902234835
02.02.2017,CHILDREN'S SERVICES,CONTACT PROFESSIONALS,595,CARE PRACTICE GROUP SET C,OTHER PAYMENTS FOR CLIENTS,5902234862
02.02.2017,CHILDREN'S SERVICES,KATHERINE BARNES,700,CENTRAL COSTS - SEN,LEGAL FEES & COURT COSTS,5902234754
02.02.2017,CHILDREN'S SERVICES,AIDHOUR LIMITED,302.4,CLA TEAM SAFEGUARDING,PROFESSIONAL FEES,5902234831
02.02.2017,CHILDREN'S SERVICES,CHARLOTTE NOYES LTD,577.5,CLA TEAM SAFEGUARDING,PROFESSIONAL FEES,5902234826
02.02.2017,CHILDREN'S SERVICES,CHARLOTTE NOYES LTD,"1,168.35",CLA TEAM SAFEGUARDING,PROFESSIONAL FEES,5902234828
02.02.2017,CHILDREN'S SERVICES,CHARLOTTE NOYES LTD,"1,172.70",CLA TEAM SAFEGUARDING,PROFESSIONAL FEES,5902234827
02.02.2017,CHILDREN'S SERVICES,CHARLOTTE NOYES LTD,"1,634.00",CLA TEAM SAFEGUARDING,PROFESSIONAL FEES,5902234829
02.02.2017,CHILDREN'S SERVICES,HOPLEY MICHAELS & PARTNERS,"1,984.48",CLA TEAM SAFEGUARDING,PROFESSIONAL FEES,5902234768
02.02.2017,CHILDREN'S SERVICES,SIRON LTD,"3,298.00",FAMILY ASSESSMENTS,RESIDENTIAL CARE,5902234379
02.02.2017,CHILDREN'S SERVICES,SACRED HEART CATHOLIC SCHOOL,"18,848.87",FE & SIXTH FORM COLLEGES,HIGH NEEDS - TOP UP FUNDING,2102625572
02.02.2017,CHILDREN'S SERVICES,PULSE HEALTHCARE LTD,299,HOME 2 SCHOOL TRANSPORT,AGENCY STAFF,5902234441
02.02.2017,CHILDREN'S SERVICES,FLEET TUTORS,"9,067.50",LAC EDUCATION,EXTERNAL AGENCIES AND BODIES,5902234644
02.02.2017,CHILDREN'S SERVICES,REDACTED PERSONAL DATA,-408.2,LEGAL,LEGAL FEES & COURT COSTS,2102626167
02.02.2017,CHILDREN'S SERVICES,REDACTED PERSONAL DATA,408.2,LEGAL,LEGAL FEES & COURT COSTS,2102612465
02.02.2017,CHILDREN'S SERVICES,THE CAMDEN SOCIETY (CATERING),650,NEWLY QUALIFIED TEACHERS,REFRESHMENTS FOR MEETINGS,5902234691
02.02.2017,CHILDREN'S SERVICES,THE CAMDEN SOCIETY (SOCIAL CARE),320,NEWLY QUALIFIED TEACHERS,REFRESHMENTS FOR MEETINGS,5902234676
02.02.2017,CHILDREN'S SERVICES,MARIAS KITCHEN,"1,196.00",PARENTING TEAM,REFRESHMENTS FOR MEETINGS,5902234817
02.02.2017,CHILDREN'S SERVICES,OFFICE DEPOT UK LTD,615.01,PARENTING TEAM,STATIONERY,5902234810
02.02.2017,CHILDREN'S SERVICES,DARLINGTONS SOLICITORS LLP,950,S24 CLA,OTHER PAYMENTS FOR CLIENTS,5902234470
02.02.2017,CHILDREN'S SERVICES,DARLINGTONS SOLICITORS LLP,"1,875.00",S24 CLA,OTHER PAYMENTS FOR CLIENTS,5902234470
02.02.2017,CHILDREN'S SERVICES,HOLMDENE HOUSING LTD,"1,480.00",S24 CLA,EXTERNAL AGENCIES AND BODIES,2102625778
02.02.2017,CHILDREN'S SERVICES,HOLMDENE HOUSING LTD,"1,850.00",S24 CLA,EXTERNAL AGENCIES AND BODIES,2102625788
02.02.2017,CHILDREN'S SERVICES,HOLMDENE HOUSING LTD,"1,850.00",S24 CLA,EXTERNAL AGENCIES AND BODIES,2102625797
02.02.2017,CHILDREN'S SERVICES,HOLMDENE HOUSING LTD,"1,850.00",S24 CLA,EXTERNAL AGENCIES AND BODIES,2102625804
02.02.2017,CHILDREN'S SERVICES,HOLMDENE HOUSING LTD,"2,350.00",S24 CLA,RESIDENTIAL CARE,2102625787
02.02.2017,CHILDREN'S SERVICES,NETPEX LTD CORPORATE SERVICES,289.5,S24 CLA,OTHER PAYMENTS FOR CLIENTS,2102625777
02.02.2017,CHILDREN'S SERVICES,NETPEX LTD CORPORATE SERVICES,"3,520.98",S24 CLA,EXTERNAL AGENCIES AND BODIES,2102625794
02.02.2017,CHILDREN'S SERVICES,PROPERTY ACE UK LTD,"2,660.71",S24 CLA,RESIDENTIAL CARE,2102625786
02.02.2017,CHILDREN'S SERVICES,RELA SUPPORT SERVICES LTD,"4,000.00",S24 CLA,EXTERNAL AGENCIES AND BODIES,2102625776
02.02.2017,CHILDREN'S SERVICES,STEP AHEAD SERVICES LTD,"2,081.34",S24 CLA,EXTERNAL AGENCIES AND BODIES,2102625781
02.02.2017,CHILDREN'S SERVICES,TLK PROPERTY & INVESTMENT LTD,324,S24 CLA,EXTERNAL AGENCIES AND BODIES,5902234852
02.02.2017,CHILDREN'S SERVICES,TLK PROPERTY & INVESTMENT LTD,468,S24 CLA,EXTERNAL AGENCIES AND BODIES,5902234852
02.02.2017,CHILDREN'S SERVICES,TLK PROPERTY & INVESTMENT LTD,540,S24 CLA,EXTERNAL AGENCIES AND BODIES,5902234850
02.02.2017,CHILDREN'S SERVICES,TLK PROPERTY & INVESTMENT LTD,756,S24 CLA,EXTERNAL AGENCIES AND BODIES,5902234851
02.02.2017,CHILDREN'S SERVICES,LIBERTY CARE HOMES LTD,"10,181.60",SEMI INDEPENDENT,RESIDENTIAL CARE,2102625809
02.02.2017,CHILDREN'S SERVICES,NETPEX LTD CORPORATE SERVICES,300,SEMI INDEPENDENT,OTHER PAYMENTS FOR CLIENTS,2102625808
02.02.2017,CHILDREN'S SERVICES,NETPEX LTD CORPORATE SERVICES,"4,071.60",SEMI INDEPENDENT,EXTERNAL AGENCIES AND BODIES,2102625775
02.02.2017,CHILDREN'S SERVICES,NETPEX LTD CORPORATE SERVICES,"4,207.32",SEMI INDEPENDENT,EXTERNAL AGENCIES AND BODIES,2102625772
02.02.2017,CHILDREN'S SERVICES,NETPEX LTD CORPORATE SERVICES,"14,946.65",SEMI INDEPENDENT,EXTERNAL AGENCIES AND BODIES,2102625774
02.02.2017,CHILDREN'S SERVICES,RELA SUPPORT SERVICES LTD,"4,800.00",SEMI INDEPENDENT,EXTERNAL AGENCIES AND BODIES,2102625773
02.02.2017,CHILDREN'S SERVICES,THE MEDUSA PROJECT,"3,321.34",SEMI INDEPENDENT,EXTERNAL AGENCIES AND BODIES,2102625807
02.02.2017,CHILDREN'S SERVICES,PULSE HEALTHCARE LTD,897,SEN TRANSPORT,STATEMENTED FEES,5902233993
02.02.2017,CHILDREN'S SERVICES,HCP STAFFING SERVICES LTD,294.3,SPECIALIST CARE,SECTION 17 PAYMENTS TO AGENCIES/CARERS,2102625814
02.02.2017,CHILDREN'S SERVICES,HCP STAFFING SERVICES LTD,304.66,SPECIALIST CARE,SECTION 17 PAYMENTS TO AGENCIES/CARERS,2102625826
02.02.2017,CHILDREN'S SERVICES,HCP STAFFING SERVICES LTD,308.37,SPECIALIST CARE,SECTION 17 PAYMENTS TO AGENCIES/CARERS,2102625813
02.02.2017,CHILDREN'S SERVICES,HCP STAFFING SERVICES LTD,316.93,SPECIALIST CARE,SECTION 17 PAYMENTS TO AGENCIES/CARERS,2102625816
02.02.2017,CHILDREN'S SERVICES,HCP STAFFING SERVICES LTD,351.52,SPECIALIST CARE,SECTION 17 PAYMENTS TO AGENCIES/CARERS,2102625825
02.02.2017,CHILDREN'S SERVICES,HCP STAFFING SERVICES LTD,383.9,SPECIALIST CARE,SECTION 17 PAYMENTS TO AGENCIES/CARERS,2102625822
02.02.2017,CHILDREN'S SERVICES,HCP STAFFING SERVICES LTD,557.88,SPECIALIST CARE,SECTION 17 PAYMENTS TO AGENCIES/CARERS,2102625812
02.02.2017,CHILDREN'S SERVICES,INTERSERVE HEALTHCARE,724.84,SPECIALIST CARE,SECTION 17 PAYMENTS TO AGENCIES/CARERS,2102625819
02.02.2017,CHILDREN'S SERVICES,INTERSERVE HEALTHCARE,"1,075.40",SPECIALIST CARE,SECTION 17 PAYMENTS TO AGENCIES/CARERS,2102625811
02.02.2017,CHILDREN'S SERVICES,MIDDLESBOROUGH BOROUGH CARS LTD,293,SPECIALIST CARE,HIRED VEHICLES,5902234804
02.02.2017,CHILDREN'S SERVICES,AFFINITY FOSTERING SERVICES LTD,"1,749.33",STAYING PUT,EXTERNAL AGENCIES AND BODIES,2102625801
02.02.2017,CHILDREN'S SERVICES,AFFINITY FOSTERING SERVICES LTD,"1,749.33",STAYING PUT,EXTERNAL AGENCIES AND BODIES,2102625802
02.02.2017,CHILDREN'S SERVICES,ANCHOR FOSTERCARE,"4,306.52",STAYING PUT,EXTERNAL AGENCIES AND BODIES,2102625796
02.02.2017,CHILDREN'S SERVICES,BY THE BRIDGE LTD,"1,550.00",STAYING PUT,EXTERNAL AGENCIES AND BODIES,2102625783
02.02.2017,CHILDREN'S SERVICES,BY THE BRIDGE LTD,"3,321.43",STAYING PUT,EXTERNAL AGENCIES AND BODIES,2102625785
02.02.2017,CHILDREN'S SERVICES,COMPASS FOSTERING,"1,848.84",STAYING PUT,EXTERNAL AGENCIES AND BODIES,2102625803
02.02.2017,CHILDREN'S SERVICES,CORE ASSETS FOSTERING LTD,-802.9,STAYING PUT,EXTERNAL AGENCIES AND BODIES,2102625780
02.02.2017,CHILDREN'S SERVICES,CORE ASSETS FOSTERING LTD,362.04,STAYING PUT,EXTERNAL AGENCIES AND BODIES,2102625791
02.02.2017,CHILDREN'S SERVICES,CORE ASSETS FOSTERING LTD,"1,448.16",STAYING PUT,EXTERNAL AGENCIES AND BODIES,2102625798
02.02.2017,CHILDREN'S SERVICES,CORE ASSETS FOSTERING LTD,"1,448.16",STAYING PUT,EXTERNAL AGENCIES AND BODIES,2102625805
02.02.2017,CHILDREN'S SERVICES,HOLMDENE HOUSING LTD,975,UASC SECTION 24,EXTERNAL AGENCIES AND BODIES,2102625784
02.02.2017,CHILDREN'S SERVICES,HOLMDENE HOUSING LTD,"1,850.00",UASC SECTION 24,RESIDENTIAL CARE,2102625779
02.02.2017,CHILDREN'S SERVICES,HOLMDENE HOUSING LTD,"1,850.00",UASC SECTION 24,RESIDENTIAL CARE,2102625799
02.02.2017,CHILDREN'S SERVICES,HOLMDENE HOUSING LTD,"1,850.00",UASC SECTION 24,RESIDENTIAL CARE,2102625800
02.02.2017,CHILDREN'S SERVICES,HOLMDENE HOUSING LTD,"1,850.00",UASC SECTION 24,EXTERNAL AGENCIES AND BODIES,2102625806
02.02.2017,CHILDREN'S SERVICES,HOLMDENE HOUSING LTD,"2,350.00",UASC SECTION 24,RESIDENTIAL CARE,2102625792
02.02.2017,CHILDREN'S SERVICES,PROPERTY ACE UK LTD,"1,992.85",UASC SECTION 24,RESIDENTIAL CARE,2102625793
02.02.2017,COMMUNITIES,FALCON POINT MANAGEMENT GROUP LTD,548.24,FALCON POINT TMO,M&M ALLOWANCE CO-OPS,5902234714
02.02.2017,COMMUNITIES,CROMWOOD HOUSING,"57,324.92",NO RECOURSE TO PUBLIC FUNDS,SECTION 17 PAYMENTS TO AGENCIES/CARERS,5902234690
02.02.2017,COMMUNITIES,VENTURE HOUSING (LONDON) LTD,"1,008.00",NO RECOURSE TO PUBLIC FUNDS,SECTION 17 PAYMENTS TO AGENCIES/CARERS,5902234654
02.02.2017,COMMUNITIES,ACCESSIBLE TRAINING LTD,350,TENANTS FUND,TRAINING,5902234777
02.02.2017,COMMUNITIES,ACCESSIBLE TRAINING LTD,462,TENANTS FUND,TRAINING,5902234788
02.02.2017,COMMUNITIES,ACCESSIBLE TRAINING LTD,"1,212.50",TENANTS FUND,TRAINING,5902234783
02.02.2017,COMMUNITIES,ACCESSIBLE TRAINING LTD,"1,854.00",TENANTS FUND,TRAINING,5902234779
02.02.2017,COMMUNITIES,BRANDON 1 TRA,"3,092.50",TENANTS FUND,GRANTS,5902234763
02.02.2017,CUSTOMER EXPERIENCE,PARIS SMITH AND RANDALL SOLICITORS,305.87,SALES & ACQUISITIONS,LEGAL FEES & COURT COSTS,5902234791
02.02.2017,CUSTOMER EXPERIENCE,PARIS SMITH AND RANDALL SOLICITORS,323.9,SALES & ACQUISITIONS,LEGAL FEES & COURT COSTS,5902234794
02.02.2017,CUSTOMER EXPERIENCE,PARIS SMITH AND RANDALL SOLICITORS,323.9,SALES & ACQUISITIONS,LEGAL FEES & COURT COSTS,5902234794
02.02.2017,CUSTOMER EXPERIENCE,PARIS SMITH AND RANDALL SOLICITORS,328.11,SALES & ACQUISITIONS,LEGAL FEES & COURT COSTS,5902234794
02.02.2017,CUSTOMER EXPERIENCE,PARIS SMITH AND RANDALL SOLICITORS,328.11,SALES & ACQUISITIONS,LEGAL FEES & COURT COSTS,5902234794
02.02.2017,CUSTOMER EXPERIENCE,PARIS SMITH AND RANDALL SOLICITORS,328.11,SALES & ACQUISITIONS,LEGAL FEES & COURT COSTS,5902234794
02.02.2017,CUSTOMER EXPERIENCE,PARIS SMITH AND RANDALL SOLICITORS,439.33,SALES & ACQUISITIONS,LEGAL FEES & COURT COSTS,5902234796
02.02.2017,CUSTOMER EXPERIENCE,PARIS SMITH AND RANDALL SOLICITORS,"1,557.12",SALES & ACQUISITIONS,LEGAL FEES & COURT COSTS,5902234798
02.02.2017,CUSTOMER EXPERIENCE HGF,ICASEWORK LTD,"3,125.00",COMPLAINTS,CONSULTANTS SERVICES,5902234703
02.02.2017,CUSTOMER EXPERIENCE HGF,RENT CONNECT HOUSING LTD,"13,733.30",NIGHTLY TA (NSC),EXTERNAL AGENCIES AND BODIES,5902234710
02.02.2017,ELECTORAL SVCES,ELECTORAL REFORM  SERVICES,"2,831.13",ELECTORAL REGISTRATION,PRINTING,5902234505
02.02.2017,ELECTORAL SVCES,FINANCIAL DATA MANAGEMENT PLC,"1,093.00",ELECTORAL REGISTRATION,PRINTING,5902234660
02.02.2017,ELECTORAL SVCES,FINANCIAL DATA MANAGEMENT PLC,"1,218.83",ELECTORAL REGISTRATION,PRINTING,5902234650
02.02.2017,ENVIRONMENT AND LEISURE,R G WEBBER LTD,"9,600.00",CAPITAL PS (LEISURE),CONSTRUCTION SITE COSTS,2102625701
02.02.2017,ENVIRONMENT DIRECTORATE,LEX AUTOLEASE,704.48,CAR LEASING CTRL A/C,VEHICLE LICENCES,5902234675
02.02.2017,ENVIRONMENT DIRECTORATE,LEX AUTOLEASE,"1,185.90",CAR LEASING CTRL A/C,VEHICLE LICENCES,5902234679
02.02.2017,ENVIRONMENT DIRECTORATE,LEX AUTOLEASE,"1,309.16",CAR LEASING CTRL A/C,VEHICLE LICENCES,5902234688
02.02.2017,ENVIRONMENT DIRECTORATE,NEWLYN PLC,278,COMMERCIAL VEH CTRL A/C,PARKING CHARGES,5902234744
02.02.2017,ENVIRONMENT DIRECTORATE,PACE ACCIDENT REPAIRS CENTRE LTD,360,COMMERCIAL VEH CTRL A/C,HIRED VEHICLES,5902234664
02.02.2017,ENVIRONMENT DIRECTORATE,PACE ACCIDENT REPAIRS CENTRE LTD,360,COMMERCIAL VEH CTRL A/C,HIRED VEHICLES,5902234666
02.02.2017,ENVIRONMENT DIRECTORATE,PACE ACCIDENT REPAIRS CENTRE LTD,360,COMMERCIAL VEH CTRL A/C,HIRED VEHICLES,5902234668
02.02.2017,ENVIRONMENT DIRECTORATE,PACE ACCIDENT REPAIRS CENTRE LTD,360,COMMERCIAL VEH CTRL A/C,HIRED VEHICLES,5902234669
02.02.2017,ENVIRONMENT DIRECTORATE,RYGOR COMMERCIALS LIMITED,883.52,COMMERCIAL VEH CTRL A/C,HIRED VEHICLES,5902234844
02.02.2017,ENVIRONMENT DIRECTORATE,TRANSPORT FOR LONDON,"4,480.50",COMMERCIAL VEH CTRL A/C,CONGESTION CHARGE,5902234677
02.02.2017,ENVIRONMENT DIRECTORATE,FREIGHT TRANSPORT ASSOCIATION,"1,227.00",FLEET SERVICES MANAGEMENT,BOOKS & PUBLICATIONS,5902234853
02.02.2017,ENVIRONMENT DIRECTORATE,CITY OF LONDON,"1,426.51",MANAGEMENT TEAM,ASBESTOS CONTRACT,5902234767
02.02.2017,ENVIRONMENT DIRECTORATE,CITY OF LONDON,"2,150.59",MANAGEMENT TEAM,ASBESTOS CONTRACT,5902234769
02.02.2017,ENVIRONMENT DIRECTORATE,SMI GROUP,265.75,MANAGEMENT TEAM,MATERIALS,5902234631
02.02.2017,ENVIRONMENT DIRECTORATE,RED R DESIGN,275,MAYOR'S AIR QUALITY FUND,MARKETING & PUBLICITY SERVICES,5902234640
02.02.2017,ENVIRONMENT DIRECTORATE,RED R DESIGN,"1,690.00",MAYOR'S AIR QUALITY FUND,MARKETING & PUBLICITY SERVICES,5902234642
02.02.2017,ENVIRONMENT DIRECTORATE,COMPLETE TREE CARE LTD,"1,773.79",NON HOUSING GROUNDS,AGENCY STAFF,5902234655
02.02.2017,ENVIRONMENT DIRECTORATE,BLACKBURNS METALS LTD,378.1,PARKS TECH UNIT (PREMISES),BUILDING R&M,5902234738
02.02.2017,ENVIRONMENT DIRECTORATE,MOBILEWORXS LTD,308.76,PEST CONTROL,OP LEASE/HIRE CHARGES:PLANT/EQUIP/FURNIT,5902234416
02.02.2017,ENVIRONMENT DIRECTORATE,MOBILEWORXS LTD,527.64,PEST CONTROL,OP LEASE/HIRE CHARGES:PLANT/EQUIP/FURNIT,5902234422
02.02.2017,ENVIRONMENT DIRECTORATE,MOBILEWORXS LTD,527.64,PEST CONTROL,OP LEASE/HIRE CHARGES:PLANT/EQUIP/FURNIT,5902234425
02.02.2017,ENVIRONMENT DIRECTORATE,THE RIOT ACT LTD,700,"ROAD SAFETY EDUCATION,TRAINING&PUBLICITY",PROFESSIONAL FEES,5902234713
02.02.2017,ENVIRONMENT DIRECTORATE,THE RIOT ACT LTD,"1,100.00","ROAD SAFETY EDUCATION,TRAINING&PUBLICITY",PROFESSIONAL FEES,5902234713
02.02.2017,ENVIRONMENT DIRECTORATE,THE RIOT ACT LTD,"4,500.00","ROAD SAFETY EDUCATION,TRAINING&PUBLICITY",PROFESSIONAL FEES,5902234713
02.02.2017,F & C S EXCLUDING CORPORATE BUDGETS,KAPLAN FINANCIAL LTD,"1,448.33",PROFESSIONAL QUALIFICATIONS,TRAINING,5902234775
02.02.2017,HOUSING,CALFORD SEADEN LLP,"3,201.66",CAPITAL PS (HRA),CONSTRUCTION FEES  - EXTERNAL,5902234726
02.02.2017,HOUSING,A T & T (GB LTD ),"1,128.00",STORES,CREDITORS -GR/IR CLEARING ACCOUNT,5902234740
02.02.2017,HOUSING,EDWARDES BROS (DULWICH) LTD,"2,284.75",STORES,CREDITORS -GR/IR CLEARING ACCOUNT,5902234741
02.02.2017,HOUSING,KEMICO LIMITED,"2,246.40",STORES,CREDITORS -GR/IR CLEARING ACCOUNT,5902234742
02.02.2017,HOUSING GENERAL FUND,ACCESSIBLE SOLUTIONS,"6,963.67",CAPITAL PS (HOUSING GF),CAPITAL GRANTS,5902234846
02.02.2017,HOUSING GENERAL FUND,L H BRIDGE LTD,"5,690.00",CAPITAL PS (HOUSING GF),CAPITAL GRANTS,5902234674
02.02.2017,HOUSING HRA,A & E ELKINS LTD,"27,562.80",CAPITAL PS (HRA),CONSTRUCTION MAIN CONTRACT -CERTIFICATED,2102621746
02.02.2017,HOUSING HRA,A & E ELKINS LTD,"125,779.00",CAPITAL PS (HRA),CONSTRUCTION MAIN CONTRACT -CERTIFICATED,2102625699
02.02.2017,HOUSING HRA,A & E ELKINS LTD,"147,693.16",CAPITAL PS (HRA),CONSTRUCTION MAIN CONTRACT -CERTIFICATED,2102625702
02.02.2017,HOUSING HRA,CALFORD SEADEN LLP,"4,672.46",CAPITAL PS (HRA),CONSTRUCTION FEES  - EXTERNAL,5902234727
02.02.2017,HOUSING HRA,MOTT MACDONALD LTD,730,CAPITAL PS (HRA),LAND & BUILDINGS ACQUISITION FEES,5902234685
02.02.2017,HOUSING HRA,MOTT MACDONALD LTD,"2,896.00",CAPITAL PS (HRA),CONSTRUCTION FEES - EMPLOYERS AGENT,5902234683
02.02.2017,HOUSING HRA,VPS (UK) LTD,549.52,CAPITAL PS (HRA),CONSTRUCTION FEES  - EXTERNAL,5902234651
02.02.2017,HOUSING HRA,VPS (UK) LTD,686.9,CAPITAL PS (HRA),CONSTRUCTION FEES  - EXTERNAL,5902234647
02.02.2017,LEISURE DIRECTORATE,BRITISH GAS BUSINESS,504.05,CEMETERIES,GAS,5902234678
02.02.2017,LEISURE DIRECTORATE,AGENTIS WORKWEAR LTD,322.67,CREMATORIUM,"CLOTHING, UNIFORMS & LAUNDRY",5902234697
02.02.2017,LEISURE DIRECTORATE,FACULTATIEVE TECHNOLOGIES LTD,"9,771.25",CREMATORIUM,OTHER R&M,5902234704
02.02.2017,LEISURE DIRECTORATE,R GRAY & SON,658.65,CREMATORIUM,OTHER R&M,5902234789
02.02.2017,LEISURE DIRECTORATE,R GRAY & SON,885.7,CREMATORIUM,OTHER R&M,5902234702
02.02.2017,LEISURE DIRECTORATE,EDF ENERGY PLC,-333.22,NUNHEAD CEMETERY,ELECTRICITY,5902234682
02.02.2017,LEISURE DIRECTORATE,EDF ENERGY PLC,473.22,NUNHEAD CEMETERY,ELECTRICITY,5902234792
02.02.2017,LEISURE DIRECTORATE,OFFICE DEPOT UK LTD,358.47,SOUTHWARK AREA TEAM,OFFICE EXPENSES,5902234765
02.02.2017,LEISURE DIRECTORATE,CHUBB FIRE & SECURITY LTD,285.2,SPA RD ADVENTURE PLAY,BUILDING R&M,5902234800
02.02.2017,MODERNISATION,FLEURETS CHARTERED SURVEYORS,"1,250.00",COMMERCIAL PROPERTIES,PROFESSIONAL FEES,5902234721
02.02.2017,MODERNISATION,SMITH PRICE LLP,375,COMMERCIAL PROPERTIES,PROFESSIONAL FEES,5902234720
02.02.2017,MODERNISATION HGF,ROYAL MAIL GROUP LTD,"2,163.13",160 TOOLEY ST.,POSTAGES,5902234784
02.02.2017,MODERNISATION HGF,JONATHAN BUCKERIDGE,600,AYSE CHILDREN'S,TRAINING,5902234757
02.02.2017,MODERNISATION HGF,AIRBOURNE ENVIRONMENTAL CONSULTANTS,"1,800.00",CFM OPERATIONAL BUDGET,TRAINING,5902234715
02.02.2017,MODERNISATION HGF,AIRBOURNE ENVIRONMENTAL CONSULTANTS,"3,225.00",CFM OPERATIONAL BUDGET,TRAINING,5902234715
02.02.2017,MODERNISATION HGF,COMENSURA LTD,"3,709.42",MONTHLY ADMIN FEE,AGENCY STAFF,5902234743
02.02.2017,MODERNISATION HGF,COMENSURA LTD,"535,178.65",WEEKLY PAYMENTS,AGENCY STAFF,5902234743
02.02.2017,PLANNING AND TRANSPORT,CANTIUM RESOURCING LTD,"4,800.00",BUILDING CONTROL,RECRUITMENT ADVERTISING,5902234773
02.02.2017,PLANNING AND TRANSPORT,STUART RUSSELL,"1,250.00",PECKHAM TOWNSCAPE HERITAGE INITIATIVE,MISCELLANEOUS EXPENSES,5902234723
02.02.2017,PUBLIC HEALTH,CENTRAL & NORTH WEST LONDON,"-14,107.44",SEXUAL HEALTH - STI,EXTERNAL AGENCIES AND BODIES,5902212040
02.02.2017,PUBLIC HEALTH,CENTRAL & NORTH WEST LONDON,"23,658.62",SEXUAL HEALTH - STI,EXTERNAL AGENCIES AND BODIES,5902234657
02.02.2017,PUBLIC HEALTH,CENTRAL & NORTH WEST LONDON,"24,097.89",SEXUAL HEALTH - STI,EXTERNAL AGENCIES AND BODIES,5902234662
02.02.2017,PUBLIC HEALTH,CENTRAL & NORTH WEST LONDON,"25,116.79",SEXUAL HEALTH - STI,EXTERNAL AGENCIES AND BODIES,5902234659
02.02.2017,REGENERATION,CHUBB FIRE LIMITED,301.95,KENNINGTON WORKSHOPS,BUILDING R&M,5902234656
02.02.2017,REGENERATION,LOVELOCK & TAYLOUR,307.68,LBS SOJOURNER TRUTH COMMUNITY CENTRE,BUILDING R&M,5902234780
02.02.2017,RESIDENT SERVICES,ANTHONY GOLD SOLICITORS,"1,500.00",OPERATIONS/OFFICES ACCOMMODATION,LEGAL FEES & COURT COSTS,2102624089
02.02.2017,RESIDENT SERVICES,ANTHONY GOLD SOLICITORS,"14,000.00",OPERATIONS/OFFICES ACCOMMODATION,LEGAL FEES & COURT COSTS,2102624090
02.02.2017,SOUTHWARK SCHOOL FOR FUTURE,FAITHFULL & GOULD,"25,736.83",CAPITAL PS (REGEN),CONSTRUCTION FEES,5902234712
02.02.2017,SOUTHWARK SCHOOL FOR FUTURE,FAITHFULL & GOULD,"51,474.00",CAPITAL PS (REGEN),CONSTRUCTION FEES,5902234711
03.02.2017,ADULT SOCIAL CARE,REDACTED PERSONAL DATA,400,APPOINTEESHIPS,OTHER PAYMENTS FOR CLIENTS,5902234954
03.02.2017,ADULT SOCIAL CARE,REDACTED PERSONAL DATA,260,CARERS SERVICES,PAYMENTS TO CARERS,2102625952
03.02.2017,ADULT SOCIAL CARE,NESTOR PRIMECARE SERVICES LTD,"98,673.12",EXTRA CARE CONTRACT.,HOMECARE - SPOT,5902234914
03.02.2017,ADULT SOCIAL CARE,NESTOR PRIMECARE SERVICES LTD,"98,673.12",EXTRA CARE CONTRACT.,HOMECARE - SPOT,5902234937
03.02.2017,ADULT SOCIAL CARE,KEYRING-LIVING SUPPORT NETWORKS LTD,254.08,LD LTS 18-64,SUPPORTED LIVING,2102626063
03.02.2017,ADULT SOCIAL CARE,REDACTED PERSONAL DATA,"2,700.00",LD LTS 18-64,PAYMENTS TO CLIENTS (DIRECT PAYMENTS),2102625951
03.02.2017,ADULT SOCIAL CARE,METRO HOMECARE LTD,431.68,MEM LTS 65+,HOMECARE - SPOT,2102625990
03.02.2017,ADULT SOCIAL CARE,METRO HOMECARE LTD,519.37,MEM LTS 65+,HOMECARE - SPOT,2102626033
03.02.2017,ADULT SOCIAL CARE,METRO HOMECARE LTD,741.95,MH LTS 18-64,HOMECARE - SPOT,2102626052
03.02.2017,ADULT SOCIAL CARE,METRO HOMECARE LTD,263.06,MH LTS 65+,HOMECARE - SPOT,2102626032
03.02.2017,ADULT SOCIAL CARE,METRO HOMECARE LTD,330.51,MH LTS 65+,HOMECARE - C&V,2102626030
03.02.2017,ADULT SOCIAL CARE,METRO HOMECARE LTD,438.43,MH LTS 65+,HOMECARE - SPOT,2102625992
03.02.2017,ADULT SOCIAL CARE,METRO HOMECARE LTD,256.31,PHY LTS 18-64,HOMECARE - SPOT,2102626027
03.02.2017,ADULT SOCIAL CARE,METRO HOMECARE LTD,310.27,PHY LTS 18-64,HOMECARE - SPOT,2102626036
03.02.2017,ADULT SOCIAL CARE,METRO HOMECARE LTD,330.51,PHY LTS 18-64,HOMECARE - C&V,2102626011
03.02.2017,ADULT SOCIAL CARE,METRO HOMECARE LTD,350.74,PHY LTS 18-64,HOMECARE - SPOT,2102625989
03.02.2017,ADULT SOCIAL CARE,METRO HOMECARE LTD,350.74,PHY LTS 18-64,HOMECARE - SPOT,2102626047
03.02.2017,ADULT SOCIAL CARE,METRO HOMECARE LTD,418.19,PHY LTS 18-64,HOMECARE - SPOT,2102626041
03.02.2017,ADULT SOCIAL CARE,METRO HOMECARE LTD,472.15,PHY LTS 18-64,HOMECARE - SPOT,2102626012
03.02.2017,ADULT SOCIAL CARE,METRO HOMECARE LTD,863.36,PHY LTS 18-64,HOMECARE - SPOT,2102626008
03.02.2017,ADULT SOCIAL CARE,METRO HOMECARE LTD,984.77,PHY LTS 18-64,HOMECARE - SPOT,2102626053
03.02.2017,ADULT SOCIAL CARE,METRO HOMECARE LTD,"1,005.01",PHY LTS 18-64,HOMECARE - SPOT,2102626004
03.02.2017,ADULT SOCIAL CARE,METRO HOMECARE LTD,"1,106.18",PHY LTS 18-64,HOMECARE - C&V,2102626048
03.02.2017,ADULT SOCIAL CARE,METRO HOMECARE LTD,"1,173.63",PHY LTS 18-64,HOMECARE - SPOT,2102625980
03.02.2017,ADULT SOCIAL CARE,METRO HOMECARE LTD,"1,268.06",PHY LTS 18-64,HOMECARE - SPOT,2102625976
03.02.2017,ADULT SOCIAL CARE,METRO HOMECARE LTD,"1,429.94",PHY LTS 18-64,HOMECARE - SPOT,2102626010
03.02.2017,ADULT SOCIAL CARE,METRO HOMECARE LTD,283.29,PHY LTS 65+,HOMECARE - C&V,2102626014
03.02.2017,ADULT SOCIAL CARE,METRO HOMECARE LTD,283.29,PHY LTS 65+,HOMECARE - SPOT,2102626051
03.02.2017,ADULT SOCIAL CARE,METRO HOMECARE LTD,283.3,PHY LTS 65+,HOMECARE - SPOT,2102626054
03.02.2017,ADULT SOCIAL CARE,METRO HOMECARE LTD,310.27,PHY LTS 65+,HOMECARE - SPOT,2102625996
03.02.2017,ADULT SOCIAL CARE,METRO HOMECARE LTD,323.76,PHY LTS 65+,HOMECARE - SPOT,2102626043
03.02.2017,ADULT SOCIAL CARE,METRO HOMECARE LTD,330.51,PHY LTS 65+,HOMECARE - SPOT,2102626026
03.02.2017,ADULT SOCIAL CARE,METRO HOMECARE LTD,330.51,PHY LTS 65+,HOMECARE - C&V,2102626050
03.02.2017,ADULT SOCIAL CARE,METRO HOMECARE LTD,330.51,PHY LTS 65+,HOMECARE - SPOT,2102626056
03.02.2017,ADULT SOCIAL CARE,METRO HOMECARE LTD,330.51,PHY LTS 65+,HOMECARE - SPOT,2102626059
03.02.2017,ADULT SOCIAL CARE,METRO HOMECARE LTD,330.51,PHY LTS 65+,HOMECARE - SPOT,2102626060
03.02.2017,ADULT SOCIAL CARE,METRO HOMECARE LTD,330.51,PHY LTS 65+,HOMECARE - SPOT,2102626061
03.02.2017,ADULT SOCIAL CARE,METRO HOMECARE LTD,330.51,PHY LTS 65+,HOMECARE - SPOT,2102626062
03.02.2017,ADULT SOCIAL CARE,METRO HOMECARE LTD,330.51,PHY LTS 65+,HOMECARE - SPOT,2102626068
03.02.2017,ADULT SOCIAL CARE,METRO HOMECARE LTD,330.51,PHY LTS 65+,HOMECARE - SPOT,2102626071
03.02.2017,ADULT SOCIAL CARE,METRO HOMECARE LTD,330.51,PHY LTS 65+,HOMECARE - SPOT,2102626075
03.02.2017,ADULT SOCIAL CARE,METRO HOMECARE LTD,330.51,PHY LTS 65+,HOMECARE - SPOT,2102626076
03.02.2017,ADULT SOCIAL CARE,METRO HOMECARE LTD,357.49,PHY LTS 65+,HOMECARE - SPOT,2102626023
03.02.2017,ADULT SOCIAL CARE,METRO HOMECARE LTD,384.47,PHY LTS 65+,HOMECARE - SPOT,2102626045
03.02.2017,ADULT SOCIAL CARE,METRO HOMECARE LTD,397.96,PHY LTS 65+,HOMECARE - SPOT,2102625991
03.02.2017,ADULT SOCIAL CARE,METRO HOMECARE LTD,404.7,PHY LTS 65+,HOMECARE - SPOT,2102626018
03.02.2017,ADULT SOCIAL CARE,METRO HOMECARE LTD,418.19,PHY LTS 65+,HOMECARE - SPOT,2102626000
03.02.2017,ADULT SOCIAL CARE,METRO HOMECARE LTD,424.94,PHY LTS 65+,HOMECARE - SPOT,2102625997
03.02.2017,ADULT SOCIAL CARE,METRO HOMECARE LTD,431.68,PHY LTS 65+,HOMECARE - SPOT,2102626046
03.02.2017,ADULT SOCIAL CARE,METRO HOMECARE LTD,472.15,PHY LTS 65+,HOMECARE - SPOT,2102625985
03.02.2017,ADULT SOCIAL CARE,METRO HOMECARE LTD,532.86,PHY LTS 65+,HOMECARE - C&V,2102626002
03.02.2017,ADULT SOCIAL CARE,METRO HOMECARE LTD,539.6,PHY LTS 65+,HOMECARE - SPOT,2102625998
03.02.2017,ADULT SOCIAL CARE,METRO HOMECARE LTD,553.09,PHY LTS 65+,HOMECARE - SPOT,2102625984
03.02.2017,ADULT SOCIAL CARE,METRO HOMECARE LTD,580.07,PHY LTS 65+,HOMECARE - SPOT,2102626021
03.02.2017,ADULT SOCIAL CARE,METRO HOMECARE LTD,613.8,PHY LTS 65+,HOMECARE - SPOT,2102626035
03.02.2017,ADULT SOCIAL CARE,METRO HOMECARE LTD,674.5,PHY LTS 65+,HOMECARE - SPOT,2102626013
03.02.2017,ADULT SOCIAL CARE,METRO HOMECARE LTD,701.48,PHY LTS 65+,HOMECARE - SPOT,2102626044
03.02.2017,ADULT SOCIAL CARE,METRO HOMECARE LTD,755.44,PHY LTS 65+,HOMECARE - C&V,2102625979
03.02.2017,ADULT SOCIAL CARE,METRO HOMECARE LTD,755.44,PHY LTS 65+,HOMECARE - SPOT,2102626003
03.02.2017,ADULT SOCIAL CARE,METRO HOMECARE LTD,802.66,PHY LTS 65+,HOMECARE - C&V,2102626001
03.02.2017,ADULT SOCIAL CARE,METRO HOMECARE LTD,849.87,PHY LTS 65+,HOMECARE - SPOT,2102626049
03.02.2017,ADULT SOCIAL CARE,METRO HOMECARE LTD,890.34,PHY LTS 65+,HOMECARE - SPOT,2102626009
03.02.2017,ADULT SOCIAL CARE,METRO HOMECARE LTD,998.26,PHY LTS 65+,HOMECARE - SPOT,2102625983
03.02.2017,ADULT SOCIAL CARE,METRO HOMECARE LTD,"1,038.73",PHY LTS 65+,HOMECARE - SPOT,2102626029
03.02.2017,ADULT SOCIAL CARE,METRO HOMECARE LTD,"1,038.73",PHY LTS 65+,HOMECARE - SPOT,2102626034
03.02.2017,ADULT SOCIAL CARE,METRO HOMECARE LTD,"1,038.73",PHY LTS 65+,HOMECARE - SPOT,2102626058
03.02.2017,ADULT SOCIAL CARE,METRO HOMECARE LTD,"1,079.20",PHY LTS 65+,HOMECARE - SPOT,2102626017
03.02.2017,ADULT SOCIAL CARE,METRO HOMECARE LTD,"1,187.12",PHY LTS 65+,HOMECARE - C&V,2102626042
03.02.2017,ADULT SOCIAL CARE,METRO HOMECARE LTD,"1,214.10",PHY LTS 65+,HOMECARE - C&V,2102626016
03.02.2017,ADULT SOCIAL CARE,METRO HOMECARE LTD,"1,686.25",PHY LTS 65+,HOMECARE - SPOT,2102625982
03.02.2017,ADULT SOCIAL CARE,SWK DISABLEMENT ASSN,486.4,PHY LTS 65+,HOMECARE - C&V,2102626069
03.02.2017,ADULT SOCIAL CARE,SWK DISABLEMENT ASSN,589,PHY LTS 65+,HOMECARE - SPOT,2102626073
03.02.2017,ADULT SOCIAL CARE,SWK DISABLEMENT ASSN,792.81,PHY LTS 65+,HOMECARE - C&V,2102626065
03.02.2017,ADULT SOCIAL CARE,SWK DISABLEMENT ASSN,874,PHY LTS 65+,HOMECARE - SPOT,2102626067
03.02.2017,ADULT SOCIAL CARE,SWK DISABLEMENT ASSN,"1,013.76",PHY LTS 65+,HOMECARE - SPOT,2102626074
03.02.2017,ADULT SOCIAL CARE,SWK DISABLEMENT ASSN,"1,481.04",PHY LTS 65+,HOMECARE - SPOT,2102626066
03.02.2017,ADULT SOCIAL CARE,SWK DISABLEMENT ASSN,"1,656.80",PHY LTS 65+,HOMECARE - C&V,2102626064
03.02.2017,ADULT SOCIAL CARE,SWK DISABLEMENT ASSN,"2,705.60",PHY LTS 65+,HOMECARE - SPOT,2102626072
03.02.2017,ADULT SOCIAL CARE,SURREY DOCKS FARM PROVIDENT SOCIETY,280,PWLD DAYCARE,DAYCARE,2102626081
03.02.2017,ADULT SOCIAL CARE,SURREY DOCKS FARM PROVIDENT SOCIETY,450,PWLD DAYCARE,DAYCARE,2102626078
03.02.2017,ADULT SOCIAL CARE,SURREY DOCKS FARM PROVIDENT SOCIETY,720,PWLD DAYCARE,DAYCARE,2102626080
03.02.2017,ADULT SOCIAL CARE,CORPORATE DOCUMENT SERVICES LTD,303,SAFEGUARDING TEAM,OTHER CONTRACTORS,5902235015
03.02.2017,ADULT SOCIAL CARE,EMMA MORTIMER,400,SAFEGUARDING TEAM,CONSULTANTS SERVICES,5902234890
03.02.2017,ADULT SOCIAL CARE,LUCAS CONSULT LTD,844.55,SAFEGUARDING TEAM,EXTERNAL AGENCIES AND BODIES,5902234897
03.02.2017,ADULT SOCIAL CARE,METRO HOMECARE LTD,317.02,SEN LTS 18-64,HOMECARE - SPOT,2102626025
03.02.2017,ADULT SOCIAL CARE,METRO HOMECARE LTD,283.29,SOCIAL ISOLATION,HOMECARE - SPOT,2102626022
03.02.2017,ADULT SOCIAL CARE,METRO HOMECARE LTD,370.98,SOCIAL ISOLATION,HOMECARE - SPOT,2102626005
03.02.2017,ADULT SOCIAL CARE,METRO HOMECARE LTD,546.35,SOCIAL ISOLATION,HOMECARE - SPOT,2102626039
03.02.2017,ASSET MANAGEMENT,M C TECHNICIANS LTD,660,ADAPTATIONS,BUILDING R&M,5902234872
03.02.2017,ASSET MANAGEMENT,M C TECHNICIANS LTD,934,ADAPTATIONS,BUILDING R&M,5902234871
03.02.2017,ASSET MANAGEMENT,THAMES VALLEY CONTROLS LTD,"12,240.00",ENG CONTRACTS (NORTH),LIFTS,5902235054
03.02.2017,CENTRAL FUNCTIONS,STANDAGE & CO LTD,"26,860.00",AYLESBURY,SECURITY SERVICES,2102625924
03.02.2017,CENTRAL FUNCTIONS,EDF ENERGY PLC,476.35,HEATING ACCOUNT,ELECTRICITY,5902235008
03.02.2017,CENTRAL FUNCTIONS,EDF ENERGY PLC,603.64,HEATING ACCOUNT,ELECTRICITY,5902235010
03.02.2017,CENTRAL FUNCTIONS,VEOLIA ES (UK)LTD,"15,722.57",HEATING ACCOUNT,GAS,5902235057
03.02.2017,CENTRAL FUNCTIONS,VEOLIA ES (UK)LTD,"141,091.62",HEATING ACCOUNT,GAS,5902235057
03.02.2017,CHIEF EXECUTIVE,CONWAY AECOM LTD,"15,434.72",CAPITAL PS (REGEN),CONSTRUCTION,5902234969
03.02.2017,CHIEF EXECUTIVE'S OFFICE,PARK RETAIL LTD,807.2,CHIEF EXEC'S OFFICE,MISCELLANEOUS EXPENSES,5902235068
03.02.2017,CHIEF EXECUTIVE'S OFFICE,RENAISI LTD,"31,223.00",CHIEF EXEC'S OFFICE,GRANTS,5902234908
03.02.2017,CHIEF EXECUTIVE'S OFFICE,ST GILES TRUST,"35,298.72",YOUTH FUND EMPLOYMENT,GRANTS,5902234940
03.02.2017,CHILDREN AND ADULT,COTTRELL AND VERMEULEN ARCH LTD,"3,500.00",CAPITAL PS (EDUCATION),CONSTRUCTION FEES  - EXTERNAL,5902235070
03.02.2017,CHILDREN AND ADULT,GLEEDS ADVISORY LTD,600,CAPITAL PS (EDUCATION),CONSTRUCTION FEES  - EXTERNAL,5902234916
03.02.2017,CHILDREN AND ADULT,KEEGANS LTD,"2,266.08",CAPITAL PS (EDUCATION),CONSTRUCTION FEES - QUANTITY SURVEYOR,5902235061
03.02.2017,CHILDREN AND ADULT,KEEGANS LTD,"14,620.92",CAPITAL PS (EDUCATION),CONSTRUCTION FEES - QUANTITY SURVEYOR,5902235061
03.02.2017,CHILDREN AND ADULT,REDS10 LTD,"7,500.00",CAPITAL PS (EDUCATION),CONSTRUCTION,5902235095
03.02.2017,CHILDREN'S SERVICES,CATCHPOINT,354.65,ADOPTION REFORM GRANT (PART B),EXTERNAL AGENCIES AND BODIES,5902235040
03.02.2017,CHILDREN'S SERVICES,CATCHPOINT,"1,200.00",ADOPTION REFORM GRANT (PART B),EXTERNAL AGENCIES AND BODIES,5902235032
03.02.2017,CHILDREN'S SERVICES,CATCHPOINT,"1,200.00",ADOPTION REFORM GRANT (PART B),EXTERNAL AGENCIES AND BODIES,5902235033
03.02.2017,CHILDREN'S SERVICES,CATCHPOINT,"1,200.00",ADOPTION REFORM GRANT (PART B),EXTERNAL AGENCIES AND BODIES,5902235036
03.02.2017,CHILDREN'S SERVICES,CATCHPOINT,"1,200.00",ADOPTION REFORM GRANT (PART B),EXTERNAL AGENCIES AND BODIES,5902235037
03.02.2017,CHILDREN'S SERVICES,ACCESS MOBILITY TRANSPORT LTD,"1,682.00",ALTERNATIVE PROVISION,EXTERNAL AGENCIES AND BODIES,5902234962
03.02.2017,CHILDREN'S SERVICES,FLEET TUTORS,"18,972.00",ALTERNATIVE PROVISION,EXTERNAL AGENCIES AND BODIES,5902234939
03.02.2017,CHILDREN'S SERVICES,MICHELE LEVENS,"1,350.00",ALTERNATIVE PROVISION,CONSULTANTS SERVICES,5902234923
03.02.2017,CHILDREN'S SERVICES,BRAKE BROS,311.49,AYLESBURY EARLY YEARS CENTRE,CATERING MATERIALS & SUPPLIES,5902234873
03.02.2017,CHILDREN'S SERVICES,CONTACT PROFESSIONALS,256.57,CARE PRACTICE GROUP SET C,OTHER PAYMENTS FOR CLIENTS,2102625947
03.02.2017,CHILDREN'S SERVICES,ZENITH CARS LTD,375,CARE PRACTICE GROUP SET C,HIRED VEHICLES,5902234905
03.02.2017,CHILDREN'S SERVICES,INSTITUTE OF LEARNING UNLIMITED,"4,750.00",COMMUNITY LEARNING 15/16,GRANTS,5902234966
03.02.2017,CHILDREN'S SERVICES,REDACTED PERSONAL DATA,336,DISABILITY & HIV,PAYMENTS TO CARERS,2102625964
03.02.2017,CHILDREN'S SERVICES,REDACTED PERSONAL DATA,412,DISABILITY & HIV,PAYMENTS TO CARERS,2102625969
03.02.2017,CHILDREN'S SERVICES,REDACTED PERSONAL DATA,530,DISABILITY & HIV,PAYMENTS TO CARERS,2102625959
03.02.2017,CHILDREN'S SERVICES,REDACTED PERSONAL DATA,300,DISABILITY & HIV,PAYMENTS TO CARERS,2102625954
03.02.2017,CHILDREN'S SERVICES,OASIS PLACES LTD,"3,657.14",FAMILY ASSESSMENTS,RESIDENTIAL CARE,5902235089
03.02.2017,CHILDREN'S SERVICES,LONDON BOROUGH OF BROMLEY,"1,118.25",HOME 2 SCHOOL TRANSPORT,RECOUPMENT,5902234883
03.02.2017,CHILDREN'S SERVICES,SURREY COUNTY COUNCIL,"7,260.00",HOME 2 SCHOOL TRANSPORT,RECOUPMENT,5902234887
03.02.2017,CHILDREN'S SERVICES,LSCM,"2,460.00",LEA MUSIC SERVICE(310) - 5018566,CONSULTANTS SERVICES,5902235030
03.02.2017,CHILDREN'S SERVICES,SING UP,265,LEA MUSIC SERVICE(310) - 5018566,SUBSCRIPTIONS,5902234903
03.02.2017,CHILDREN'S SERVICES,THE UK CAREER ACADEMY FOUNDATION,"1,766.67",MANAGEMENT,EXTERNAL AGENCIES AND BODIES,5902235079
03.02.2017,CHILDREN'S SERVICES,DOG KENNEL HILL PRIMARY SCHOOL,"11,494.00",MATERNITY COVER,SCHOOLS CAPITATION,5902234879
03.02.2017,CHILDREN'S SERVICES,THAMES REACH EMPOLYMENT ACADEMY,"1,621.75",POST ADOPTION ADVISE & SUPPORT,HIRE OF ROOMS/HALLS,5902235023
03.02.2017,CHILDREN'S SERVICES,KEEGANS LTD,960,PROPERTY MANAGEMENT,PROFESSIONAL FEES,5902234983
03.02.2017,CHILDREN'S SERVICES,KEEGANS LTD,961,PROPERTY MANAGEMENT,PROFESSIONAL FEES,5902234980
03.02.2017,CHILDREN'S SERVICES,KEEGANS LTD,"5,565.00",PROPERTY MANAGEMENT,PROFESSIONAL FEES,5902234986
03.02.2017,CHILDREN'S SERVICES,MACE LTD,"1,265.00",PROPERTY MANAGEMENT,PROFESSIONAL FEES,5902235082
03.02.2017,CHILDREN'S SERVICES,MACE LTD,"6,957.50",PROPERTY MANAGEMENT,PROFESSIONAL FEES,5902234930
03.02.2017,CHILDREN'S SERVICES,FLEET TUTORS,"16,066.00",PUPIL PREMIUM CURRENT YEAR,EXTERNAL AGENCIES AND BODIES,5902234889
03.02.2017,CHILDREN'S SERVICES,INMIND CHILDRENS SERVICES LTD,300,RESIDENTIAL,OTHER PAYMENTS FOR CLIENTS,5902234900
03.02.2017,CHILDREN'S SERVICES,BUDGET CARPETS,533.33,S & FAM SUPP - PRAC GRP E SET 26-28,OTHER PAYMENTS FOR CLIENTS,5902235086
03.02.2017,CHILDREN'S SERVICES,REDACTED PERSONAL DATA,500,STAYING PUT,PAYMENTS TO CARERS,2102625958
03.02.2017,CHILDREN'S SERVICES,VEOLIA ES (UK)LTD,418.35,THOMAS CALTON CENTRE,REFUSE COLLECTION CONTRACT,5902234961
03.02.2017,COMMUNITIES,S7 CHAUFFEURS,"4,016.25",MAYORAL SUPPORT,HIRED VEHICLES,5902235075
03.02.2017,COMMUNITIES,S7 CHAUFFEURS,"4,076.50",MAYORAL SUPPORT,HIRED VEHICLES,5902235077
03.02.2017,COMMUNITIES,EURO HOTELS (LEYTON) LTD,"1,500.00",NRPF PHYSICAL DISABILITIES,RENTS,5902235053
03.02.2017,COMMUNITIES,EURO HOTELS (LEYTON) LTD,"1,550.00",NRPF PHYSICAL DISABILITIES,RENTS,5902235047
03.02.2017,COMMUNITIES,EURO HOTELS (LEYTON) LTD,"1,550.00",NRPF PHYSICAL DISABILITIES,RENTS,5902235062
03.02.2017,CUSTOMER EXPERIENCE,INNOVATION CENTRE EUROPE LTD,"2,144.44",HOUSING NEEDS,MARKETING & PUBLICITY SERVICES,5902234990
03.02.2017,CUSTOMER EXPERIENCE HGF,ACCESS INDEPENDENT LTD,693,BLUE BADGES,PROFESSIONAL FEES,5902235043
03.02.2017,CUSTOMER EXPERIENCE HGF,ACCESS INDEPENDENT LTD,698.5,BLUE BADGES,PROFESSIONAL FEES,5902235041
03.02.2017,CUSTOMER EXPERIENCE HGF,ACCESS INDEPENDENT LTD,"1,024.25",BLUE BADGES,PROFESSIONAL FEES,5902235046
03.02.2017,CUSTOMER EXPERIENCE HGF,NORTHGATE PUBLIC SERVICES (UK) LTD,"1,094.80",BLUE BADGES,MATERIALS,5902234978
03.02.2017,CUSTOMER EXPERIENCE HGF,CHARLOTTE BRAZIER,300,COMPLAINTS,PROFESSIONAL FEES,5902234999
03.02.2017,CUSTOMER EXPERIENCE HGF,GOVNET COMMUNICATIONS,445,HOMELESS & HOUSING OPTIONS MGT,INFORMATION MANAGEMENT,5902235012
03.02.2017,CUSTOMER EXPERIENCE HGF,NATIONWIDE ACCOMMODATION,"1,085.00",NIGHTLY TA (NSC),EXTERNAL AGENCIES AND BODIES,5902234912
03.02.2017,CUSTOMER EXPERIENCE HGF,NATIONWIDE ACCOMMODATION,"1,624.00",NIGHTLY TA (NSC),EXTERNAL AGENCIES AND BODIES,5902234915
03.02.2017,CUSTOMER EXPERIENCE HGF,NATIONWIDE ACCOMMODATION,"35,413.50",NIGHTLY TA (NSC),EXTERNAL AGENCIES AND BODIES,5902234926
03.02.2017,ENVIRONMENT AND LEISURE,CONWAY AECOM LTD,"2,069.45",CAPITAL PS (LEISURE),CONSTRUCTION,2102625930
03.02.2017,ENVIRONMENT AND LEISURE,CONWAY AECOM LTD,"5,473.67",CAPITAL PS (LEISURE),CONSTRUCTION,2102625931
03.02.2017,ENVIRONMENT AND LEISURE,CONWAY AECOM LTD,"11,623.58",CAPITAL PS (LEISURE),CONSTRUCTION,2102625933
03.02.2017,ENVIRONMENT AND LEISURE,CONWAY AECOM LTD,"15,771.70",CAPITAL PS (LEISURE),CONSTRUCTION,2102625929
03.02.2017,ENVIRONMENT AND LEISURE,CONWAY AECOM LTD,"34,540.79",CAPITAL PS (LEISURE),CONSTRUCTION,2102625934
03.02.2017,ENVIRONMENT AND LEISURE,CONWAY AECOM LTD,"35,171.53",CAPITAL PS (LEISURE),CONSTRUCTION,2102625927
03.02.2017,ENVIRONMENT AND LEISURE,CONWAY AECOM LTD,"134,877.50",CAPITAL PS (LEISURE),CONSTRUCTION,2102625928
03.02.2017,ENVIRONMENT AND LEISURE,INTO SERVICES LONDON LTD,400,CAPITAL PS (LEISURE),CONSTRUCTION SITE COSTS,5902234875
03.02.2017,ENVIRONMENT AND LEISURE,INTO SERVICES LONDON LTD,400,CAPITAL PS (LEISURE),CONSTRUCTION SITE COSTS,5902234875
03.02.2017,ENVIRONMENT AND LEISURE,INTO SERVICES LONDON LTD,450,CAPITAL PS (LEISURE),CONSTRUCTION SITE COSTS,5902234875
03.02.2017,ENVIRONMENT AND LEISURE,INTO SERVICES LONDON LTD,500,CAPITAL PS (LEISURE),CONSTRUCTION SITE COSTS,5902234875
03.02.2017,ENVIRONMENT AND LEISURE,INTO SERVICES LONDON LTD,500,CAPITAL PS (LEISURE),CONSTRUCTION SITE COSTS,5902234875
03.02.2017,ENVIRONMENT AND LEISURE,INTO SERVICES LONDON LTD,600,CAPITAL PS (LEISURE),CONSTRUCTION SITE COSTS,5902234875
03.02.2017,ENVIRONMENT AND LEISURE,INTO SERVICES LONDON LTD,600,CAPITAL PS (LEISURE),CONSTRUCTION SITE COSTS,5902234875
03.02.2017,ENVIRONMENT AND LEISURE,INTO SERVICES LONDON LTD,600,CAPITAL PS (LEISURE),CONSTRUCTION FEES  - EXTERNAL,5902235017
03.02.2017,ENVIRONMENT AND LEISURE,INTO SERVICES LONDON LTD,600,CAPITAL PS (LEISURE),CONSTRUCTION FEES  - EXTERNAL,5902235017
03.02.2017,ENVIRONMENT AND LEISURE,INTO SERVICES LONDON LTD,650,CAPITAL PS (LEISURE),CONSTRUCTION SITE COSTS,5902234875
03.02.2017,ENVIRONMENT AND LEISURE,INTO SERVICES LONDON LTD,700,CAPITAL PS (LEISURE),CONSTRUCTION SITE COSTS,5902234875
03.02.2017,ENVIRONMENT AND LEISURE,INTO SERVICES LONDON LTD,950,CAPITAL PS (LEISURE),CONSTRUCTION SITE COSTS,5902234875
03.02.2017,ENVIRONMENT AND LEISURE,T H WHITE LTD,"1,400.00",CAPITAL PS (LEISURE),"PLANT, MACHINERY & EQUIPMENT ACQUISITION",5902234974
03.02.2017,ENVIRONMENT AND LEISURE,T H WHITE LTD,"24,496.00",CAPITAL PS (LEISURE),"PLANT, MACHINERY & EQUIPMENT ACQUISITION",5902234974
03.02.2017,ENVIRONMENT AND LEISURE,TIME & TALENTS ASSOCIATION,"1,642.17",CAPITAL PS (LEISURE),CONSTR'N SUB CONTRACT - NON CERTIFICATED,5902235071
03.02.2017,ENVIRONMENT DIRECTORATE,INCHCAPE FLEET SOLUTIONS LTD,284.38,CAR LEASING CTRL A/C,VEHICLE LEASING CHARGES,5902235038
03.02.2017,ENVIRONMENT DIRECTORATE,R J MOTORS LIMITED,469.69,COMMERCIAL VEH CTRL A/C,VEHICLE REPAIRS & MAINTENANCE,5902234973
03.02.2017,ENVIRONMENT DIRECTORATE,ONSITE SUPPORT LTD,319.2,ESTATE CLEANING-GENERAL,MATERIALS,5902235021
03.02.2017,ENVIRONMENT DIRECTORATE,PERFORMANCE CHEMICALS LTD,"1,920.00",ESTATE CLEANING-GENERAL,MATERIALS,5902235005
03.02.2017,ENVIRONMENT DIRECTORATE,CONWAY AECOM LTD,"15,524.60",PROLONGED OCCUPATION OVERHEADS,OTHER CONTRACTORS,2102625926
03.02.2017,ENVIRONMENT DIRECTORATE,CONWAY AECOM LTD,"37,384.08",PROLONGED OCCUPATION OVERHEADS,OTHER CONTRACTORS,2102625925
03.02.2017,ENVIRONMENT DIRECTORATE,SOUTHWARK NEWSPAPER LTD,276,STREET WORKS OVERHEADS,MARKETING & PUBLICITY SERVICES,5902234898
03.02.2017,ENVIRONMENT DIRECTORATE,SOUTHWARK NEWSPAPER LTD,276,STREET WORKS OVERHEADS,MARKETING & PUBLICITY SERVICES,5902235055
03.02.2017,ENVIRONMENT DIRECTORATE,SOUTHWARK NEWSPAPER LTD,288,STREET WORKS OVERHEADS,MARKETING & PUBLICITY SERVICES,5902234904
03.02.2017,ENVIRONMENT DIRECTORATE,SOUTHWARK NEWSPAPER LTD,288,STREET WORKS OVERHEADS,MARKETING & PUBLICITY SERVICES,5902234957
03.02.2017,ENVIRONMENT DIRECTORATE,SOUTHWARK NEWSPAPER LTD,288,STREET WORKS OVERHEADS,MARKETING & PUBLICITY SERVICES,5902235049
03.02.2017,ENVIRONMENT DIRECTORATE,SOUTHWARK NEWSPAPER LTD,300,STREET WORKS OVERHEADS,MARKETING & PUBLICITY SERVICES,5902234958
03.02.2017,ENVIRONMENT DIRECTORATE,SOUTHWARK NEWSPAPER LTD,312,STREET WORKS OVERHEADS,MARKETING & PUBLICITY SERVICES,5902234913
03.02.2017,ENVIRONMENT DIRECTORATE,SOUTHWARK NEWSPAPER LTD,312,STREET WORKS OVERHEADS,MARKETING & PUBLICITY SERVICES,5902235039
03.02.2017,ENVIRONMENT DIRECTORATE,SOUTHWARK NEWSPAPER LTD,360,STREET WORKS OVERHEADS,MARKETING & PUBLICITY SERVICES,5902234927
03.02.2017,ENVIRONMENT DIRECTORATE,CITY OF LONDON,"2,062.86",WASTE DISPOSAL,OTHER CONTRACTORS,5902234981
03.02.2017,F & C S EXCLUDING CORPORATE BUDGETS,BPP HOLDINGS LTD,300,ADMINISTRATIVE SUPPORT,TRAINING,5902234942
03.02.2017,F & C S EXCLUDING CORPORATE BUDGETS,NORTHGATE PUBLIC SERVICES (UK) LTD,"9,166.67",ADMINISTRATIVE SUPPORT,PRINTING,5902234941
03.02.2017,HOUSING,LIFTEC LIFTS LTD,"52,034.59",PAYMENTS CONTROL ACCOUNT - LIFTEC,MANUAL CREDITORS,5902235073
03.02.2017,HOUSING,OCO LIMITED,"330,122.58",PAYMENTS CONTROL ACCOUNT - OCO,MANUAL CREDITORS,5902234766
03.02.2017,HOUSING,STANDAGE & CO LTD,"13,047.01",STANDAGE,MANUAL CREDITORS,5902235072
03.02.2017,HOUSING HRA,DAVID MILES & PARTNERS,"13,583.89",CAPITAL PS (HRA),CONSTRUCTION FEES  - EXTERNAL,5902234919
03.02.2017,HOUSING HRA,ICENI PROJECTS LTD,"1,003.80",CAPITAL PS (HRA),CONSTRUCTION FEES  - EXTERNAL,5902235024
03.02.2017,HOUSING HRA,ICENI PROJECTS LTD,"2,737.80",CAPITAL PS (HRA),CONSTRUCTION FEES  - EXTERNAL,5902235019
03.02.2017,HOUSING HRA,ICENI PROJECTS LTD,"3,786.00",CAPITAL PS (HRA),CONSTRUCTION FEES  - EXTERNAL,5902234989
03.02.2017,HOUSING HRA,KP ACOUSTICS LTD,"1,250.00",CAPITAL PS (HRA),CONSTRUCTION FEES  - EXTERNAL,5902234797
03.02.2017,HOUSING HRA,MOTT MACDONALD LTD,850.82,CAPITAL PS (HRA),CONSTRUCTION FEES  - EXTERNAL,5902234960
03.02.2017,HOUSING HRA,MOTT MACDONALD LTD,901.5,CAPITAL PS (HRA),CONSTRUCTION FEES - EMPLOYERS AGENT,5902235063
03.02.2017,HOUSING HRA,MOTT MACDONALD LTD,918,CAPITAL PS (HRA),CONSTRUCTION FEES  - EXTERNAL,5902234964
03.02.2017,HOUSING HRA,MOTT MACDONALD LTD,"4,297.50",CAPITAL PS (HRA),CONSTRUCTION FEES  - EXTERNAL,5902234995
03.02.2017,HOUSING HRA,MOTT MACDONALD LTD,"4,340.92",CAPITAL PS (HRA),CONSTRUCTION FEES  - EXTERNAL,5902234991
03.02.2017,HOUSING HRA,POTTER RAPER AND PARTNERS,"4,385.00",CAPITAL PS (HRA),CONSTRUCTION FEES  - EXTERNAL,5902235029
03.02.2017,HOUSING HRA,RUSSELL GILES PARTNERSHIP LTD,500,CAPITAL PS (HRA),CONSTRUCTION FEES  - EXTERNAL,5902235081
03.02.2017,HOUSING HRA,ASH SAKULA ARCHITECTS,"24,380.00",CAPITAL PS (REGEN),CONSTRUCTION FEES,5902234896
03.02.2017,HOUSING HRA,CARTER JONAS LLP,"1,200.00",CAPITAL PS (REGEN),LAND & BUILDINGS ACQUISITION FEES,5902235052
03.02.2017,HOUSING HRA,MOTT MACDONALD LTD,"2,267.00",CAPITAL PS (REGEN),CONSTRUCTION FEES  - EXTERNAL,5902235004
03.02.2017,HOUSING HRA,MOTT MACDONALD LTD,"2,267.00",CAPITAL PS (REGEN),CONSTRUCTION FEES  - EXTERNAL,5902235007
03.02.2017,LEISURE DIRECTORATE,ADCOCK REFRIGERATION & AIR CONDITIONING LTD,340.14,CAMBERWELL LIBRARY,AIR CONDITIONING CONTRACT,5902234911
03.02.2017,LEISURE DIRECTORATE,COMPLETE ECOLOGY LIMITED,800,G M HARMWORTH A TEAM,GROUNDS MAINTENANCE,5902234965
03.02.2017,LEISURE DIRECTORATE,CENGAGE LEARNING (EMEA) LTD,"6,817.65",STOCK SERVICES,BOOKS & PUBLICATIONS,5902234885
03.02.2017,MODERNISATION,CBS MAINTENANCE SERVICES LTD,"2,269.00",COMMERCIAL PROPERTIES,PROFESSIONAL FEES,5902234963
03.02.2017,MODERNISATION,CLEANOVATION,281.3,COMMERCIAL PROPERTIES,PREMISES CLEANING,5902235044
03.02.2017,MODERNISATION,CLEANOVATION,501.46,COMMERCIAL PROPERTIES,PREMISES CLEANING,5902235042
03.02.2017,MODERNISATION HGF,KENT COUNTY COUNCIL - LASER,"3,308.94",160 TOOLEY ST.,GAS,5902235013
03.02.2017,MODERNISATION HGF,LINDA COBB,550,ADULTS MULTI-AGENCY SAFEGUARDING TRNG,TRAINING,5902234892
03.02.2017,MODERNISATION HGF,KONE PLC,"1,290.99",REPAIR AND MAINTENANCE SERVICES,BUILDING R&M,5902234878
03.02.2017,REGENERATION,VEOLIA ES (UK)LTD,258.33,LBS SOJOURNER TRUTH COMMUNITY CENTRE,REFUSE COLLECTION CONTRACT,5902234891
03.02.2017,REGENERATION,GVA GRIMLEY LLP,"2,357.00",MISC INDUSTRIAL PROPERTIES,PROFESSIONAL FEES,5902235050
03.02.2017,REGENERATION,WE MADE THAT LLP,"11,616.10",OLD KENT RD-FEES/MPLAN,PROFESSIONAL FEES,5902235066
03.02.2017,REGENERATION,WE MADE THAT LLP,"19,946.00",OLD KENT RD-FEES/MPLAN,PROFESSIONAL FEES,5902235067
03.02.2017,REGENERATION,REED BUSINESS INFORMATION LTD,"5,500.00",PROPERTY TEAM,SUBSCRIPTIONS,5902235014
03.02.2017,RESIDENT SERVICES,LONDON TOOLS LIMITED,625,SHELTERED WARDENS,MATERIALS,5902234949
03.02.2017,RESIDENT SERVICES,GOLDSTONE ESTATES LTD,"3,150.00",TA PLACEMENTS,RENTS,5902234971
03.02.2017,RESIDENT SERVICES,GOLDSTONE ESTATES LTD,"3,255.00",TA PLACEMENTS,RENTS,5902234967
03.02.2017,RESIDENT SERVICES,ZFA LTD,"2,224.00",TA PLACEMENTS,RENTS,5902234917
03.02.2017,SOUTHWARK BUILDING SERVICES,PEARSON GLAZING LIMITED,278.08,WALWORTH VOIDS - GLAZIER,MATERIALS,5902235051
03.02.2017,SOUTHWARK SCHOOL FOR FUTURE,C D SURVEYS LTD,"10,950.00",CAPITAL PS (REGEN),CONSTRUCTION FEES,5902234874
04.02.2017,CHILDREN'S SERVICES,REDACTED PERSONAL DATA,498.8,HOME 2 SCHOOL TRANSPORT,OTHER PAYMENTS FOR CLIENTS,5902234203
04.02.2017,CHILDREN'S SERVICES,REDACTED PERSONAL DATA,"1,169.60",HOME 2 SCHOOL TRANSPORT,OTHER PAYMENTS FOR CLIENTS,5902234203
04.02.2017,CHILDREN'S SERVICES,BAVATAS AFTER SCHOOL CLUB,396,S & FAM SUPP - PRAC GRP A SET 14-16,OTHER PAYMENTS FOR CLIENTS,5902234370
05.02.2017,CENTRAL FUNCTIONS,WESTCO TRADING LTD,400,LMU COMMUNICATIONS PLAN,PRINTING,5902234382
05.02.2017,CHIEF EXECUTIVE'S OFFICE,WESTCO TRADING LTD,400,CHIEF EXEC'S OFFICE,MARKETING & PUBLICITY SERVICES,5902234671
05.02.2017,COMMUNITIES,LEATHERMARKET JMB HOUSING,"589,743.20",FAIR CHS TMO,M&M ALLOWANCE CO-OPS,5902234718
05.02.2017,COMMUNITIES,LEATHERMARKET JMB HOUSING,"601,066.75",FAIR CHS TMO,M&M ALLOWANCE CO-OPS,5902234719
05.02.2017,CUSTOMER EXPERIENCE,INNOVATION CENTRE EUROPE LTD,"2,312.06",HOUSING NEEDS,MARKETING & PUBLICITY SERVICES,5902234968
05.02.2017,ENVIRONMENT DIRECTORATE,KEEP BRITAIN TIDY,"1,195.00",MANAGEMENT TEAM,MARKETING & PUBLICITY SERVICES,5902234776
05.02.2017,ENVIRONMENT DIRECTORATE,THE RIOT ACT LTD,550,"ROAD SAFETY EDUCATION,TRAINING&PUBLICITY",PROFESSIONAL FEES,5902234888
05.02.2017,ENVIRONMENT DIRECTORATE,SOUTHWARK NEWSPAPER LTD,276,STREET WORKS OVERHEADS,MARKETING & PUBLICITY SERVICES,5902234882
05.02.2017,ENVIRONMENT DIRECTORATE,SOUTHWARK NEWSPAPER LTD,288,STREET WORKS OVERHEADS,MARKETING & PUBLICITY SERVICES,5902234894
05.02.2017,ENVIRONMENT DIRECTORATE,SOUTHWARK NEWSPAPER LTD,288,STREET WORKS OVERHEADS,MARKETING & PUBLICITY SERVICES,5902234921
05.02.2017,ENVIRONMENT DIRECTORATE,SOUTHWARK NEWSPAPER LTD,300,STREET WORKS OVERHEADS,MARKETING & PUBLICITY SERVICES,5902234877
05.02.2017,ENVIRONMENT DIRECTORATE,SOUTHWARK NEWSPAPER LTD,300,STREET WORKS OVERHEADS,MARKETING & PUBLICITY SERVICES,5902234902
05.02.2017,ENVIRONMENT DIRECTORATE,SOUTHWARK NEWSPAPER LTD,312,STREET WORKS OVERHEADS,MARKETING & PUBLICITY SERVICES,5902234933
05.02.2017,ENVIRONMENT DIRECTORATE,SOUTHWARK NEWSPAPER LTD,360,STREET WORKS OVERHEADS,MARKETING & PUBLICITY SERVICES,5902234928
05.02.2017,ENVIRONMENT DIRECTORATE,SOUTHWARK NEWSPAPER LTD,396,STREET WORKS OVERHEADS,MARKETING & PUBLICITY SERVICES,5902234909
05.02.2017,F & C S EXCLUDING CORPORATE BUDGETS,CIPS SERVICES LIMITED,"1,250.00",PROFESSIONAL QUALIFICATIONS,TRAINING,5902234938
05.02.2017,LEISURE DIRECTORATE,KEEP BRITAIN TIDY,"3,585.00",PARKS MANAGEMENT,MARKETING & PUBLICITY SERVICES,5902234816
05.02.2017,MODERNISATION HGF,ESSENTRA SECURITY LTD,"1,689.50",160 TOOLEY ST.,EQUIPMENT PURCHASE & REPAIR,5902234751
05.02.2017,MODERNISATION HGF,CYGNET BUSINESS DEVELOPMENT LTD,950,ILM COSTS,TRAINING,5902234484
05.02.2017,REGENERATION,PIPERS PROJECTS LTD,"4,000.00",MASTER PLAN-H/WAY & TRANS INTERCHANGE,MARKETING & PUBLICITY SERVICES,5902234884
06.02.2017,ADULT SOCIAL CARE,HINDWOODS LTD,544.44,APPOINTEESHIPS,OTHER PAYMENTS FOR CLIENTS,2102626108
06.02.2017,ADULT SOCIAL CARE,NORBURY HALL RESIDENTIAL CARE HOME,"6,335.00",APPOINTEESHIPS,OTHER PAYMENTS FOR CLIENTS,2102626107
06.02.2017,ADULT SOCIAL CARE,REDACTED PERSONAL DATA,264.8,APPOINTEESHIPS,OTHER PAYMENTS FOR CLIENTS,5902235203
06.02.2017,ADULT SOCIAL CARE,THE CO-OPERATIVE FUNERALCARE,"4,818.25",APPOINTEESHIPS,OTHER PAYMENTS FOR CLIENTS,2102626106
06.02.2017,ADULT SOCIAL CARE,HMCTS,400,DEPUTYSHIPS,OTHER PAYMENTS FOR CLIENTS,5902235253
06.02.2017,ADULT SOCIAL CARE,HMCTS,400,DEPUTYSHIPS,OTHER PAYMENTS FOR CLIENTS,5902235254
06.02.2017,ADULT SOCIAL CARE,CARE O LINE,866.25,LD LTS 18-64,HOMECARE - SPOT,2102626271
06.02.2017,ADULT SOCIAL CARE,CARE O LINE,990,LD LTS 18-64,HOMECARE - SPOT,2102626270
06.02.2017,ADULT SOCIAL CARE,CARE O LINE,990,LD LTS 18-64,HOMECARE - SPOT,2102626272
06.02.2017,ADULT SOCIAL CARE,CARE O LINE,990,LD LTS 18-64,HOMECARE - SPOT,2102626273
06.02.2017,ADULT SOCIAL CARE,CARE O LINE,990,LD LTS 18-64,HOMECARE - SPOT,2102626274
06.02.2017,ADULT SOCIAL CARE,CARE O LINE,990,LD LTS 18-64,HOMECARE - SPOT,2102626275
06.02.2017,ADULT SOCIAL CARE,CARE O LINE,990,LD LTS 18-64,HOMECARE - SPOT,2102626276
06.02.2017,ADULT SOCIAL CARE,CARE O LINE,990,LD LTS 18-64,HOMECARE - SPOT,2102626277
06.02.2017,ADULT SOCIAL CARE,CARE O LINE,990,LD LTS 18-64,HOMECARE - SPOT,2102626278
06.02.2017,ADULT SOCIAL CARE,CARE O LINE,990,LD LTS 18-64,HOMECARE - SPOT,2102626279
06.02.2017,ADULT SOCIAL CARE,CARE O LINE,990,LD LTS 18-64,HOMECARE - SPOT,2102626280
06.02.2017,ADULT SOCIAL CARE,CARE O LINE,990,LD LTS 18-64,HOMECARE - SPOT,2102626281
06.02.2017,ADULT SOCIAL CARE,ADKIN CONSULTANCY LTD,"2,812.50",LD/MH/SM MANAGEMENT,CONSULTANTS SERVICES,5902235178
06.02.2017,ADULT SOCIAL CARE,HANSEN PALOMARES SOLICITORS,"5,000.00",MENTAL HEALTH FOR OLDER ADULTS,LEGAL FEES & COURT COSTS,2102626136
06.02.2017,ADULT SOCIAL CARE,NPOWER,256.67,ORIENT STREET,ELECTRICITY,5902235162
06.02.2017,ADULT SOCIAL CARE,CHARLIE CHAPLIN ADVENTURE PLAYGROUND,"1,404.92",TRANSITION 14YRS TO 18YRS,SECTION 17 PAYMENTS TO AGENCIES/CARERS,5902235116
06.02.2017,CENTRAL FUNCTIONS,EDF ENERGY PLC,"1,273.83",HEATING ACCOUNT,ELECTRICITY,5902235279
06.02.2017,CENTRAL FUNCTIONS,ESENDEX LTD,"2,850.00",HOME OWNERSHIP,PROFESSIONAL FEES,5902234464
06.02.2017,CENTRAL FUNCTIONS,AMPHLETT LISSIMORE SOLCITORS,619.91,HOME OWNERSHIP INCOME,HOUSING RESIDENTIAL RENTS,5902235231
06.02.2017,CHIEF EXECUTIVE,ACS CONSULTING (LONDON),"1,260.00",CAPITAL PS (REGEN),CONSTRUCTION FEES,5902235132
06.02.2017,CHIEF EXECUTIVE,MATERIALS SCIENCE CONSULTANTS LTD,"1,150.00",CAPITAL PS (REGEN),CONSTRUCTION FEES - ARCHITECT,5902235281
06.02.2017,CHIEF EXECUTIVE,MATERIALS SCIENCE CONSULTANTS LTD,"2,600.00",CAPITAL PS (REGEN),CONSTRUCTION FEES - ARCHITECT,5902235276
06.02.2017,CHILDREN AND ADULT,MACE LTD,"15,812.50",CAPITAL PS (EDUCATION),CONSTRUCTION,5902235098
06.02.2017,CHILDREN AND ADULT,REDS10 LTD,"6,623.00",CAPITAL PS (EDUCATION),CONSTRUCTION,5902235096
06.02.2017,CHILDREN'S SERVICES,ST FRANCIS' CHILDREN SOCIETY,"18,000.00",ADOPTION PLACEMENTS & INTER AGENCY,EXTERNAL AGENCIES AND BODIES,5902235133
06.02.2017,CHILDREN'S SERVICES,BY THE BRIDGE LTD,-765.54,AGENCY FOSTERING,EXTERNAL AGENCIES AND BODIES,2102626259
06.02.2017,CHILDREN'S SERVICES,BY THE BRIDGE LTD,"4,580.78",AGENCY FOSTERING,EXTERNAL AGENCIES AND BODIES,2102626255
06.02.2017,CHILDREN'S SERVICES,BY THE BRIDGE LTD,"4,903.54",AGENCY FOSTERING,EXTERNAL AGENCIES AND BODIES,2102626263
06.02.2017,CHILDREN'S SERVICES,BY THE BRIDGE LTD,"4,903.54",AGENCY FOSTERING,EXTERNAL AGENCIES AND BODIES,2102626265
06.02.2017,CHILDREN'S SERVICES,BY THE BRIDGE LTD,"6,030.00",AGENCY FOSTERING,EXTERNAL AGENCIES AND BODIES,2102626251
06.02.2017,CHILDREN'S SERVICES,BY THE BRIDGE LTD,"6,231.00",AGENCY FOSTERING,EXTERNAL AGENCIES AND BODIES,2102626260
06.02.2017,CHILDREN'S SERVICES,BY THE BRIDGE LTD,"6,231.00",AGENCY FOSTERING,EXTERNAL AGENCIES AND BODIES,2102626262
06.02.2017,CHILDREN'S SERVICES,BY THE BRIDGE LTD,"6,432.00",AGENCY FOSTERING,EXTERNAL AGENCIES AND BODIES,2102626257
06.02.2017,CHILDREN'S SERVICES,CHILDREN OF COLOUR,"-1,329.60",AGENCY FOSTERING,EXTERNAL AGENCIES AND BODIES,2102626258
06.02.2017,CHILDREN'S SERVICES,CHILDREN OF COLOUR,"2,357.15",AGENCY FOSTERING,EXTERNAL AGENCIES AND BODIES,2102626252
06.02.2017,CHILDREN'S SERVICES,CHILDREN OF COLOUR,"4,786.74",AGENCY FOSTERING,EXTERNAL AGENCIES AND BODIES,2102626264
06.02.2017,CHILDREN'S SERVICES,FOSTERING SUPPORT GROUP LTD,"4,799.76",AGENCY FOSTERING,EXTERNAL AGENCIES AND BODIES,2102626253
06.02.2017,CHILDREN'S SERVICES,FOSTERING SUPPORT GROUP LTD,"5,999.70",AGENCY FOSTERING,EXTERNAL AGENCIES AND BODIES,2102626256
06.02.2017,CHILDREN'S SERVICES,NEXT STEP FOSTERING SERVICES LTD,"1,250.00",AGENCY FOSTERING,EXTERNAL AGENCIES AND BODIES,2102626254
06.02.2017,CHILDREN'S SERVICES,NEXT STEP FOSTERING SERVICES LTD,"3,875.00",AGENCY FOSTERING,EXTERNAL AGENCIES AND BODIES,2102626266
06.02.2017,CHILDREN'S SERVICES,NEXT STEP FOSTERING SERVICES LTD,"5,593.33",AGENCY FOSTERING,EXTERNAL AGENCIES AND BODIES,2102626261
06.02.2017,CHILDREN'S SERVICES,ANDREW NASH,920,DISABILITY & HIV,PROFESSIONAL FEES,5902235126
06.02.2017,CHILDREN'S SERVICES,REDACTED PERSONAL DATA,300,DISABILITY & HIV,PAYMENTS TO CARERS,2102626218
06.02.2017,CHILDREN'S SERVICES,CHARITEENS RESIDENTIAL FAMILY CENTRE,"9,600.00",FAMILY ASSESSMENTS,RESIDENTIAL CARE,5902235091
06.02.2017,CHILDREN'S SERVICES,SMITH AND MASSEN LTD,"3,980.00",FAMILY ASSESSMENTS,RESIDENTIAL CARE,5902235278
06.02.2017,CHILDREN'S SERVICES,SMITH AND MASSEN LTD,"3,980.00",FAMILY ASSESSMENTS,RESIDENTIAL CARE,5902235282
06.02.2017,CHILDREN'S SERVICES,SMITH AND MASSEN LTD,"4,980.00",FAMILY ASSESSMENTS,RESIDENTIAL CARE,5902235286
06.02.2017,CHILDREN'S SERVICES,SMITH AND MASSEN LTD,"4,980.00",FAMILY ASSESSMENTS,RESIDENTIAL CARE,5902235288
06.02.2017,CHILDREN'S SERVICES,SMITH AND MASSEN LTD,"4,980.00",FAMILY ASSESSMENTS,RESIDENTIAL CARE,5902235291
06.02.2017,CHILDREN'S SERVICES,BRINDISHE LEE SCHOOL,"3,056.70",LAC EDUCATION,EXTERNAL AGENCIES AND BODIES,5902235108
06.02.2017,CHILDREN'S SERVICES,ALISTAIR CANTOR,400,LEGAL,LEGAL FEES & COURT COSTS,2102626109
06.02.2017,CHILDREN'S SERVICES,BARRY McALINDEN,475,LEGAL,LEGAL FEES & COURT COSTS,2102626115
06.02.2017,CHILDREN'S SERVICES,BARRY McALINDEN,475,LEGAL,LEGAL FEES & COURT COSTS,2102626117
06.02.2017,CHILDREN'S SERVICES,CLIVE REDLEY,325,LEGAL,LEGAL FEES & COURT COSTS,2102626120
06.02.2017,CHILDREN'S SERVICES,CLIVE REDLEY,325,LEGAL,LEGAL FEES & COURT COSTS,2102626121
06.02.2017,CHILDREN'S SERVICES,CLIVE REDLEY,325,LEGAL,LEGAL FEES & COURT COSTS,2102626122
06.02.2017,CHILDREN'S SERVICES,CLIVE REDLEY,525,LEGAL,LEGAL FEES & COURT COSTS,2102626118
06.02.2017,CHILDREN'S SERVICES,DEBORAH BRYAN,375,LEGAL,LEGAL FEES & COURT COSTS,2102626124
06.02.2017,CHILDREN'S SERVICES,DEBORAH BRYAN,375,LEGAL,LEGAL FEES & COURT COSTS,2102626125
06.02.2017,CHILDREN'S SERVICES,DEBORAH BRYAN,575,LEGAL,LEGAL FEES & COURT COSTS,2102626126
06.02.2017,CHILDREN'S SERVICES,DEBORAH BRYAN,"1,125.00",LEGAL,LEGAL FEES & COURT COSTS,2102626128
06.02.2017,CHILDREN'S SERVICES,DEBORAH SEITLER,"1,845.00",LEGAL,LEGAL FEES & COURT COSTS,2102626129
06.02.2017,CHILDREN'S SERVICES,ED LAMB,275,LEGAL,LEGAL FEES & COURT COSTS,2102626133
06.02.2017,CHILDREN'S SERVICES,ED LAMB,300,LEGAL,LEGAL FEES & COURT COSTS,2102626132
06.02.2017,CHILDREN'S SERVICES,ED LAMB,475,LEGAL,LEGAL FEES & COURT COSTS,2102626130
06.02.2017,CHILDREN'S SERVICES,ED LAMB,475,LEGAL,LEGAL FEES & COURT COSTS,2102626131
06.02.2017,CHILDREN'S SERVICES,EMILY RADCLIFFE,475,LEGAL,LEGAL FEES & COURT COSTS,2102626135
06.02.2017,CHILDREN'S SERVICES,JULIAN DATE,"3,150.00",LEGAL,LEGAL FEES & COURT COSTS,2102626139
06.02.2017,CHILDREN'S SERVICES,LAURA BRIGGS,300,LEGAL,LEGAL FEES & COURT COSTS,2102626141
06.02.2017,CHILDREN'S SERVICES,LAURA BRIGGS,300,LEGAL,LEGAL FEES & COURT COSTS,2102626142
06.02.2017,CHILDREN'S SERVICES,LAURA BRIGGS,475,LEGAL,LEGAL FEES & COURT COSTS,2102626140
06.02.2017,CHILDREN'S SERVICES,LAURA BUMPUS,275,LEGAL,LEGAL FEES & COURT COSTS,2102626143
06.02.2017,CHILDREN'S SERVICES,LAURA BUMPUS,850,LEGAL,LEGAL FEES & COURT COSTS,2102626144
06.02.2017,CHILDREN'S SERVICES,MATTHEW STOTT,475,LEGAL,LEGAL FEES & COURT COSTS,2102626146
06.02.2017,CHILDREN'S SERVICES,MATTHEW STOTT,850,LEGAL,LEGAL FEES & COURT COSTS,2102626145
06.02.2017,CHILDREN'S SERVICES,REDACTED PERSONAL DATA,300,LEGAL,LEGAL FEES & COURT COSTS,2102626112
06.02.2017,CHILDREN'S SERVICES,REDACTED PERSONAL DATA,475,LEGAL,LEGAL FEES & COURT COSTS,2102626111
06.02.2017,CHILDREN'S SERVICES,REDACTED PERSONAL DATA,375,LEGAL,LEGAL FEES & COURT COSTS,2102626137
06.02.2017,CHILDREN'S SERVICES,REDACTED PERSONAL DATA,375,LEGAL,LEGAL FEES & COURT COSTS,2102626138
06.02.2017,CHILDREN'S SERVICES,RICHARD HARRIS,800,LEGAL,LEGAL FEES & COURT COSTS,2102626148
06.02.2017,CHILDREN'S SERVICES,VICTORIA FLOWERS,400,LEGAL,LEGAL FEES & COURT COSTS,2102626150
06.02.2017,CHILDREN'S SERVICES,WILLIAM DEAN,850,LEGAL,LEGAL FEES & COURT COSTS,2102626151
06.02.2017,CHILDREN'S SERVICES,REDACTED PERSONAL DATA,"1,584.00",NURSURERY EDUCATION GRANT-3 Y.O.,GRANTS,2102616103
06.02.2017,CHILDREN'S SERVICES,NOTRE DAME RC GIRLS SCHOOL,"1,500.00",PUPIL PREMIUM CURRENT YEAR,SCHOOLS CAPITATION,2102626157
06.02.2017,CHILDREN'S SERVICES,NOTRE DAME RC GIRLS SCHOOL,"1,500.00",PUPIL PREMIUM CURRENT YEAR,SCHOOLS CAPITATION,2102626158
06.02.2017,CHILDREN'S SERVICES,SANDHURST INFANT & NURSERY SCHOOL,"1,000.00",PUPIL PREMIUM CURRENT YEAR,SCHOOLS CAPITATION,2102626163
06.02.2017,CHILDREN'S SERVICES,ST JAMES CE SCHOOL,"1,500.00",PUPIL PREMIUM CURRENT YEAR,SCHOOLS CAPITATION,2102626159
06.02.2017,CHILDREN'S SERVICES,WESTLANDS SCHOOL,"1,100.00",PUPIL PREMIUM CURRENT YEAR,SCHOOLS CAPITATION,2102626156
06.02.2017,CHILDREN'S SERVICES,WESTLANDS SCHOOL,"1,100.00",PUPIL PREMIUM CURRENT YEAR,SCHOOLS CAPITATION,2102626166
06.02.2017,CHILDREN'S SERVICES,AMEGREEN CHILDRENS SERVICES LTD,"9,600.00",RESIDENTIAL,RESIDENTIAL CARE,2102626228
06.02.2017,CHILDREN'S SERVICES,AMEGREEN CHILDRENS SERVICES LTD,"10,000.00",RESIDENTIAL,RESIDENTIAL CARE,2102626230
06.02.2017,CHILDREN'S SERVICES,ARNFIELD CARE LTD,"8,923.36",RESIDENTIAL,RESIDENTIAL CARE,2102626231
06.02.2017,CHILDREN'S SERVICES,CREATING CARE CHOICES LTD,"18,165.65",RESIDENTIAL,RESIDENTIAL CARE,2102626225
06.02.2017,CHILDREN'S SERVICES,LEEDS CITY COUNCIL,"24,342.75",RESIDENTIAL,RESIDENTIAL CARE,2102626227
06.02.2017,CHILDREN'S SERVICES,POTTON HOMES LTD,"1,857.16",RESIDENTIAL,RESIDENTIAL CARE,2102626224
06.02.2017,CHILDREN'S SERVICES,POTTON HOMES LTD,"12,628.58",RESIDENTIAL,RESIDENTIAL CARE,2102626229
06.02.2017,CHILDREN'S SERVICES,REDACTED PERSONAL DATA,"18,600.00",RESIDENTIAL,RESIDENTIAL CARE,2102626226
06.02.2017,CHILDREN'S SERVICES,GALAXY LETTINGS LTD,"1,085.00",S24 CLA,EXTERNAL AGENCIES AND BODIES,2102626245
06.02.2017,CHILDREN'S SERVICES,MY LIFE SEMI-INDEPENDENT PROJECT LTD,"1,920.00",S24 CLA,EXTERNAL AGENCIES AND BODIES,2102626240
06.02.2017,CHILDREN'S SERVICES,NETPEX LTD CORPORATE SERVICES,"5,646.65",S24 CLA,EXTERNAL AGENCIES AND BODIES,2102626233
06.02.2017,CHILDREN'S SERVICES,PURPLE PEBBLES(CHILD CARE) SERVICES,280,S24 CLA,SECTION 17 PAYMENTS TO AGENCIES/CARERS,2102626208
06.02.2017,CHILDREN'S SERVICES,PURPLE PEBBLES(CHILD CARE) SERVICES,280,S24 CLA,SECTION 17 PAYMENTS TO AGENCIES/CARERS,2102626210
06.02.2017,CHILDREN'S SERVICES,PURPLE PEBBLES(CHILD CARE) SERVICES,350,S24 CLA,SECTION 17 PAYMENTS TO AGENCIES/CARERS,2102626202
06.02.2017,CHILDREN'S SERVICES,PURPLE PEBBLES(CHILD CARE) SERVICES,880,S24 CLA,SECTION 17 PAYMENTS TO AGENCIES/CARERS,2102626196
06.02.2017,CHILDREN'S SERVICES,PURPLE PEBBLES(CHILD CARE) SERVICES,"1,226.36",S24 CLA,SECTION 17 PAYMENTS TO AGENCIES/CARERS,2102626201
06.02.2017,CHILDREN'S SERVICES,PURPLE PEBBLES(CHILD CARE) SERVICES,"1,240.00",S24 CLA,SECTION 17 PAYMENTS TO AGENCIES/CARERS,2102626206
06.02.2017,CHILDREN'S SERVICES,PURPLE PEBBLES(CHILD CARE) SERVICES,"1,262.13",S24 CLA,OTHER PAYMENTS FOR CLIENTS,2102626199
06.02.2017,CHILDREN'S SERVICES,PURPLE PEBBLES(CHILD CARE) SERVICES,"1,350.71",S24 CLA,SECTION 17 PAYMENTS TO AGENCIES/CARERS,2102626205
06.02.2017,CHILDREN'S SERVICES,PURPLE PEBBLES(CHILD CARE) SERVICES,"1,350.71",S24 CLA,SECTION 17 PAYMENTS TO AGENCIES/CARERS,2102626207
06.02.2017,CHILDREN'S SERVICES,PURPLE PEBBLES(CHILD CARE) SERVICES,"1,350.71",S24 CLA,SECTION 17 PAYMENTS TO AGENCIES/CARERS,2102626209
06.02.2017,CHILDREN'S SERVICES,PURPLE PEBBLES(CHILD CARE) SERVICES,"1,701.37",S24 CLA,OTHER PAYMENTS FOR CLIENTS,2102626191
06.02.2017,CHILDREN'S SERVICES,PURPLE PEBBLES(CHILD CARE) SERVICES,"1,758.08",S24 CLA,OTHER PAYMENTS FOR CLIENTS,2102626197
06.02.2017,CHILDREN'S SERVICES,STEP AHEAD SERVICES LTD,"1,682.99",S24 CLA,EXTERNAL AGENCIES AND BODIES,2102626237
06.02.2017,CHILDREN'S SERVICES,STEP AHEAD SERVICES LTD,"1,682.99",S24 CLA,EXTERNAL AGENCIES AND BODIES,2102626242
06.02.2017,CHILDREN'S SERVICES,STEP AHEAD SERVICES LTD,"2,081.34",S24 CLA,EXTERNAL AGENCIES AND BODIES,2102626269
06.02.2017,CHILDREN'S SERVICES,STEP AHEAD SERVICES LTD,"2,081.43",S24 CLA,EXTERNAL AGENCIES AND BODIES,2102626238
06.02.2017,CHILDREN'S SERVICES,IMPERIAL COLLEGE LONDON,"9,000.00",SCHOLARSHIP SCHEME,EXTERNAL AGENCIES AND BODIES,5902235099
06.02.2017,CHILDREN'S SERVICES,IMPERIAL COLLEGE LONDON,"9,000.00",SCHOLARSHIP SCHEME,EXTERNAL AGENCIES AND BODIES,5902235101
06.02.2017,CHILDREN'S SERVICES,STEP AHEAD SERVICES LTD,"3,788.57",SEMI INDEPENDENT,EXTERNAL AGENCIES AND BODIES,2102626249
06.02.2017,CHILDREN'S SERVICES,STEP AHEAD SERVICES LTD,"4,517.14",SEMI INDEPENDENT,EXTERNAL AGENCIES AND BODIES,2102626248
06.02.2017,CHILDREN'S SERVICES,STEP AHEAD SERVICES LTD,"4,517.14",SEMI INDEPENDENT,EXTERNAL AGENCIES AND BODIES,2102626250
06.02.2017,CHILDREN'S SERVICES,LOGICOUS LTD,960.95,SPECIAL GUARDIANSHIP,EXTERNAL AGENCIES AND BODIES,5902235164
06.02.2017,CHILDREN'S SERVICES,REDACTED PERSONAL DATA,"-1,489.94",SPECIAL GUARDIANSHIP,PAYMENTS TO CARERS,2102626220
06.02.2017,CHILDREN'S SERVICES,REDACTED PERSONAL DATA,"2,552.78",SPECIAL GUARDIANSHIP,PAYMENTS TO CARERS,2102626221
06.02.2017,CHILDREN'S SERVICES,REDACTED PERSONAL DATA,"2,552.78",SPECIAL GUARDIANSHIP,PAYMENTS TO CARERS,2102626222
06.02.2017,CHILDREN'S SERVICES,CHARLIE CHAPLIN ADVENTURE PLAYGROUND,"1,404.92",SPECIALIST CARE,SECTION 17 PAYMENTS TO AGENCIES/CARERS,5902235116
06.02.2017,CHILDREN'S SERVICES,THORNBURY NURSING SERVICES,"6,458.02",SPECIALIST CARE,SECTION 17 PAYMENTS TO AGENCIES/CARERS,2102626223
06.02.2017,CHILDREN'S SERVICES,A & M ACCOMMODATION SERVICES LTD,"1,085.00",UASC SECTION 24,EXTERNAL AGENCIES AND BODIES,2102626236
06.02.2017,CHILDREN'S SERVICES,PURPLE PEBBLES(CHILD CARE) SERVICES,450,UASC SECTION 24,SECTION 17 PAYMENTS TO AGENCIES/CARERS,2102626204
06.02.2017,CHILDREN'S SERVICES,PURPLE PEBBLES(CHILD CARE) SERVICES,"1,173.57",UASC SECTION 24,SECTION 17 PAYMENTS TO AGENCIES/CARERS,2102626198
06.02.2017,CHILDREN'S SERVICES,PURPLE PEBBLES(CHILD CARE) SERVICES,"1,217.86",UASC SECTION 24,SECTION 17 PAYMENTS TO AGENCIES/CARERS,2102626203
06.02.2017,CHILDREN'S SERVICES,PURPLE PEBBLES(CHILD CARE) SERVICES,"1,727.14",UASC SECTION 24,SECTION 17 PAYMENTS TO AGENCIES/CARERS,2102626200
06.02.2017,CHILDREN'S SERVICES,STEP AHEAD SERVICES LTD,"1,682.99",UASC SECTION 24,EXTERNAL AGENCIES AND BODIES,2102626241
06.02.2017,CHILDREN'S SERVICES,STEP AHEAD SERVICES LTD,"1,682.99",UASC SECTION 24,EXTERNAL AGENCIES AND BODIES,2102626244
06.02.2017,CHILDREN'S SERVICES,STEP AHEAD SERVICES LTD,"2,081.34",UASC SECTION 24,EXTERNAL AGENCIES AND BODIES,2102626239
06.02.2017,CHILDREN'S SERVICES,STEP AHEAD SERVICES LTD,"2,081.34",UASC SECTION 24,EXTERNAL AGENCIES AND BODIES,2102626243
06.02.2017,CHILDREN'S SERVICES,STEP AHEAD SERVICES LTD,"3,357.00",UASC SECTION 24,EXTERNAL AGENCIES AND BODIES,2102626268
06.02.2017,CHILDREN'S SERVICES,STEP AHEAD SERVICES LTD,"4,517.14",UASC SECTION 24,EXTERNAL AGENCIES AND BODIES,2102626235
06.02.2017,CHILDREN'S SERVICES,STEP AHEAD SERVICES LTD,"2,081.34",UNACCOMPANIED ASYLUM CHILDREN 16-17,EXTERNAL AGENCIES AND BODIES,2102626247
06.02.2017,COLLECTION FUNDS,GREATER LONDON AUTHORITY,"2,595,572.70",GLA PRECEPT,LEVIES,5902235197
06.02.2017,COMMUNITIES,LETTSOM MOVE FORWARD T&RA,"3,200.00",JOINT SECURITY INITIATIVES,GRANTS,5902235128
06.02.2017,CUSTOMER EXPERIENCE HGF,HANSEN PALOMARES SOLICITORS,"5,862.57",HOMELESS & HOUSING OPTIONS MGT,LEGAL FEES & COURT COSTS,2102626093
06.02.2017,CUSTOMER EXPERIENCE HGF,TFL TELESALES / OYSTER FULFILMENT,255,HOMELESS & HOUSING OPTIONS MGT,PUBLIC TRANSPORT,5902235149
06.02.2017,ENVIRONMENT AND LEISURE,1GAS & POWER LTD,"5,463.28",CAPITAL PS (LEISURE),CONSTRUCTION FEES  - EXTERNAL,5902235277
06.02.2017,ENVIRONMENT AND LEISURE,F M CONWAY LTD,"-2,423.04",CAPITAL PS (LEISURE),CONST'N MAIN CONTRACT - NON CERTIFICATED,2102626472
06.02.2017,ENVIRONMENT AND LEISURE,F M CONWAY LTD,"2,423.04",CAPITAL PS (LEISURE),CONST'N MAIN CONTRACT - NON CERTIFICATED,2102621765
06.02.2017,ENVIRONMENT AND LEISURE,MATERIALS SCIENCE CONSULTANTS LTD,"1,500.00",CAPITAL PS (LEISURE),CONSTRUCTION FEES - ARCHITECT,5902235283
06.02.2017,ENVIRONMENT AND LEISURE,MATERIALS SCIENCE CONSULTANTS LTD,"1,800.00",CAPITAL PS (LEISURE),CONSTRUCTION FEES - ARCHITECT,5902235280
06.02.2017,ENVIRONMENT AND LEISURE,WESTCO TRADING LTD,"1,980.00",CAPITAL PS (LEISURE),CONSTRUCTION FEES  - EXTERNAL,5902235147
06.02.2017,ENVIRONMENT DIRECTORATE,COMPASS SCHOOL SOUTHWARK,920,BCP CYCLING GRANTS FOR SCHOOLS,GRANTS,5902235123
06.02.2017,ENVIRONMENT DIRECTORATE,LEX AUTOLEASE,"1,213.53",CAR LEASING CTRL A/C,VEHICLE LICENCES,5902235100
06.02.2017,ENVIRONMENT DIRECTORATE,LEX AUTOLEASE,"1,286.38",CAR LEASING CTRL A/C,VEHICLE LICENCES,5902235100
06.02.2017,ENVIRONMENT DIRECTORATE,LEX AUTOLEASE,"18,964.97",CAR LEASING CTRL A/C,PARKING CHARGES,5902235105
06.02.2017,ENVIRONMENT DIRECTORATE,LEX AUTOLEASE,"19,140.58",CAR LEASING CTRL A/C,VEHICLE LICENCES,5902235103
06.02.2017,ENVIRONMENT DIRECTORATE,LEX AUTOLEASE,"19,174.60",CAR LEASING CTRL A/C,VEHICLE LICENCES,5902235103
06.02.2017,ENVIRONMENT DIRECTORATE,LEX AUTOLEASE,"19,381.04",CAR LEASING CTRL A/C,PARKING CHARGES,5902235105
06.02.2017,ENVIRONMENT DIRECTORATE,TRANSPORT FOR LONDON,"5,658.00",COMMERCIAL VEH CTRL A/C,CONGESTION CHARGE,5902235236
06.02.2017,ENVIRONMENT DIRECTORATE,THAMES WATER UTILITIES LTD,459.78,JETS NORTH TEAM,LEGAL FEES & COURT COSTS,2102626103
06.02.2017,ENVIRONMENT DIRECTORATE,ST JOHN AMBULANCE KENT,720,MANAGEMENT TEAM,TRAINING,5902180389
06.02.2017,ENVIRONMENT DIRECTORATE,ST JOHN AMBULANCE KENT,"2,240.00",MANAGEMENT TEAM,TRAINING,5902235209
06.02.2017,ENVIRONMENT DIRECTORATE,GREENHAM TRADING LTD,296.76,NON HOUSING GROUNDS,MATERIALS,5902235144
06.02.2017,ENVIRONMENT DIRECTORATE,SOUTHWARK NEWSPAPER LTD,288,STREET WORKS OVERHEADS,MARKETING & PUBLICITY SERVICES,5902235138
06.02.2017,ENVIRONMENT DIRECTORATE,REDACTED PERSONAL DATA,652.43,TRADING STANDARDS,LEGAL FEES & COURT COSTS,5902228802
06.02.2017,ENVIRONMENT DIRECTORATE,NATIONAL CRIME AGENCY,"1,057.00",TRADING STANDARDS,SUBSCRIPTIONS,5902235142
06.02.2017,F & C S EXCLUDING CORPORATE BUDGETS,DSI BILLING SERVICES LTD,"2,430.50",ADMINISTRATIVE SUPPORT,POSTAGES,5902234945
06.02.2017,F & C S EXCLUDING CORPORATE BUDGETS,LA VITA NUOVA,"2,450.00",CHILDREN'S SERVICES FINANCE TEAM,TRAINING,5902234716
06.02.2017,F & C S EXCLUDING CORPORATE BUDGETS,UNIONLINE,338.2,CORPORATE SERVICES,LEGAL FEES & COURT COSTS,2102626105
06.02.2017,F & C S EXCLUDING CORPORATE BUDGETS,THE INTERNATIONAL DISPUTE RESOLUTION CENTRE LTD,613.97,FINANCE DIRECTOR,LEGAL FEES & COURT COSTS,2102626104
06.02.2017,F & C S EXCLUDING CORPORATE BUDGETS,COMMUNITY SOUTHWARK,"9,862.50",SESS,EXTERNAL AGENCIES AND BODIES,5902235111
06.02.2017,HOUSING,STANDAGE & CO LTD,388.91,STANDAGE,MANUAL CREDITORS,5902235259
06.02.2017,HOUSING,CROSSFOLD ELECTRICAL WHOLESALERS,370,STORES,CREDITORS -GR/IR CLEARING ACCOUNT,5902235241
06.02.2017,HOUSING,CROSSFOLD ELECTRICAL WHOLESALERS,435,STORES,CREDITORS -GR/IR CLEARING ACCOUNT,5902235241
06.02.2017,HOUSING,CROSSFOLD ELECTRICAL WHOLESALERS,"1,271.60",STORES,CREDITORS -GR/IR CLEARING ACCOUNT,5902235241
06.02.2017,HOUSING,CROSSFOLD ELECTRICAL WHOLESALERS,"1,366.00",STORES,CREDITORS -GR/IR CLEARING ACCOUNT,5902235241
06.02.2017,HOUSING,GRAFTON MERCHANTING GB LTD,330.75,STORES,CREDITORS -GR/IR CLEARING ACCOUNT,5902235159
06.02.2017,HOUSING,LONDON TOOLS LIMITED,632.5,STORES,CREDITORS -GR/IR CLEARING ACCOUNT,5902235137
06.02.2017,HOUSING,MARTIN VITERA LTD,530,STORES,CREDITORS -GR/IR CLEARING ACCOUNT,5902235296
06.02.2017,HOUSING,SMI GROUP,271.08,STORES,CREDITORS -GR/IR CLEARING ACCOUNT,5902235267
06.02.2017,HOUSING GENERAL FUND,INTERSERVE (FACILITIES MANAGEMENT),"-34,916.18",CAPITAL PS (REGEN),CONSTRUCTION,5902235463
06.02.2017,HOUSING GENERAL FUND,INTERSERVE (FACILITIES MANAGEMENT),"34,916.18",CAPITAL PS (REGEN),CONSTRUCTION,5902235358
06.02.2017,HOUSING HRA,CALFORD SEADEN LLP,"2,442.49",CAPITAL PS (HRA),CONSTRUCTION FEES  - EXTERNAL,5902235250
06.02.2017,HOUSING HRA,CALFORD SEADEN LLP,"2,850.75",CAPITAL PS (HRA),CONSTRUCTION FEES  - EXTERNAL,5902235262
06.02.2017,HOUSING HRA,JOHN BURKE ASSOCIATES,256,CAPITAL PS (HRA),LAND & BUILDINGS ACQUISITION FEES,5902235244
06.02.2017,HOUSING HRA,JOHN BURKE ASSOCIATES,320,CAPITAL PS (HRA),LAND & BUILDINGS ACQUISITION FEES,5902235239
06.02.2017,HOUSING HRA,JOHN BURKE ASSOCIATES,448,CAPITAL PS (HRA),LAND & BUILDINGS ACQUISITION FEES,5902235230
06.02.2017,HOUSING HRA,JOHN BURKE ASSOCIATES,448,CAPITAL PS (HRA),LAND & BUILDINGS ACQUISITION FEES,5902235242
06.02.2017,HOUSING HRA,JOHN BURKE ASSOCIATES,544,CAPITAL PS (HRA),LAND & BUILDINGS ACQUISITION FEES,5902235235
06.02.2017,HOUSING HRA,JOHN BURKE ASSOCIATES,544,CAPITAL PS (HRA),LAND & BUILDINGS ACQUISITION FEES,5902235237
06.02.2017,HOUSING HRA,JOHN BURKE ASSOCIATES,608,CAPITAL PS (HRA),LAND & BUILDINGS ACQUISITION FEES,5902235226
06.02.2017,HOUSING HRA,JOHN BURKE ASSOCIATES,640,CAPITAL PS (HRA),LAND & BUILDINGS ACQUISITION FEES,5902235248
06.02.2017,HOUSING HRA,JOHN BURKE ASSOCIATES,768,CAPITAL PS (HRA),LAND & BUILDINGS ACQUISITION FEES,5902235247
06.02.2017,HOUSING HRA,JOHN BURKE ASSOCIATES,928,CAPITAL PS (HRA),LAND & BUILDINGS ACQUISITION FEES,5902235232
06.02.2017,HOUSING HRA,JOHN BURKE ASSOCIATES,"1,056.00",CAPITAL PS (HRA),LAND & BUILDINGS ACQUISITION FEES,5902235240
06.02.2017,HOUSING HRA,MOTT MACDONALD LTD,"9,500.00",CAPITAL PS (HRA),CONSTRUCTION FEES  - EXTERNAL,5902235180
06.02.2017,HOUSING HRA,PACE CONSULT LTD,"1,500.00",CAPITAL PS (HRA),CONSTRUCTION FEES  - EXTERNAL,5902234761
06.02.2017,LEISURE DIRECTORATE,SECOM PLC,585.7,BURGESS AREA TEAM,OTHER R&M,5902235255
06.02.2017,LEISURE DIRECTORATE,THE ULTIMATE PROMOTION,531,COMMUNITY SPORTS SMALL GRANTS,"CLOTHING, UNIFORMS & LAUNDRY",5902235266
06.02.2017,LEISURE DIRECTORATE,KENT COUNTY COUNCIL - LASER,"2,599.12",JOHN HARVARD LIBRARY,ELECTRICITY,5902235174
06.02.2017,LEISURE DIRECTORATE,THAMES WATER UTILITIES LTD,426.34,PECKHAM RYE AREA TEAM,WATER,5902235251
06.02.2017,MODERNISATION HGF,ENCODED MEDIA (UK) LTD,423,160 TOOLEY ST.,COMPUTER MAINTENANCE,5902235271
06.02.2017,MODERNISATION HGF,KENT COUNTY COUNCIL - LASER,"3,588.46",160 TOOLEY ST.,GAS,5902235106
06.02.2017,MODERNISATION HGF,ANDERSON TRAVEL LTD,295,CORP. TRAINING BUDGETS,TRAINING,5902235167
06.02.2017,MODERNISATION HGF,ST JOHN AMBULANCE KENT,-950,CORP. TRAINING BUDGETS,TRAINING,5902162748
06.02.2017,MODERNISATION HGF,SHERRIDAN HUGHES,475,OCCUPATIONAL ASSESSMENT,CONSULTANTS SERVICES,5902234818
06.02.2017,MODERNISATION HGF,OPTIMA HEALTH,"7,171.79",OPTIMA HEALTH,MEDICAL / HEALTH & SAFETY SERVICES,5902234722
06.02.2017,MODERNISATION HGF,OPTIMA HEALTH,"30,574.46",OPTIMA HEALTH,MEDICAL / HEALTH & SAFETY SERVICES,5902234722
06.02.2017,MODERNISATION HGF,KIER FACILITIES SERVICES LTD,609.45,PLANNED FM SERVICES BY KIER,BUILDING R&M,5902235265
06.02.2017,REGENERATION,PROBYN GIBBS ASSOCIATES,350,CAPITAL PS (REGEN),CONSTRUCTION FEES,5902235124
06.02.2017,REGENERATION,PROBYN GIBBS ASSOCIATES,"1,208.00",CAPITAL PS (REGEN),CONSTRUCTION FEES,5902235121
06.02.2017,RESIDENT SERVICES,A & H PEST CONTROL LTD,490,NUNHEAD,PEST CONTROL,5902235189
06.02.2017,RESIDENT SERVICES,ANTHONY GOLD SOLICITORS,"7,434.80",OPERATIONS/OFFICES ACCOMMODATION,LEGAL FEES & COURT COSTS,2102626086
06.02.2017,RESIDENT SERVICES,ANTHONY GOLD SOLICITORS,"10,000.00",OPERATIONS/OFFICES ACCOMMODATION,LEGAL FEES & COURT COSTS,2102626085
06.02.2017,RESIDENT SERVICES,BELSHAW & CURTIN SOLICITORS,"3,250.00",OPERATIONS/OFFICES ACCOMMODATION,LEGAL FEES & COURT COSTS,2102626088
06.02.2017,RESIDENT SERVICES,BELSHAW & CURTIN SOLICITORS,"9,000.00",OPERATIONS/OFFICES ACCOMMODATION,LEGAL FEES & COURT COSTS,2102626087
06.02.2017,RESIDENT SERVICES,CLARKE BARNES SOLICITORS LLP,"1,850.00",OPERATIONS/OFFICES ACCOMMODATION,LEGAL FEES & COURT COSTS,2102626092
06.02.2017,RESIDENT SERVICES,HARBOTTLE ASSOCIATES,400,OPERATIONS/OFFICES ACCOMMODATION,LEGAL FEES & COURT COSTS,2102626094
06.02.2017,RESIDENT SERVICES,LEWIS & CO SOLICITORS,500,OPERATIONS/OFFICES ACCOMMODATION,LEGAL FEES & COURT COSTS,2102626098
06.02.2017,RESIDENT SERVICES,SETFORDS SOLICITORS,"3,500.00",OPERATIONS/OFFICES ACCOMMODATION,LEGAL FEES & COURT COSTS,2102626101
06.02.2017,RESIDENT SERVICES,SETFORDS SOLICITORS,"5,000.00",OPERATIONS/OFFICES ACCOMMODATION,LEGAL FEES & COURT COSTS,2102626102
06.02.2017,RESIDENT SERVICES,LONDON TOOLS LIMITED,315,TA HOSTELS,MATERIALS,5902235130
06.02.2017,RESIDENT SERVICES,CROWN HOUSING LTD,280,TA PLACEMENTS,RENTS,5902235249
06.02.2017,RESIDENT SERVICES HGF,THE MANNA CENTRE,"13,750.00",MANNA CENTRE CO-ORDINATOR,GRANTS,5902235084
06.02.2017,SOUTHWARK BUILDING SERVICES,KENT COUNTY COUNCIL - LASER,495.87,BUSINESS SUPPORT,VEHICLE FUEL,5902235139
06.02.2017,SOUTHWARK BUILDING SERVICES,LAURA ROBINSON,"2,740.00",BUSINESS SUPPORT,LEGAL FEES & COURT COSTS,2102626097
06.02.2017,SOUTHWARK BUILDING SERVICES,GRAFTON MERCHANTING GB LTD,400.25,COMMUNAL GROUNDWORK TEAM,MATERIALS,5902235155
06.02.2017,SOUTHWARK BUILDING SERVICES,GRAFTON MERCHANTING GB LTD,465.31,COMMUNAL GROUNDWORK TEAM,MATERIALS,5902235155
06.02.2017,SOUTHWARK BUILDING SERVICES,BRITISH GAS BUSINESS,670.33,DEPOT COSTS,GAS,5902235219
06.02.2017,SOUTHWARK BUILDING SERVICES,BRITISH GAS BUSINESS,"1,655.25",DEPOT COSTS,GAS,5902235222
06.02.2017,SOUTHWARK BUILDING SERVICES,SIEMENS FINANCIAL SERVICES LIMITED,"1,740.00",DEPOT COSTS,OP LEASE/HIRE CHARGES:PLANT/EQUIP/FURNIT,5902235228
06.02.2017,SOUTHWARK BUILDING SERVICES,CASTLETON TECHNOLOGY PLC,"1,132.50",ICT & COMMUNICATIONS,SOFTWARE,5902235284
06.02.2017,SOUTHWARK BUILDING SERVICES,CASTLETON TECHNOLOGY PLC,"9,302.00",ICT & COMMUNICATIONS,SOFTWARE,5902235284
06.02.2017,SOUTHWARK BUILDING SERVICES,CASTLETON TECHNOLOGY PLC,"20,466.19",ICT & COMMUNICATIONS,SOFTWARE,5902235284
06.02.2017,SOUTHWARK BUILDING SERVICES,KENT COUNTY COUNCIL - LASER,"2,806.79",ROTHERHITHE VOIDS - CARPENTER,OTHER CONTRACTORS,5902235160
06.02.2017,SOUTHWARK BUILDING SERVICES,KENT COUNTY COUNCIL - LASER,301.63,WALWORTH TM 2 DAY TO DAY - PLUMBER,OTHER CONTRACTORS,5902235165
06.02.2017,STRATEGIC FINANCING BUDGETS,JOHNSON AUSTIN PARTNERSHIP LLP,"1,000.00",PROPERTY RELATED INSURANCE,PROFESSIONAL FEES,5902235135
07.02.2017,ADULT SOCIAL CARE,FIRST UTILITY,320.23,APPOINTEESHIPS,OTHER PAYMENTS FOR CLIENTS,5902235410
07.02.2017,ADULT SOCIAL CARE,REDACTED PERSONAL DATA,600,APPOINTEESHIPS,OTHER PAYMENTS FOR CLIENTS,5902235371
07.02.2017,ADULT SOCIAL CARE,METROPOLITAN SUPPORT TRUST,"80,123.14",CCG DAYCARE,SUPPORTED LIVING,2102626301
07.02.2017,ADULT SOCIAL CARE,ACT TOO LTD,600,LD LTS 18-64,DAYCARE,2102626323
07.02.2017,ADULT SOCIAL CARE,MARCUS AND MARCUS LTD,"4,428.66",LD LTS 18-64,SUPPORTED LIVING,2102626320
07.02.2017,ADULT SOCIAL CARE,MARCUS AND MARCUS LTD,"5,314.33",LD LTS 18-64,SUPPORTED LIVING,2102626316
07.02.2017,ADULT SOCIAL CARE,MARCUS AND MARCUS LTD,"14,880.00",LD LTS 18-64,SUPPORTED LIVING,2102626319
07.02.2017,ADULT SOCIAL CARE,PEOPLE PLUS,"1,779.40",LD LTS 18-64,PAYMENTS TO CLIENTS (DIRECT PAYMENTS),2102626366
07.02.2017,ADULT SOCIAL CARE,REDACTED PERSONAL DATA,"4,000.00",LD LTS 18-64,SUPPORTED LIVING,2102626317
07.02.2017,ADULT SOCIAL CARE,THE NEW SHOOTS,300,LD LTS 18-64,DAYCARE,2102626322
07.02.2017,ADULT SOCIAL CARE,MEDACS HOMECARE,989.83,MEM LTS 18-64,HOMECARE - SPOT,2102626351
07.02.2017,ADULT SOCIAL CARE,YOUTH GRACES (UK) LTD,711.6,MEM LTS 65+,HOMECARE - SPOT,2102626432
07.02.2017,ADULT SOCIAL CARE,HEXAGON HOUSING ASSOCIATION LTD,"1,530.00",MH LTS 18-64,HOMECARE - SPOT,2102626360
07.02.2017,ADULT SOCIAL CARE,REDACTED PERSONAL DATA,"-1,250.80",MH LTS 18-64,HOMECARE - C&V,2102626380
07.02.2017,ADULT SOCIAL CARE,REDACTED PERSONAL DATA,364,MH LTS 18-64,HOMECARE - SPOT,2102626372
07.02.2017,ADULT SOCIAL CARE,REDACTED PERSONAL DATA,"2,226.00",MH LTS 18-64,HOMECARE - SPOT,2102626381
07.02.2017,ADULT SOCIAL CARE,SWEETTREE HOME CARE SERVICES LTD,"2,460.00",MH LTS 18-64,HOMECARE - SPOT,2102626373
07.02.2017,ADULT SOCIAL CARE,PAULWAYS KENNELS,288,PERSONAL BUDGET - SOCIAL CARE,OTHER PAYMENTS FOR CLIENTS,2102626289
07.02.2017,ADULT SOCIAL CARE,DARETHEALTHCARE UK LTD,"1,473.68",PHY LTS 18-64,HOMECARE - SPOT,2102626326
07.02.2017,ADULT SOCIAL CARE,FRESH IDEAS & SOLUTIONS SERVICES CIC,"2,221.97",PHY LTS 18-64,PAYMENTS TO CLIENTS (DIRECT PAYMENTS),2102626391
07.02.2017,ADULT SOCIAL CARE,MEDACS HOMECARE,700.83,PHY LTS 18-64,HOMECARE - SPOT,2102626348
07.02.2017,ADULT SOCIAL CARE,MEDACS HOMECARE,"2,181.95",PHY LTS 18-64,HOMECARE - SPOT,2102626337
07.02.2017,ADULT SOCIAL CARE,METRO HOMECARE LTD,250.53,PHY LTS 18-64,HOMECARE - SPOT,2102626332
07.02.2017,ADULT SOCIAL CARE,METRO HOMECARE LTD,"1,349.00",PHY LTS 18-64,HOMECARE - SPOT,2102626336
07.02.2017,ADULT SOCIAL CARE,PEOPLE PLUS,255.17,PHY LTS 18-64,PAYMENTS TO CLIENTS (DIRECT PAYMENTS),2102626369
07.02.2017,ADULT SOCIAL CARE,PEOPLE PLUS,"1,783.75",PHY LTS 18-64,PAYMENTS TO CLIENTS (DIRECT PAYMENTS),2102626371
07.02.2017,ADULT SOCIAL CARE,RNIB COMMUNITY LIVING SERVICE,"6,711.18",PHY LTS 18-64,SUPPORTED LIVING,2102626390
07.02.2017,ADULT SOCIAL CARE,SUNRISE DAY CARE CENTRE,900.08,PHY LTS 18-64,HOMECARE - SPOT,2102626321
07.02.2017,ADULT SOCIAL CARE,YOUTH GRACES (UK) LTD,256.35,PHY LTS 18-64,HOMECARE - SPOT,2102626423
07.02.2017,ADULT SOCIAL CARE,YOUTH GRACES (UK) LTD,969.57,PHY LTS 18-64,HOMECARE - SPOT,2102626414
07.02.2017,ADULT SOCIAL CARE,AGE CONCERN LEWISHAM & SOUTHWARK,"2,700.00",PHY LTS 65+,DAYCARE,2102626364
07.02.2017,ADULT SOCIAL CARE,CARE UK HOMECARE,938.66,PHY LTS 65+,HOMECARE - SPOT,2102626328
07.02.2017,ADULT SOCIAL CARE,DARETHEALTHCARE UK LTD,963.57,PHY LTS 65+,HOMECARE - C&V,2102626330
07.02.2017,ADULT SOCIAL CARE,FIRST CHOICE SOCIAL CARE & HOUSING,-293.34,PHY LTS 65+,HOMECARE - C&V,2102626392
07.02.2017,ADULT SOCIAL CARE,FIRST CHOICE SOCIAL CARE & HOUSING,451.29,PHY LTS 65+,HOMECARE - SPOT,2102626374
07.02.2017,ADULT SOCIAL CARE,MEDACS HOMECARE,599.68,PHY LTS 65+,HOMECARE - SPOT,2102626343
07.02.2017,ADULT SOCIAL CARE,MEDACS HOMECARE,787.53,PHY LTS 65+,HOMECARE - SPOT,2102626341
07.02.2017,ADULT SOCIAL CARE,MEDACS HOMECARE,"1,213.80",PHY LTS 65+,HOMECARE - SPOT,2102626340
07.02.2017,ADULT SOCIAL CARE,METRO HOMECARE LTD,290.04,PHY LTS 65+,HOMECARE - SPOT,2102626325
07.02.2017,ADULT SOCIAL CARE,METRO HOMECARE LTD,370.98,PHY LTS 65+,HOMECARE - SPOT,2102626335
07.02.2017,ADULT SOCIAL CARE,METRO HOMECARE LTD,394.58,PHY LTS 65+,HOMECARE - SPOT,2102626350
07.02.2017,ADULT SOCIAL CARE,METRO HOMECARE LTD,445.17,PHY LTS 65+,HOMECARE - SPOT,2102626344
07.02.2017,ADULT SOCIAL CARE,METRO HOMECARE LTD,465.41,PHY LTS 65+,HOMECARE - SPOT,2102626349
07.02.2017,ADULT SOCIAL CARE,METRO HOMECARE LTD,708.23,PHY LTS 65+,HOMECARE - SPOT,2102626338
07.02.2017,ADULT SOCIAL CARE,METRO HOMECARE LTD,849.87,PHY LTS 65+,HOMECARE - SPOT,2102626327
07.02.2017,ADULT SOCIAL CARE,METRO HOMECARE LTD,849.87,PHY LTS 65+,HOMECARE - SPOT,2102626339
07.02.2017,ADULT SOCIAL CARE,METRO HOMECARE LTD,849.87,PHY LTS 65+,HOMECARE - SPOT,2102626347
07.02.2017,ADULT SOCIAL CARE,METRO HOMECARE LTD,849.87,PHY LTS 65+,HOMECARE - SPOT,2102626352
07.02.2017,ADULT SOCIAL CARE,METRO HOMECARE LTD,957.79,PHY LTS 65+,HOMECARE - SPOT,2102626345
07.02.2017,ADULT SOCIAL CARE,PEOPLE PLUS,-334.4,PHY LTS 65+,PAYMENTS TO CLIENTS (DIRECT PAYMENTS),2102626396
07.02.2017,ADULT SOCIAL CARE,PEOPLE PLUS,407.56,PHY LTS 65+,PAYMENTS TO CLIENTS (DIRECT PAYMENTS),2102626388
07.02.2017,ADULT SOCIAL CARE,RA CARE SERVICES LTD,"2,749.60",PHY LTS 65+,HOMECARE - SPOT,2102626389
07.02.2017,ADULT SOCIAL CARE,REDACTED PERSONAL DATA,"-6,061.00",PHY LTS 65+,PAYMENTS TO CLIENTS (DIRECT PAYMENTS),2102626383
07.02.2017,ADULT SOCIAL CARE,REDACTED PERSONAL DATA,"7,121.82",PHY LTS 65+,PAYMENTS TO CLIENTS (DIRECT PAYMENTS),2102626393
07.02.2017,ADULT SOCIAL CARE,YOUTH GRACES (UK) LTD,276.58,PHY LTS 65+,HOMECARE - SPOT,2102626426
07.02.2017,ADULT SOCIAL CARE,YOUTH GRACES (UK) LTD,276.59,PHY LTS 65+,HOMECARE - SPOT,2102626436
07.02.2017,ADULT SOCIAL CARE,YOUTH GRACES (UK) LTD,377.86,PHY LTS 65+,HOMECARE - SPOT,2102626429
07.02.2017,ADULT SOCIAL CARE,YOUTH GRACES (UK) LTD,377.93,PHY LTS 65+,HOMECARE - SPOT,2102626454
07.02.2017,ADULT SOCIAL CARE,YOUTH GRACES (UK) LTD,492.46,PHY LTS 65+,HOMECARE - SPOT,2102626438
07.02.2017,ADULT SOCIAL CARE,YOUTH GRACES (UK) LTD,543.06,PHY LTS 65+,HOMECARE - C&V,2102626457
07.02.2017,ADULT SOCIAL CARE,HM COURTS & TRIBUNALS SERVICE,549.69,PROVIDER SERVICES MANAGEMENT,LEGAL FEES & COURT COSTS,2102627259
07.02.2017,ADULT SOCIAL CARE,MEDACS HOMECARE,379,REABLEMENT SERVICE,PARKING CHARGES,5902235363
07.02.2017,ADULT SOCIAL CARE,MEDACS HOMECARE,"1,028.16",REABLEMENT SERVICE,CAR MILEAGE EXPENSES,5902235362
07.02.2017,ADULT SOCIAL CARE,MEDACS HOMECARE,"21,398.30",REABLEMENT SERVICE,HOMECARE - IC,5902235361
07.02.2017,ADULT SOCIAL CARE,RED ALERT LTD,400,SOUTHWARK RESOURCE CENTRE,EQUIPMENT PURCHASE & REPAIR,5902235435
07.02.2017,ASSET MANAGEMENT,EG TRAINING SERVICES,"1,821.60",ENG CONTRACTS,TRAINING,5902235387
07.02.2017,ASSET MANAGEMENT,POTTER RAPER AND PARTNERS,"1,359.94",HIP MAJOR WORKS,TRAINING,5902235448
07.02.2017,ASSET MANAGEMENT,BRIDGEWATER ROOFING CONTRACTORS LTD,340,R&M CONTRACTS (NORTH),OTHER R&M,2102626484
07.02.2017,ASSET MANAGEMENT,BRIDGEWATER ROOFING CONTRACTORS LTD,"1,511.00",R&M CONTRACTS (NORTH),OTHER R&M,2102626485
07.02.2017,ASSET MANAGEMENT,BRIDGEWATER ROOFING CONTRACTORS LTD,"3,562.50",REPAIRS OPERATIONS,OTHER R&M,2102626486
07.02.2017,CENTRAL FUNCTIONS,HMCTS,255,HOME OWNERSHIP,LEGAL FEES & COURT COSTS,5902235451
07.02.2017,CENTRAL FUNCTIONS,REDACTED PERSONAL DATA,996.76,HOME OWNERSHIP INCOME,HOUSING RESIDENTIAL RENTS,5902235419
07.02.2017,CENTRAL FUNCTIONS,REDACTED PERSONAL DATA,495.63,HOME OWNERSHIP INCOME,HOUSING RESIDENTIAL RENTS,5902235380
07.02.2017,CENTRAL FUNCTIONS,NUNHEADS VOICE LTD,650,TENANTS FUND,COMPUTER CONSUMABLES,5902235377
07.02.2017,CHIEF EXECUTIVE,CONWAY AECOM LTD,638.21,CAPITAL PS (REGEN),CONSTRUCTION MAIN CONTRACT -CERTIFICATED,5902235420
07.02.2017,CHIEF EXECUTIVE,CONWAY AECOM LTD,"4,029.09",CAPITAL PS (REGEN),CONSTR'N SUB CONTRACT - NON CERTIFICATED,5902235378
07.02.2017,CHIEF EXECUTIVE,CONWAY AECOM LTD,"12,352.34",CAPITAL PS (REGEN),CONSTR'N SUB CONTRACT - NON CERTIFICATED,2102626471
07.02.2017,CHIEF EXECUTIVE,CONWAY AECOM LTD,"24,463.22",CAPITAL PS (REGEN),CONSTR'N SUB CONTRACT - NON CERTIFICATED,2102626473
07.02.2017,CHILDREN AND ADULT,RUSSELL TREW LIMITED,"-3,621.25",CAPITAL PS (EDUCATION),CONSTRUCTION MAIN CONTRACT -CERTIFICATED,5902235670
07.02.2017,CHILDREN AND ADULT,RUSSELL TREW LIMITED,"3,621.25",CAPITAL PS (EDUCATION),CONSTRUCTION MAIN CONTRACT -CERTIFICATED,5902235487
07.02.2017,CHILDREN'S SERVICES,JAMES MARTIN MUGWANYA T/A JOHN SMITH REMOVALS,732.6,AIS - IHT,OTHER PAYMENTS FOR CLIENTS,5902235346
07.02.2017,CHILDREN'S SERVICES,KENT COUNTY COUNCIL - LASER,342.44,CAMBERWELL GROVE EARLY YEARS CENTRE,GAS,5902235311
07.02.2017,CHILDREN'S SERVICES,KENT COUNTY COUNCIL - LASER,428.06,CAMBERWELL GROVE EARLY YEARS CENTRE,GAS,5902235309
07.02.2017,CHILDREN'S SERVICES,KENT COUNTY COUNCIL - LASER,540.41,CAMBERWELL GROVE EARLY YEARS CENTRE,GAS,5902235318
07.02.2017,CHILDREN'S SERVICES,KENT COUNTY COUNCIL - LASER,600.71,CAMBERWELL GROVE EARLY YEARS CENTRE,GAS,5902235320
07.02.2017,CHILDREN'S SERVICES,KENT COUNTY COUNCIL - LASER,694.57,CAMBERWELL GROVE EARLY YEARS CENTRE,GAS,5902235322
07.02.2017,CHILDREN'S SERVICES,REDACTED PERSONAL DATA,"3,428.90",CLA TEAM SAFEGUARDING,PROFESSIONAL FEES,5902235443
07.02.2017,CHILDREN'S SERVICES,REVIEWING OPTIONS LTD,"1,340.10",CLA TEAM SAFEGUARDING,PROFESSIONAL FEES,5902235459
07.02.2017,CHILDREN'S SERVICES,KIRA INDEPENDENT LTD,"2,200.00",DISABILITY & HIV,PAYMENTS TO CARERS,5902235398
07.02.2017,CHILDREN'S SERVICES,CHILDREN AND FAMILIES ACROSS BORDERS,"1,250.00",FAMILY ASSESSMENTS,RESIDENTIAL CARE,5902235355
07.02.2017,CHILDREN'S SERVICES,SKC PSYCHOLOGY LTD,897.6,FAMILY ASSESSMENTS,RESIDENTIAL CARE,5902235353
07.02.2017,CHILDREN'S SERVICES,REDACTED PERSONAL DATA,254.5,FRIENDS & FAMILY FOSTERING,ADDITIONAL PAYMENTS TO AGENCIES/CARERS,2102626315
07.02.2017,CHILDREN'S SERVICES,REDACTED PERSONAL DATA,"2,524.43",FRIENDS & FAMILY FOSTERING,PAYMENTS TO CARERS,2102626469
07.02.2017,CHILDREN'S SERVICES,REDACTED PERSONAL DATA,"2,524.43",FRIENDS & FAMILY FOSTERING,PAYMENTS TO CARERS,2102626470
07.02.2017,CHILDREN'S SERVICES,HEALTHCARE & TRANSPORT SERVICE,"49,497.75",HOME 2 SCHOOL TRANSPORT,HIRED VEHICLES,5902235370
07.02.2017,CHILDREN'S SERVICES,OLIVER GOLDSMITH PRIMARY SCHOOL,"3,000.00",INTERVENTION FUND,CONSULTANTS SERVICES,5902235433
07.02.2017,CHILDREN'S SERVICES,FLEET TUTORS,"12,937.50",LAC EDUCATION,EXTERNAL AGENCIES AND BODIES,5902235359
07.02.2017,CHILDREN'S SERVICES,BEVERLEY F NUNNERY & CO,"2,575.95",LEGAL,LEGAL FEES & COURT COSTS,2102626089
07.02.2017,CHILDREN'S SERVICES,HM COURTS & TRIBUNALS SERVICE,455,LEGAL,LEGAL FEES & COURT COSTS,2102627271
07.02.2017,CHILDREN'S SERVICES,HM COURTS & TRIBUNALS SERVICE,455,LEGAL,LEGAL FEES & COURT COSTS,2102627276
07.02.2017,CHILDREN'S SERVICES,HM COURTS & TRIBUNALS SERVICE,"2,055.00",LEGAL,LEGAL FEES & COURT COSTS,2102627252
07.02.2017,CHILDREN'S SERVICES,HM COURTS & TRIBUNALS SERVICE,"2,055.00",LEGAL,LEGAL FEES & COURT COSTS,2102627254
07.02.2017,CHILDREN'S SERVICES,HM COURTS & TRIBUNALS SERVICE,"2,055.00",LEGAL,LEGAL FEES & COURT COSTS,2102627261
07.02.2017,CHILDREN'S SERVICES,HM COURTS & TRIBUNALS SERVICE,"2,055.00",LEGAL,LEGAL FEES & COURT COSTS,2102627264
07.02.2017,CHILDREN'S SERVICES,HM COURTS & TRIBUNALS SERVICE,"2,055.00",LEGAL,LEGAL FEES & COURT COSTS,2102627267
07.02.2017,CHILDREN'S SERVICES,HM COURTS & TRIBUNALS SERVICE,"2,055.00",LEGAL,LEGAL FEES & COURT COSTS,2102627275
07.02.2017,CHILDREN'S SERVICES,HM COURTS & TRIBUNALS SERVICE,"2,055.00",LEGAL,LEGAL FEES & COURT COSTS,2102627282
07.02.2017,CHILDREN'S SERVICES,HM COURTS & TRIBUNALS SERVICE,"2,055.00",LEGAL,LEGAL FEES & COURT COSTS,2102627288
07.02.2017,CHILDREN'S SERVICES,HM COURTS & TRIBUNALS SERVICE,"2,055.00",LEGAL,LEGAL FEES & COURT COSTS,2102627292
07.02.2017,CHILDREN'S SERVICES,WILLIAM DEAN,350,LEGAL,LEGAL FEES & COURT COSTS,2102626153
07.02.2017,CHILDREN'S SERVICES,REDACTED PERSONAL DATA,"1,588.72",PLACEMENTS FOR CHILDREN WITH SPEC NEEDS,PAYMENTS TO CLIENTS (DIRECT PAYMENTS),2102626353
07.02.2017,CHILDREN'S SERVICES,THE AMICUS COMMUNITY (ARUNDEL) LTD,"49,785.48",RESIDENTIAL,RESIDENTIAL CARE,5902235118
07.02.2017,CHILDREN'S SERVICES,REDACTED PERSONAL DATA,"1,124.19",S & FAM SUPP - PRAC GRP A SET 14-16,SECTION 17 PAYMENTS TO CLIENTS,5902235343
07.02.2017,CHILDREN'S SERVICES,ZENITH CARS LTD,750,S & FAM SUPP - PRAC GRP A SET 14-16,HIRED VEHICLES,5902235339
07.02.2017,CHILDREN'S SERVICES,ZENITH CARS LTD,608,S & FAM SUPP - PRAC GRP B SET 17-19,HIRED VEHICLES,5902235339
07.02.2017,CHILDREN'S SERVICES,ZENITH CARS LTD,540,S & FAM SUPP - PRAC GRP F SET 29-31,HIRED VEHICLES,5902235339
07.02.2017,CHILDREN'S SERVICES,ST PETERS PRE-SCHOOL,360,SPECIALIST CARE,SECTION 17 PAYMENTS TO CLIENTS,5902235458
07.02.2017,CHILDREN'S SERVICES,THE ARTEMIS TEAM LTD,"3,500.00",UNIVERSITY SUPPORT,RESIDENTIAL CARE,5902235383
07.02.2017,COMMISSIONING & CENTRAL,LOOK AHEAD CARE AND SUPPORT LTD,"23,835.00",SP PROVIDER PAYMENTS,EXTERNAL AGENCIES AND BODIES,2102626299
07.02.2017,COMMISSIONING & CENTRAL,LOOK AHEAD CARE AND SUPPORT LTD,"43,255.00",SP PROVIDER PAYMENTS,EXTERNAL AGENCIES AND BODIES,2102626295
07.02.2017,COMMISSIONING & CENTRAL,LOOK AHEAD CARE AND SUPPORT LTD,"43,705.00",SP PROVIDER PAYMENTS,EXTERNAL AGENCIES AND BODIES,2102626296
07.02.2017,COMMISSIONING & CENTRAL,LOOK AHEAD CARE AND SUPPORT LTD,"52,751.00",SP PROVIDER PAYMENTS,EXTERNAL AGENCIES AND BODIES,2102626298
07.02.2017,COMMISSIONING & CENTRAL,LOOK AHEAD CARE AND SUPPORT LTD,"52,954.98",SP PROVIDER PAYMENTS,EXTERNAL AGENCIES AND BODIES,2102626297
07.02.2017,COMMISSIONING & CENTRAL,LOOK AHEAD CARE AND SUPPORT LTD,"55,500.00",SP PROVIDER PAYMENTS,EXTERNAL AGENCIES AND BODIES,2102626300
07.02.2017,COMMISSIONING & CENTRAL,OASIS AQUILA HOUSING,"16,476.50",SP PROVIDER PAYMENTS,EXTERNAL AGENCIES AND BODIES,2102626302
07.02.2017,COMMISSIONING & CENTRAL,REFUGE,"10,363.41",SP PROVIDER PAYMENTS,EXTERNAL AGENCIES AND BODIES,2102626303
07.02.2017,COMMISSIONING & CENTRAL,REFUGE,"10,363.41",SP PROVIDER PAYMENTS,EXTERNAL AGENCIES AND BODIES,2102626304
07.02.2017,COMMISSIONING & CENTRAL,REFUGE,"10,363.41",SP PROVIDER PAYMENTS,EXTERNAL AGENCIES AND BODIES,2102626305
07.02.2017,COMMISSIONING & CENTRAL,REFUGE,"20,726.83",SP PROVIDER PAYMENTS,EXTERNAL AGENCIES AND BODIES,2102626306
07.02.2017,COMMISSIONING & CENTRAL,RIVERSIDE,"41,506.16",SP PROVIDER PAYMENTS,EXTERNAL AGENCIES AND BODIES,2102626307
07.02.2017,COMMISSIONING & CENTRAL,SOUTHSIDE PARTNERSHIP,"56,878.68",SP PROVIDER PAYMENTS,EXTERNAL AGENCIES AND BODIES,2102626294
07.02.2017,COMMISSIONING & CENTRAL,ST MUNGOS,"54,038.62",SP PROVIDER PAYMENTS,EXTERNAL AGENCIES AND BODIES,2102626308
07.02.2017,COMMISSIONING & CENTRAL,THAMES REACH,"50,750.00",SP PROVIDER PAYMENTS,EXTERNAL AGENCIES AND BODIES,2102626309
07.02.2017,COMMISSIONING & CENTRAL,THE SALVATION ARMY,"45,577.20",SP PROVIDER PAYMENTS,EXTERNAL AGENCIES AND BODIES,2102626310
07.02.2017,COMMUNITIES,DEYNSFORD TENANT MANAGEMENT ORGANISATION,"11,292.03",D'EYNSFORD ESTATE,M&M ALLOWANCE CO-OPS,5902235367
07.02.2017,COMMUNITIES,A3 ASSOCIATES LTD,390,TENANT MGT INITITIVES,DISCRETIONARY AWARDS AND FEES,5902235437
07.02.2017,COMMUNITIES,A3 ASSOCIATES LTD,"1,525.00",TENANT MGT INITITIVES,DISCRETIONARY AWARDS AND FEES,5902235437
07.02.2017,CUSTOMER EXPERIENCE HGF,CROWN HOUSING LTD,"5,355.00",NIGHTLY TA (NSC),EXTERNAL AGENCIES AND BODIES,5902235407
07.02.2017,CUSTOMER EXPERIENCE HGF,J & M OASIS LTD,"2,193.00",NIGHTLY TA (NSC),EXTERNAL AGENCIES AND BODIES,5902235316
07.02.2017,CUSTOMER EXPERIENCE HGF,KINDLY PROPERTIES,"3,959.00",NIGHTLY TA (NSC),EXTERNAL AGENCIES AND BODIES,5902235392
07.02.2017,CUSTOMER EXPERIENCE HGF,LIVING ACCOMODATION LTD,"1,581.00",NIGHTLY TA (NSC),EXTERNAL AGENCIES AND BODIES,5902235388
07.02.2017,CUSTOMER EXPERIENCE HGF,LIVING ACCOMODATION LTD,"24,276.00",NIGHTLY TA (NSC),EXTERNAL AGENCIES AND BODIES,5902235384
07.02.2017,CUSTOMER EXPERIENCE HGF,MOUNT HOMES LTD,"16,318.00",NIGHTLY TA (NSC),EXTERNAL AGENCIES AND BODIES,5902235326
07.02.2017,CUSTOMER EXPERIENCE HGF,STENFORD PROPERTY LTD,"40,276.40",NIGHTLY TA (NSC),EXTERNAL AGENCIES AND BODIES,5902235321
07.02.2017,CUSTOMER EXPERIENCE HGF,ZFA LTD,"19,275.00",NIGHTLY TA (NSC),EXTERNAL AGENCIES AND BODIES,5902235421
07.02.2017,CUSTOMER EXPERIENCE HGF,GENERAL DYNAMICS INFORMATION TECHNOLOGY,"-3,806.00",SYSTEMS,COMMS & COMPUTING CONTRACT CHARGES,5902235401
07.02.2017,CUSTOMER EXPERIENCE HGF,GENERAL DYNAMICS INFORMATION TECHNOLOGY,"3,510.50",SYSTEMS,COMMS & COMPUTING CONTRACT CHARGES,5902235408
07.02.2017,CUSTOMER EXPERIENCE HGF,GENERAL DYNAMICS INFORMATION TECHNOLOGY,"57,931.00",SYSTEMS,COMMS & COMPUTING CONTRACT CHARGES,5902235404
07.02.2017,ENVIRONMENT AND LEISURE,3D DISPLAYS LTD,530.99,CAPITAL PS (LEISURE),CONSTRUCTION MAIN CONTRACT -CERTIFICATED,5902235314
07.02.2017,ENVIRONMENT AND LEISURE,CONWAY AECOM LTD,"33,441.11",CAPITAL PS (LEISURE),CONSTRUCTION,2102626468
07.02.2017,ENVIRONMENT AND LEISURE,F M CONWAY LTD,"2,423.04",CAPITAL PS (LEISURE),CONST'N MAIN CONTRACT - NON CERTIFICATED,2102626475
07.02.2017,ENVIRONMENT AND LEISURE,INTO SERVICES LONDON LTD,300,CAPITAL PS (LEISURE),CONSTRUCTION MAIN CONTRACT -CERTIFICATED,5902235373
07.02.2017,ENVIRONMENT AND LEISURE,R G WEBBER LTD,"1,000.00",CAPITAL PS (LEISURE),CONST'N MAIN CONTRACT - NON CERTIFICATED,2102626478
07.02.2017,ENVIRONMENT AND LEISURE,R G WEBBER LTD,"7,540.00",CAPITAL PS (LEISURE),CONST'N MAIN CONTRACT - NON CERTIFICATED,2102626478
07.02.2017,ENVIRONMENT AND LEISURE,TAYLOR PROJECT SERVICES LLP,760,CAPITAL PS (LEISURE),CONSTRUCTION MAIN CONTRACT,5902235413
07.02.2017,ENVIRONMENT DIRECTORATE,CLOSE BROTHERS VEHICLE HIRE LTD,268.4,COMMERCIAL VEH CTRL A/C,HIRED VEHICLES,5902235331
07.02.2017,ENVIRONMENT DIRECTORATE,CLOSE BROTHERS VEHICLE HIRE LTD,268.4,COMMERCIAL VEH CTRL A/C,HIRED VEHICLES,5902235333
07.02.2017,ENVIRONMENT DIRECTORATE,CLOSE BROTHERS VEHICLE HIRE LTD,286,COMMERCIAL VEH CTRL A/C,HIRED VEHICLES,5902235323
07.02.2017,ENVIRONMENT DIRECTORATE,CLOSE BROTHERS VEHICLE HIRE LTD,367.34,COMMERCIAL VEH CTRL A/C,HIRED VEHICLES,5902235340
07.02.2017,ENVIRONMENT DIRECTORATE,CLOSE BROTHERS VEHICLE HIRE LTD,494.56,COMMERCIAL VEH CTRL A/C,HIRED VEHICLES,5902235336
07.02.2017,ENVIRONMENT DIRECTORATE,NEWLYN PLC,278,COMMERCIAL VEH CTRL A/C,PARKING CHARGES,5902235374
07.02.2017,ENVIRONMENT DIRECTORATE,SCOT GROUP LIMITED,329,COMMERCIAL VEH CTRL A/C,HIRED VEHICLES,5902235332
07.02.2017,ENVIRONMENT DIRECTORATE,TIPPERHIRE LTD,483,COMMERCIAL VEH CTRL A/C,HIRED VEHICLES,5902235455
07.02.2017,ENVIRONMENT DIRECTORATE,ANGLESEY BOLLARD LTD,"1,387.50",ENGINEERING CRAFTS,MATERIALS,5902235334
07.02.2017,ENVIRONMENT DIRECTORATE,ANGLESEY BOLLARD LTD,"2,955.00",ENGINEERING CRAFTS,MATERIALS,5902235335
07.02.2017,ENVIRONMENT DIRECTORATE,C L ROADMARKINGS LTD,"7,610.29",ENGINEERING CRAFTS,OTHER CONTRACTORS,2102626481
07.02.2017,ENVIRONMENT DIRECTORATE,PACE ACCIDENT REPAIRS CENTRE LTD,"2,298.48",FLEET INSURANCE WORKS,TRANSPORT INSURANCE COSTS,5902235342
07.02.2017,ENVIRONMENT DIRECTORATE,R HERRIDGE & PARTNERS,775,PARKS TECH UNIT (PREMISES),OTHER R&M,2102626482
07.02.2017,ENVIRONMENT DIRECTORATE,CROWN OIL UK,886.45,SANDGATE STREET,VEHICLE FUEL,5902235438
07.02.2017,ENVIRONMENT DIRECTORATE,JALITE PLC,459,SIGN SHOP,MATERIALS,5902235306
07.02.2017,F & C S EXCLUDING CORPORATE BUDGETS,HM COURTS & TRIBUNALS SERVICE,"6,603.00",COUNCIL TAX,LEGAL FEES & COURT COSTS,2102627286
07.02.2017,F & C S EXCLUDING CORPORATE BUDGETS,HM COURTS & TRIBUNALS SERVICE,351,NNDR,LEGAL FEES & COURT COSTS,2102627285
07.02.2017,HOUSING,CALFORD SEADEN LLP,"10,230.00",CAPITAL PS (HRA),CONSTRUCTION FEES  - EXTERNAL,5902235385
07.02.2017,HOUSING,STANDAGE & CO LTD,"1,707.84",STANDAGE,MANUAL CREDITORS,5902235369
07.02.2017,HOUSING,STANDAGE & CO LTD,"3,855.06",STANDAGE,MANUAL CREDITORS,5902235368
07.02.2017,HOUSING HRA,CALFORD SEADEN LLP,"1,776.94",CAPITAL PS (HRA),CONSTRUCTION FEES  - EXTERNAL,5902235424
07.02.2017,HOUSING HRA,CALFORD SEADEN LLP,"1,989.33",CAPITAL PS (HRA),CONSTRUCTION FEES  - EXTERNAL,5902235440
07.02.2017,HOUSING HRA,CALFORD SEADEN LLP,"4,058.08",CAPITAL PS (HRA),CONSTRUCTION FEES  - EXTERNAL,5902235428
07.02.2017,HOUSING HRA,CALFORD SEADEN LLP,"4,581.67",CAPITAL PS (HRA),CONSTRUCTION FEES  - EXTERNAL,5902235415
07.02.2017,HOUSING HRA,CALFORD SEADEN LLP,"6,004.61",CAPITAL PS (HRA),CONSTRUCTION FEES  - EXTERNAL,5902235310
07.02.2017,HOUSING HRA,HINDWOODS LTD,400,CAPITAL PS (HRA),CONSTRUCTION FEES  - EXTERNAL,5902235366
07.02.2017,HOUSING HRA,HINDWOODS LTD,600,CAPITAL PS (HRA),CONSTRUCTION FEES  - EXTERNAL,5902235365
07.02.2017,HOUSING HRA,JEREMY GARDNER ASSOCIATES LTD,"4,300.00",CAPITAL PS (HRA),CONSTRUCTION FEES  - EXTERNAL,5902235338
07.02.2017,HOUSING HRA,JOHN BURKE ASSOCIATES,406,CAPITAL PS (HRA),CONSTRUCTION FEES  - EXTERNAL,5902235396
07.02.2017,HOUSING HRA,JOHN BURKE ASSOCIATES,"1,160.00",CAPITAL PS (HRA),CONSTRUCTION FEES  - EXTERNAL,5902235394
07.02.2017,HOUSING HRA,PHLORUM LTD,"1,575.00",CAPITAL PS (HRA),CONSTRUCTION FEES  - EXTERNAL,5902235418
07.02.2017,HOUSING HRA,POTTER RAPER AND PARTNERS,"17,457.74",CAPITAL PS (HRA),CONSTRUCTION FEES  - EXTERNAL,5902235389
07.02.2017,HOUSING HRA,POTTER RAPER AND PARTNERS,"24,180.76",CAPITAL PS (HRA),CONSTRUCTION FEES  - EXTERNAL,5902235389
07.02.2017,HOUSING HRA,VITAL ENERGI UTILITIES LTD,"11,248.34",CAPITAL PS (HRA),CONSTRUCTION FEES,2102626479
07.02.2017,HOUSING HRA,VITAL ENERGI UTILITIES LTD,"68,510.52",CAPITAL PS (HRA),CONSTRUCTION FEES,2102626480
07.02.2017,LEISURE DIRECTORATE,CLASSIC NEWS,370.13,JOHN HARVARD LIBRARY,BOOKS & PUBLICATIONS,5902235423
07.02.2017,LEISURE DIRECTORATE,CLASSIC NEWS,394.38,JOHN HARVARD LIBRARY,BOOKS & PUBLICATIONS,5902235427
07.02.2017,LEISURE DIRECTORATE,R HERRIDGE & PARTNERS,310,PECKHAM RYE AREA TEAM,OTHER R&M,2102626482
07.02.2017,LEISURE DIRECTORATE,R HERRIDGE & PARTNERS,"1,369.00",SOUTHWARK AREA TEAM,OTHER R&M,2102626482
07.02.2017,LEISURE DIRECTORATE,INCENTIVE QAS LTD,"1,330.17",TEMPORARY NEWINGTON,PREMISES CLEANING,5902235299
07.02.2017,MODERNISATION,KENT COUNTY COUNCIL - LASER,729.05,COMMERCIAL PROPERTIES,GAS,5902235434
07.02.2017,MODERNISATION HGF,INTERSERVE (FACILITIES MANAGEMENT),"2,540.45",FM SERVICES BY INTERSERVE,BUILDING R&M,5902235312
07.02.2017,MODERNISATION HGF,INTERSERVE (FACILITIES MANAGEMENT),"433,816.65",FM SERVICES BY INTERSERVE,BUILDING R&M,5902235308
07.02.2017,MODERNISATION HGF,WARWICK GRP T/A MACH 1 COURIERS LTD,"6,198.85",REPAIR AND MAINTENANCE SERVICES,CAB FARES,5902235305
07.02.2017,MODERNISATION HGF,TMP (UK) LIMITED,"1,374.99",TMP,RECRUITMENT ADVERTISING,5902235382
07.02.2017,REGENERATION,E.ON,516.46,LBS SOJOURNER TRUTH COMMUNITY CENTRE,ELECTRICITY,5902235444
07.02.2017,REGENERATION,STANBURY BUILDING SERVICES LTD,"1,495.00",LBS SOJOURNER TRUTH COMMUNITY CENTRE,BUILDING R&M,2102626476
07.02.2017,REGENERATION,CIPFA BUSINESS LTD,350,PROPERTY TEAM,BOOKS & PUBLICATIONS,5902235449
07.02.2017,REGENERATION,STANBURY BUILDING SERVICES LTD,"3,325.00",TOWER WORKSHOPS,BUILDING R&M,2102626477
07.02.2017,RESIDENT SERVICES,HM COURTS & TRIBUNALS SERVICE,255,OPERATIONS/OFFICES ACCOMMODATION,LEGAL FEES & COURT COSTS,2102627253
07.02.2017,RESIDENT SERVICES,HM COURTS & TRIBUNALS SERVICE,255,OPERATIONS/OFFICES ACCOMMODATION,LEGAL FEES & COURT COSTS,2102627270
07.02.2017,RESIDENT SERVICES,HM COURTS & TRIBUNALS SERVICE,255,OPERATIONS/OFFICES ACCOMMODATION,LEGAL FEES & COURT COSTS,2102627279
07.02.2017,RESIDENT SERVICES,HM COURTS & TRIBUNALS SERVICE,355,OPERATIONS/OFFICES ACCOMMODATION,LEGAL FEES & COURT COSTS,2102627269
07.02.2017,RESIDENT SERVICES,HM COURTS & TRIBUNALS SERVICE,355,OPERATIONS/OFFICES ACCOMMODATION,LEGAL FEES & COURT COSTS,2102627280
07.02.2017,RESIDENT SERVICES,HM COURTS & TRIBUNALS SERVICE,545,OPERATIONS/OFFICES ACCOMMODATION,LEGAL FEES & COURT COSTS,2102627251
07.02.2017,RESIDENT SERVICES,HM COURTS & TRIBUNALS SERVICE,255,SPECIAL INVESTIGATIONS,LEGAL FEES & COURT COSTS,2102627272
07.02.2017,RESIDENT SERVICES,HM COURTS & TRIBUNALS SERVICE,"1,090.00",SPECIAL INVESTIGATIONS,LEGAL FEES & COURT COSTS,2102627281
08.02.2017,ADULT SOCIAL CARE,AFFINITY SUTTON HOMES LTD,"2,000.00",APPOINTEESHIPS,OTHER PAYMENTS FOR CLIENTS,2102626494
08.02.2017,ADULT SOCIAL CARE,REDACTED PERSONAL DATA,423.3,APPOINTEESHIPS,OTHER PAYMENTS FOR CLIENTS,2102626495
08.02.2017,ADULT SOCIAL CARE,UPLANDS CARE HOME,323.7,APPOINTEESHIPS,OTHER PAYMENTS FOR CLIENTS,2102626496
08.02.2017,ADULT SOCIAL CARE,HEALTHCARE & TRANSPORT SERVICE,344,LD LTS 18-64,CLIENT TRANSPORT,2102627080
08.02.2017,ADULT SOCIAL CARE,HEALTHCARE & TRANSPORT SERVICE,376,LD LTS 18-64,CLIENT TRANSPORT,2102627089
08.02.2017,ADULT SOCIAL CARE,HEALTHCARE & TRANSPORT SERVICE,450,LD LTS 18-64,CLIENT TRANSPORT,2102627091
08.02.2017,ADULT SOCIAL CARE,HEALTHCARE & TRANSPORT SERVICE,650,LD LTS 18-64,CLIENT TRANSPORT,2102627088
08.02.2017,ADULT SOCIAL CARE,HEALTHCARE & TRANSPORT SERVICE,711,LD LTS 18-64,CLIENT TRANSPORT,2102627099
08.02.2017,ADULT SOCIAL CARE,THREE C'S SUPPORT,342.19,LD LTS 18-64,SUPPORTED LIVING,2102627097
08.02.2017,ADULT SOCIAL CARE,THREE C'S SUPPORT,411.6,LD LTS 18-64,SUPPORTED LIVING,2102627094
08.02.2017,ADULT SOCIAL CARE,THREE C'S SUPPORT,445.8,LD LTS 18-64,SUPPORTED LIVING,2102627095
08.02.2017,ADULT SOCIAL CARE,THREE C'S SUPPORT,577.35,LD LTS 18-64,SUPPORTED LIVING,2102627075
08.02.2017,ADULT SOCIAL CARE,THREE C'S SUPPORT,688.36,LD LTS 18-64,SUPPORTED LIVING,2102627100
08.02.2017,ADULT SOCIAL CARE,THREE C'S SUPPORT,720.4,LD LTS 18-64,SUPPORTED LIVING,2102627090
08.02.2017,ADULT SOCIAL CARE,THREE C'S SUPPORT,832.44,LD LTS 18-64,SUPPORTED LIVING,2102627065
08.02.2017,ADULT SOCIAL CARE,SWEETTREE HOME CARE SERVICES LTD,331.02,LD LTS 65+,HOMECARE - C&V,2102627079
08.02.2017,ADULT SOCIAL CARE,SWEETTREE HOME CARE SERVICES LTD,392.25,LD LTS 65+,HOMECARE - C&V,2102627098
08.02.2017,ADULT SOCIAL CARE,THREE C'S SUPPORT,949.28,LD LTS 65+,SUPPORTED LIVING,2102627068
08.02.2017,ADULT SOCIAL CARE,CARE DIRECT UK LTD,474.08,MEM LTS 65+,HOMECARE - SPOT,2102627076
08.02.2017,ADULT SOCIAL CARE,FIRST CHOICE SOCIAL CARE & HOUSING,472.15,MEM LTS 65+,HOMECARE - SPOT,2102627073
08.02.2017,ADULT SOCIAL CARE,YOUTH GRACES (UK) LTD,661.08,MEM LTS 65+,HOMECARE - C&V,2102627118
08.02.2017,ADULT SOCIAL CARE,FIRST CHOICE SOCIAL CARE & HOUSING,546.34,MEM STS 65+,HOMECARE - IC,2102627087
08.02.2017,ADULT SOCIAL CARE,YOUTH GRACES (UK) LTD,263.16,MH LTS 65+,HOMECARE - SPOT,2102627104
08.02.2017,ADULT SOCIAL CARE,KENT COUNTY COUNCIL - LASER,303.72,ORIENT STREET,GAS,5902235555
08.02.2017,ADULT SOCIAL CARE,FIRST CHOICE SOCIAL CARE & HOUSING,418.19,PHY LTS 18-64,HOMECARE - SPOT,2102627063
08.02.2017,ADULT SOCIAL CARE,FIRST CHOICE SOCIAL CARE & HOUSING,701.48,PHY LTS 18-64,HOMECARE - SPOT,2102627085
08.02.2017,ADULT SOCIAL CARE,FIRST CHOICE SOCIAL CARE & HOUSING,809.4,PHY LTS 18-64,HOMECARE - C&V,2102627066
08.02.2017,ADULT SOCIAL CARE,LIFECARE CONSULTING LTD,647.52,PHY LTS 18-64,HOMECARE - SPOT,2102627096
08.02.2017,ADULT SOCIAL CARE,LIFECARE CONSULTING LTD,755.44,PHY LTS 18-64,HOMECARE - SPOT,2102627071
08.02.2017,ADULT SOCIAL CARE,LIFECARE CONSULTING LTD,849.87,PHY LTS 18-64,HOMECARE - SPOT,2102627093
08.02.2017,ADULT SOCIAL CARE,LIFECARE CONSULTING LTD,880.22,PHY LTS 18-64,HOMECARE - SPOT,2102627069
08.02.2017,ADULT SOCIAL CARE,LIFECARE CONSULTING LTD,944.3,PHY LTS 18-64,HOMECARE - SPOT,2102627082
08.02.2017,ADULT SOCIAL CARE,YOUTH GRACES (UK) LTD,420.5,PHY LTS 18-64,HOMECARE - C&V,2102627121
08.02.2017,ADULT SOCIAL CARE,FIRST CHOICE SOCIAL CARE & HOUSING,364.23,PHY LTS 65+,HOMECARE - SPOT,2102627083
08.02.2017,ADULT SOCIAL CARE,FIRST CHOICE SOCIAL CARE & HOUSING,377.72,PHY LTS 65+,HOMECARE - C&V,2102627064
08.02.2017,ADULT SOCIAL CARE,LIFECARE CONSULTING LTD,897.09,PHY LTS 65+,HOMECARE - SPOT,2102627070
08.02.2017,ADULT SOCIAL CARE,YOUTH GRACES (UK) LTD,472.36,PHY LTS 65+,HOMECARE - SPOT,2102627112
08.02.2017,ADULT SOCIAL CARE,YOUTH GRACES (UK) LTD,613.9,PHY LTS 65+,HOMECARE - SPOT,2102627120
08.02.2017,ADULT SOCIAL CARE,YOUTH GRACES (UK) LTD,775.82,PHY LTS 65+,HOMECARE - SPOT,2102627117
08.02.2017,ADULT SOCIAL CARE,CORPORATE DOCUMENT SERVICES LTD,530,SAFEGUARDING TEAM,EXTERNAL AGENCIES AND BODIES,5902235517
08.02.2017,ADULT SOCIAL CARE,CORPORATE DOCUMENT SERVICES LTD,554.58,SAFEGUARDING TEAM,EXTERNAL AGENCIES AND BODIES,5902235528
08.02.2017,ADULT SOCIAL CARE,SEAP,256,SAFEGUARDING TEAM,OTHER CONTRACTORS,5902235489
08.02.2017,ADULT SOCIAL CARE,VOICEABILITY ADVOCACY,428.75,SAFEGUARDING TEAM,OTHER CONTRACTORS,5902235603
08.02.2017,ADULT SOCIAL CARE,VOICEABILITY ADVOCACY,603.75,SAFEGUARDING TEAM,EXTERNAL AGENCIES AND BODIES,5902235600
08.02.2017,ADULT SOCIAL CARE,SPECIALIST CRAFTS LTD,395.84,SOUTHWARK RESOURCE CENTRE,MATERIALS,5902235606
08.02.2017,ADULT SOCIAL CARE,THAMES REACH EMPOLYMENT ACADEMY,374.5,STRAT DIR OF C&AS,CONSULTANTS SERVICES,5902235644
08.02.2017,ASSET MANAGEMENT,FRANKHAM CONSULTANCY GROUP LTD,"5,750.00",FRA WORKS,PROFESSIONAL FEES,5902235557
08.02.2017,ASSET MANAGEMENT,POTTER RAPER AND PARTNERS,"43,642.57",HIP MAJOR WORKS,CONSULTANTS SERVICES,5902235480
08.02.2017,ASSET MANAGEMENT,BRIDGEWATER ROOFING CONTRACTORS LTD,"1,776.00",R&M CONTRACTS (NORTH),OTHER R&M,2102626490
08.02.2017,ASSET MANAGEMENT,BRIDGEWATER ROOFING CONTRACTORS LTD,"2,850.00",REPAIRS OPERATIONS,OTHER R&M,2102626488
08.02.2017,ASSET MANAGEMENT,BRIDGEWATER ROOFING CONTRACTORS LTD,"4,987.50",REPAIRS OPERATIONS,OTHER R&M,2102626491
08.02.2017,ASSET MANAGEMENT,BRIDGEWATER ROOFING CONTRACTORS LTD,"11,875.00",REPAIRS OPERATIONS,OTHER R&M,2102626489
08.02.2017,CENTRAL FUNCTIONS,OCO LIMITED,"1,100.00",AYLESBURY,PROFESSIONAL FEES,5902235650
08.02.2017,CENTRAL FUNCTIONS,OCO LIMITED,"1,684.10",AYLESBURY,PROFESSIONAL FEES,5902235647
08.02.2017,CHIEF EXECUTIVE,CYRIL SWEETT LTD,"5,600.00",CAPITAL PS (REGEN),CONSTRUCTION FEES - ARCHITECT,5902235502
08.02.2017,CHILDREN AND ADULT,CYRIL SWEETT LTD,"2,800.00",CAPITAL PS (EDUCATION),CONSTRUCTION FEES - ARCHITECT,5902235502
08.02.2017,CHILDREN AND ADULT,MORGAN SINDALL PLC,"460,843.51",CAPITAL PS (EDUCATION),CONSTRUCTION MAIN CONTRACT -CERTIFICATED,2102627200
08.02.2017,CHILDREN'S SERVICES,REVIVAL,660,ADMIN CURLEW,OTHER PAYMENTS FOR CLIENTS,5902235475
08.02.2017,CHILDREN'S SERVICES,REDACTED PERSONAL DATA,888.12,DISABILITY & HIV,PAYMENTS TO CARERS,2102595311
08.02.2017,CHILDREN'S SERVICES,REDACTED PERSONAL DATA,300,FURTHER EDUCATION SUPPORT,CLIENT TRANSPORT,2102627027
08.02.2017,CHILDREN'S SERVICES,REDACTED PERSONAL DATA,"-2,352.00",HOME 2 SCHOOL TRANSPORT,OTHER PAYMENTS FOR CLIENTS,5902235786
08.02.2017,CHILDREN'S SERVICES,REDACTED PERSONAL DATA,"2,352.00",HOME 2 SCHOOL TRANSPORT,OTHER PAYMENTS FOR CLIENTS,5902234901
08.02.2017,CHILDREN'S SERVICES,1ST PLACE CHILDREN & PARENTS CENTRE,"6,480.00",NURSERY ED GRANT 2 Y Y O,GRANTS,2102626500
08.02.2017,CHILDREN'S SERVICES,1ST PLACE CHILDREN & PARENTS CENTRE,"7,020.00",NURSERY ED GRANT 2 Y Y O,GRANTS,2102626499
08.02.2017,CHILDREN'S SERVICES,1ST PLACE CHILDREN & PARENTS CENTRE,"10,530.00",NURSERY ED GRANT 2 Y Y O,GRANTS,2102626498
08.02.2017,CHILDREN'S SERVICES,ARC COMMUNITY TRUSTEES,"1,980.00",NURSERY ED GRANT 2 Y Y O,GRANTS,2102626559
08.02.2017,CHILDREN'S SERVICES,ARC COMMUNITY TRUSTEES,"4,860.00",NURSERY ED GRANT 2 Y Y O,GRANTS,2102626501
08.02.2017,CHILDREN'S SERVICES,ASQUITH NURSERIES LTD,"3,780.00",NURSERY ED GRANT 2 Y Y O,GRANTS,2102626548
08.02.2017,CHILDREN'S SERVICES,BEORMUND COMMUNITY CENTRE,"11,880.00",NURSERY ED GRANT 2 Y Y O,GRANTS,2102626530
08.02.2017,CHILDREN'S SERVICES,BERMONDSEY COMMUNITY NURSERY,"2,700.00",NURSERY ED GRANT 2 Y Y O,GRANTS,2102626503
08.02.2017,CHILDREN'S SERVICES,BRIGHT EXPLORERS DAY NURSERY,540,NURSERY ED GRANT 2 Y Y O,GRANTS,2102626506
08.02.2017,CHILDREN'S SERVICES,BRIGHT HORIZONS FAMILY SOLUTIONS,"7,020.00",NURSERY ED GRANT 2 Y Y O,GRANTS,2102626515
08.02.2017,CHILDREN'S SERVICES,BUDS DAY NURSERY LTD,"2,556.00",NURSERY ED GRANT 2 Y Y O,GRANTS,2102626507
08.02.2017,CHILDREN'S SERVICES,COLOURBOX CHILDCARE,"1,080.00",NURSERY ED GRANT 2 Y Y O,GRANTS,2102626510
08.02.2017,CHILDREN'S SERVICES,CREATIVE MINDS CARE AND EDUCATION,"1,620.00",NURSERY ED GRANT 2 Y Y O,GRANTS,2102626511
08.02.2017,CHILDREN'S SERVICES,CRYSTAL NURSERY (UK),"1,080.00",NURSERY ED GRANT 2 Y Y O,GRANTS,2102626524
08.02.2017,CHILDREN'S SERVICES,CTY NURSERY LTD,"9,180.00",NURSERY ED GRANT 2 Y Y O,GRANTS,2102626512
08.02.2017,CHILDREN'S SERVICES,DESTINY DAY NURSERY,540,NURSERY ED GRANT 2 Y Y O,GRANTS,2102626554
08.02.2017,CHILDREN'S SERVICES,DESTINY DAY NURSERY,"4,860.00",NURSERY ED GRANT 2 Y Y O,GRANTS,2102626513
08.02.2017,CHILDREN'S SERVICES,DULWICH MONTESSORI NURSERY SCHOOL,540,NURSERY ED GRANT 2 Y Y O,GRANTS,2102626514
08.02.2017,CHILDREN'S SERVICES,DULWICH OAKS MONTESSORI NURSERY SCHOOL,"7,020.00",NURSERY ED GRANT 2 Y Y O,GRANTS,2102626516
08.02.2017,CHILDREN'S SERVICES,DULWICH VILLAGE PRE-SCHOOL,"2,160.00",NURSERY ED GRANT 2 Y Y O,GRANTS,2102626517
08.02.2017,CHILDREN'S SERVICES,DYASON PRE-SCHOOL,"3,240.00",NURSERY ED GRANT 2 Y Y O,GRANTS,2102626518
08.02.2017,CHILDREN'S SERVICES,EAST DULWICH COMMUNITY NURSERY ASSOCIATION,"8,100.00",NURSERY ED GRANT 2 Y Y O,GRANTS,2102626520
08.02.2017,CHILDREN'S SERVICES,EAST DULWICH GROVE NURSERY LTD,"8,640.00",NURSERY ED GRANT 2 Y Y O,GRANTS,2102626533
08.02.2017,CHILDREN'S SERVICES,ELEPHANT & CASTLE DAY NURSERY LTD,"8,640.00",NURSERY ED GRANT 2 Y Y O,GRANTS,2102626521
08.02.2017,CHILDREN'S SERVICES,FIRST CHOICE DAY NURSERY,"9,504.00",NURSERY ED GRANT 2 Y Y O,GRANTS,2102626497
08.02.2017,CHILDREN'S SERVICES,FOUNTAIN CHILDRENS CENTRE LIMITED,"1,620.00",NURSERY ED GRANT 2 Y Y O,GRANTS,2102626564
08.02.2017,CHILDREN'S SERVICES,GODS GRACE DAYCARE,"3,780.00",NURSERY ED GRANT 2 Y Y O,GRANTS,2102626523
08.02.2017,CHILDREN'S SERVICES,HALFPINTS PRE-SCHOOL,"1,080.00",NURSERY ED GRANT 2 Y Y O,GRANTS,2102626526
08.02.2017,CHILDREN'S SERVICES,HAVILAH DAY CARE NURSERY,"4,860.00",NURSERY ED GRANT 2 Y Y O,GRANTS,2102626527
08.02.2017,CHILDREN'S SERVICES,HEAVEN SENT NURSERY LTD,"4,860.00",NURSERY ED GRANT 2 Y Y O,GRANTS,2102626528
08.02.2017,CHILDREN'S SERVICES,HERMAN WHYTE T/A LITTLE CLIMBERS DAYCARE PROJECT,"1,080.00",NURSERY ED GRANT 2 Y Y O,GRANTS,2102626538
08.02.2017,CHILDREN'S SERVICES,K & O CHILDCARE LTD,"5,400.00",NURSERY ED GRANT 2 Y Y O,GRANTS,2102626532
08.02.2017,CHILDREN'S SERVICES,LILIES DAY NURSERY,"3,780.00",NURSERY ED GRANT 2 Y Y O,GRANTS,2102626535
08.02.2017,CHILDREN'S SERVICES,LITTLE ACORNS DAY NURSERY,"12,960.00",NURSERY ED GRANT 2 Y Y O,GRANTS,2102626536
08.02.2017,CHILDREN'S SERVICES,LITTLE JUNGLE NURSERY LIMITED,"1,080.00",NURSERY ED GRANT 2 Y Y O,GRANTS,2102626539
08.02.2017,CHILDREN'S SERVICES,LITTLE PILLARS MONTESSORI LTD,"6,480.00",NURSERY ED GRANT 2 Y Y O,GRANTS,2102626540
08.02.2017,CHILDREN'S SERVICES,LITTLE WINNERS DAY NURSERY 1,"8,100.00",NURSERY ED GRANT 2 Y Y O,GRANTS,2102626541
08.02.2017,CHILDREN'S SERVICES,LOGICOUS LTD,"3,240.00",NURSERY ED GRANT 2 Y Y O,GRANTS,2102626502
08.02.2017,CHILDREN'S SERVICES,LONDON EARLY YEARS FOUNDATION,"25,488.00",NURSERY ED GRANT 2 Y Y O,GRANTS,2102626504
08.02.2017,CHILDREN'S SERVICES,LONDON EARLY YEARS FOUNDATION,432,NURSERY ED GRANT 2 Y Y O,GRANTS,2102626558
08.02.2017,CHILDREN'S SERVICES,MAGIC ROUNDABOUT NURSERIES LTD,"9,450.00",NURSERY ED GRANT 2 Y Y O,GRANTS,2102626543
08.02.2017,CHILDREN'S SERVICES,MATVIC VENTURES LTD T/A MAGIC MIND NURSERY & PRE-SCHOOL,540,NURSERY ED GRANT 2 Y Y O,GRANTS,2102626542
08.02.2017,CHILDREN'S SERVICES,MIATA EDUCATIONAL SERVICES LTD,"6,480.00",NURSERY ED GRANT 2 Y Y O,GRANTS,2102626519
08.02.2017,CHILDREN'S SERVICES,MINI TREASURES NURSERY LTD,"3,780.00",NURSERY ED GRANT 2 Y Y O,GRANTS,2102626544
08.02.2017,CHILDREN'S SERVICES,MOTHER GOOSE NURSERIES T/A MOTHER GOOSE NURSERIES (UPLAND ) LTD,540,NURSERY ED GRANT 2 Y Y O,GRANTS,2102626545
08.02.2017,CHILDREN'S SERVICES,NEW VISION DAY NURSERY,"10,260.00",NURSERY ED GRANT 2 Y Y O,GRANTS,2102626546
08.02.2017,CHILDREN'S SERVICES,NICKI DAY NURSERY LTD,"7,560.00",NURSERY ED GRANT 2 Y Y O,GRANTS,2102626547
08.02.2017,CHILDREN'S SERVICES,PATRICIA IBIRONKE T/A JOYFUL STAR NURSERY,"2,160.00",NURSERY ED GRANT 2 Y Y O,GRANTS,2102626531
08.02.2017,CHILDREN'S SERVICES,PEOPLES ASSOCIATION YOUTH VISION,"4,320.00",NURSERY ED GRANT 2 Y Y O,GRANTS,2102626551
08.02.2017,CHILDREN'S SERVICES,PLAYDAYS UK LTD,"1,620.00",NURSERY ED GRANT 2 Y Y O,GRANTS,2102626555
08.02.2017,CHILDREN'S SERVICES,PLAYSHACK PLAYGROUP,540,NURSERY ED GRANT 2 Y Y O,GRANTS,2102626549
08.02.2017,CHILDREN'S SERVICES,PUDDLEDUCK NURSERY,"2,160.00",NURSERY ED GRANT 2 Y Y O,GRANTS,2102626550
08.02.2017,CHILDREN'S SERVICES,REDACTED PERSONAL DATA,"1,080.00",NURSERY ED GRANT 2 Y Y O,GRANTS,2102626570
08.02.2017,CHILDREN'S SERVICES,REDACTED PERSONAL DATA,"1,080.00",NURSERY ED GRANT 2 Y Y O,GRANTS,2102626571
08.02.2017,CHILDREN'S SERVICES,ROCKINGHAM COMMUNITY NURSERY,"3,780.00",NURSERY ED GRANT 2 Y Y O,GRANTS,2102626552
08.02.2017,CHILDREN'S SERVICES,ROCKINGHAM PRE-SCHOOL,"2,160.00",NURSERY ED GRANT 2 Y Y O,GRANTS,2102626553
08.02.2017,CHILDREN'S SERVICES,SMART KIDS DAY NURSERY,"10,800.00",NURSERY ED GRANT 2 Y Y O,GRANTS,2102626556
08.02.2017,CHILDREN'S SERVICES,SMART START,"1,080.00",NURSERY ED GRANT 2 Y Y O,GRANTS,2102626557
08.02.2017,CHILDREN'S SERVICES,ST JOHNS PRE SCHOOL,"5,130.00",NURSERY ED GRANT 2 Y Y O,GRANTS,2102626560
08.02.2017,CHILDREN'S SERVICES,ST JUDES PLAYGROUP,"1,080.00",NURSERY ED GRANT 2 Y Y O,GRANTS,2102626561
08.02.2017,CHILDREN'S SERVICES,ST MARY'S PRE-SCHOOL,"1,080.00",NURSERY ED GRANT 2 Y Y O,GRANTS,2102626562
08.02.2017,CHILDREN'S SERVICES,SUCCESS ASSOCIATES,"3,780.00",NURSERY ED GRANT 2 Y Y O,GRANTS,2102626534
08.02.2017,CHILDREN'S SERVICES,TADWORTH PRE-SCHOOL,"2,970.00",NURSERY ED GRANT 2 Y Y O,GRANTS,2102626563
08.02.2017,CHILDREN'S SERVICES,THE BEECHES NURSERY GROUP LTD,"2,160.00",NURSERY ED GRANT 2 Y Y O,GRANTS,2102626522
08.02.2017,CHILDREN'S SERVICES,THE BOSCO CENTRE,585,NURSERY ED GRANT 2 Y Y O,GRANTS,2102626505
08.02.2017,CHILDREN'S SERVICES,THE CHERRY TREE MONTESSORI NURSERY,"2,160.00",NURSERY ED GRANT 2 Y Y O,GRANTS,2102626509
08.02.2017,CHILDREN'S SERVICES,THE FRUIT TREE DAY NURSERY,"10,800.00",NURSERY ED GRANT 2 Y Y O,GRANTS,2102626565
08.02.2017,CHILDREN'S SERVICES,TINU ODEKU T/A LITTLE ANGELS CHILDCARE SERVICES,"6,660.00",NURSERY ED GRANT 2 Y Y O,GRANTS,2102626537
08.02.2017,CHILDREN'S SERVICES,TODDLE ON INN LTD,540,NURSERY ED GRANT 2 Y Y O,GRANTS,2102626566
08.02.2017,CHILDREN'S SERVICES,UNDER THE WILLOW NURSERY,540,NURSERY ED GRANT 2 Y Y O,GRANTS,2102626567
08.02.2017,CHILDREN'S SERVICES,VICTORY IN COMMUNITY RESOURCE CENTRE,"2,340.00",NURSERY ED GRANT 2 Y Y O,GRANTS,2102626568
08.02.2017,CHILDREN'S SERVICES,VIVY DAY NURSERY,"2,700.00",NURSERY ED GRANT 2 Y Y O,GRANTS,2102626569
08.02.2017,CHILDREN'S SERVICES,WILLIAM BOOTH COLLEGE T/A HUMPTY DUMPTY NURSERY,540,NURSERY ED GRANT 2 Y Y O,GRANTS,2102626529
08.02.2017,CHILDREN'S SERVICES,1ST PLACE CHILDREN & PARENTS CENTRE,286.2,NURSURERY EDUCATION GRANT-3 Y.O.,GRANTS,2102627149
08.02.2017,CHILDREN'S SERVICES,1ST PLACE CHILDREN & PARENTS CENTRE,477,NURSURERY EDUCATION GRANT-3 Y.O.,GRANTS,2102627148
08.02.2017,CHILDREN'S SERVICES,1ST PLACE CHILDREN & PARENTS CENTRE,"10,545.00",NURSURERY EDUCATION GRANT-3 Y.O.,GRANTS,2102626575
08.02.2017,CHILDREN'S SERVICES,1ST PLACE CHILDREN & PARENTS CENTRE,"16,884.00",NURSURERY EDUCATION GRANT-3 Y.O.,GRANTS,2102626573
08.02.2017,CHILDREN'S SERVICES,1ST PLACE CHILDREN & PARENTS CENTRE,"19,926.00",NURSURERY EDUCATION GRANT-3 Y.O.,GRANTS,2102626574
08.02.2017,CHILDREN'S SERVICES,A MEEHAN T/A HALFMOON MONTESSORI NURSERY,"26,481.60",NURSURERY EDUCATION GRANT-3 Y.O.,GRANTS,2102626616
08.02.2017,CHILDREN'S SERVICES,ALLEYN'S JUNIOR SCHOOL,822,NURSURERY EDUCATION GRANT-3 Y.O.,GRANTS,2102626576
08.02.2017,CHILDREN'S SERVICES,ANGEL OAK ACADEMY,381.6,NURSURERY EDUCATION GRANT-3 Y.O.,GRANTS,2102627150
08.02.2017,CHILDREN'S SERVICES,ANGEL OAK ACADEMY,"22,784.25",NURSURERY EDUCATION GRANT-3 Y.O.,GRANTS,2102626577
08.02.2017,CHILDREN'S SERVICES,ARC COMMUNITY TRUSTEES,659.85,NURSURERY EDUCATION GRANT-3 Y.O.,GRANTS,2102627183
08.02.2017,CHILDREN'S SERVICES,ARC COMMUNITY TRUSTEES,"4,941.00",NURSURERY EDUCATION GRANT-3 Y.O.,GRANTS,2102626664
08.02.2017,CHILDREN'S SERVICES,ARC COMMUNITY TRUSTEES,"5,418.00",NURSURERY EDUCATION GRANT-3 Y.O.,GRANTS,2102626578
08.02.2017,CHILDREN'S SERVICES,ARK SCHOOLS T/A GLOBE ACADEMY,699.6,NURSURERY EDUCATION GRANT-3 Y.O.,GRANTS,2102627166
08.02.2017,CHILDREN'S SERVICES,ARK SCHOOLS T/A GLOBE ACADEMY,"17,671.50",NURSURERY EDUCATION GRANT-3 Y.O.,GRANTS,2102626609
08.02.2017,CHILDREN'S SERVICES,ASQUITH NURSERIES LTD,"17,253.00",NURSURERY EDUCATION GRANT-3 Y.O.,GRANTS,2102626649
08.02.2017,CHILDREN'S SERVICES,BASCULE LTD,"4,536.00",NURSURERY EDUCATION GRANT-3 Y.O.,GRANTS,2102626646
08.02.2017,CHILDREN'S SERVICES,BASCULE LTD,"8,631.00",NURSURERY EDUCATION GRANT-3 Y.O.,GRANTS,2102626645
08.02.2017,CHILDREN'S SERVICES,BEORMUND COMMUNITY CENTRE,"6,552.00",NURSURERY EDUCATION GRANT-3 Y.O.,GRANTS,2102626621
08.02.2017,CHILDREN'S SERVICES,BERMONDSEY COMMUNITY NURSERY,477,NURSURERY EDUCATION GRANT-3 Y.O.,GRANTS,2102627152
08.02.2017,CHILDREN'S SERVICES,BERMONDSEY COMMUNITY NURSERY,"9,360.00",NURSURERY EDUCATION GRANT-3 Y.O.,GRANTS,2102626580
08.02.2017,CHILDREN'S SERVICES,BRIGHT EXPLORERS DAY NURSERY,"3,528.00",NURSURERY EDUCATION GRANT-3 Y.O.,GRANTS,2102626584
08.02.2017,CHILDREN'S SERVICES,BRIGHT HORIZONS FAMILY SOLUTIONS,"8,357.30",NURSURERY EDUCATION GRANT-3 Y.O.,GRANTS,2102626585
08.02.2017,CHILDREN'S SERVICES,BRIGHT HORIZONS FAMILY SOLUTIONS,"8,604.00",NURSURERY EDUCATION GRANT-3 Y.O.,GRANTS,2102626598
08.02.2017,CHILDREN'S SERVICES,BUDS DAY NURSERY LTD,"9,075.00",NURSURERY EDUCATION GRANT-3 Y.O.,GRANTS,2102626586
08.02.2017,CHILDREN'S SERVICES,CAMBERWELL AFTER SCHOOL PROJECT,"4,968.00",NURSURERY EDUCATION GRANT-3 Y.O.,GRANTS,2102626588
08.02.2017,CHILDREN'S SERVICES,CEDAR HOUSE DAY NURSERY,"7,776.00",NURSURERY EDUCATION GRANT-3 Y.O.,GRANTS,2102626589
08.02.2017,CHILDREN'S SERVICES,COLBY ROAD DAY NURSERY,756,NURSURERY EDUCATION GRANT-3 Y.O.,GRANTS,2102626591
08.02.2017,CHILDREN'S SERVICES,COLOURBOX CHILDCARE,"1,962.00",NURSURERY EDUCATION GRANT-3 Y.O.,GRANTS,2102626592
08.02.2017,CHILDREN'S SERVICES,CREATIVE MINDS CARE AND EDUCATION,477,NURSURERY EDUCATION GRANT-3 Y.O.,GRANTS,2102627156
08.02.2017,CHILDREN'S SERVICES,CREATIVE MINDS CARE AND EDUCATION,"9,330.00",NURSURERY EDUCATION GRANT-3 Y.O.,GRANTS,2102626593
08.02.2017,CHILDREN'S SERVICES,CRYSTAL NURSERY (UK),"12,012.00",NURSURERY EDUCATION GRANT-3 Y.O.,GRANTS,2102626611
08.02.2017,CHILDREN'S SERVICES,CTY NURSERY LTD,286.2,NURSURERY EDUCATION GRANT-3 Y.O.,GRANTS,2102627157
08.02.2017,CHILDREN'S SERVICES,CTY NURSERY LTD,"11,196.00",NURSURERY EDUCATION GRANT-3 Y.O.,GRANTS,2102626594
08.02.2017,CHILDREN'S SERVICES,DESTINY DAY NURSERY,"3,150.00",NURSURERY EDUCATION GRANT-3 Y.O.,GRANTS,2102626658
08.02.2017,CHILDREN'S SERVICES,DESTINY DAY NURSERY,286.2,NURSURERY EDUCATION GRANT-3 Y.O.,GRANTS,2102627158
08.02.2017,CHILDREN'S SERVICES,DESTINY DAY NURSERY,"6,912.00",NURSURERY EDUCATION GRANT-3 Y.O.,GRANTS,2102626595
08.02.2017,CHILDREN'S SERVICES,DESTINY KIDS NURSERY LTD,"5,007.00",NURSURERY EDUCATION GRANT-3 Y.O.,GRANTS,2102626596
08.02.2017,CHILDREN'S SERVICES,DULWICH MONTESSORI NURSERY SCHOOL,286.2,NURSURERY EDUCATION GRANT-3 Y.O.,GRANTS,2102627159
08.02.2017,CHILDREN'S SERVICES,DULWICH MONTESSORI NURSERY SCHOOL,"13,208.40",NURSURERY EDUCATION GRANT-3 Y.O.,GRANTS,2102626597
08.02.2017,CHILDREN'S SERVICES,DULWICH OAKS MONTESSORI NURSERY SCHOOL,629.74,NURSURERY EDUCATION GRANT-3 Y.O.,GRANTS,2102627160
08.02.2017,CHILDREN'S SERVICES,DULWICH OAKS MONTESSORI NURSERY SCHOOL,"31,910.40",NURSURERY EDUCATION GRANT-3 Y.O.,GRANTS,2102626599
08.02.2017,CHILDREN'S SERVICES,DULWICH VILLAGE PRE-SCHOOL,"5,101.50",NURSURERY EDUCATION GRANT-3 Y.O.,GRANTS,2102626600
08.02.2017,CHILDREN'S SERVICES,DYASON PRE-SCHOOL,"5,328.00",NURSURERY EDUCATION GRANT-3 Y.O.,GRANTS,2102626601
08.02.2017,CHILDREN'S SERVICES,EAST DULWICH COMMUNITY NURSERY ASSOCIATION,"1,200.00",NURSURERY EDUCATION GRANT-3 Y.O.,GRANTS,2102626603
08.02.2017,CHILDREN'S SERVICES,EAST DULWICH GROVE NURSERY LTD,"9,144.00",NURSURERY EDUCATION GRANT-3 Y.O.,GRANTS,2102626627
08.02.2017,CHILDREN'S SERVICES,ELEPHANT & CASTLE DAY NURSERY LTD,"13,191.60",NURSURERY EDUCATION GRANT-3 Y.O.,GRANTS,2102626604
08.02.2017,CHILDREN'S SERVICES,EXCEL CHILD CARE SERVICES LTD,381.6,NURSURERY EDUCATION GRANT-3 Y.O.,GRANTS,2102627164
08.02.2017,CHILDREN'S SERVICES,EXCEL CHILD CARE SERVICES LTD,"14,004.00",NURSURERY EDUCATION GRANT-3 Y.O.,GRANTS,2102626606
08.02.2017,CHILDREN'S SERVICES,FATIMA JONES,756,NURSURERY EDUCATION GRANT-3 Y.O.,GRANTS,2102626677
08.02.2017,CHILDREN'S SERVICES,FIRST CHOICE DAY NURSERY,286.2,NURSURERY EDUCATION GRANT-3 Y.O.,GRANTS,2102627147
08.02.2017,CHILDREN'S SERVICES,FIRST CHOICE DAY NURSERY,"6,606.00",NURSURERY EDUCATION GRANT-3 Y.O.,GRANTS,2102626572
08.02.2017,CHILDREN'S SERVICES,FOUNTAIN CHILDRENS CENTRE LIMITED,"7,740.00",NURSURERY EDUCATION GRANT-3 Y.O.,GRANTS,2102626669
08.02.2017,CHILDREN'S SERVICES,GERMAN KINDERGARTEN LTD,"13,512.00",NURSURERY EDUCATION GRANT-3 Y.O.,GRANTS,2102626608
08.02.2017,CHILDREN'S SERVICES,GODS GRACE DAYCARE,"4,171.50",NURSURERY EDUCATION GRANT-3 Y.O.,GRANTS,2102626610
08.02.2017,CHILDREN'S SERVICES,GOOSE GREEN PRIMARY AND NURSERY SCHOOL,381.6,NURSURERY EDUCATION GRANT-3 Y.O.,GRANTS,2102627167
08.02.2017,CHILDREN'S SERVICES,GOOSE GREEN PRIMARY AND NURSERY SCHOOL,"27,036.00",NURSURERY EDUCATION GRANT-3 Y.O.,GRANTS,2102626612
08.02.2017,CHILDREN'S SERVICES,GUYS & ST THOMAS NHS FOUNDATION TRUST,"5,140.50",NURSURERY EDUCATION GRANT-3 Y.O.,GRANTS,2102626614
08.02.2017,CHILDREN'S SERVICES,HALFPINTS PRE-SCHOOL,"4,734.00",NURSURERY EDUCATION GRANT-3 Y.O.,GRANTS,2102626615
08.02.2017,CHILDREN'S SERVICES,HARRIS PRIMARY ACADEMY PECKHAM PARK,858.6,NURSURERY EDUCATION GRANT-3 Y.O.,GRANTS,2102627169
08.02.2017,CHILDREN'S SERVICES,HARRIS PRIMARY ACADEMY PECKHAM PARK,"18,360.00",NURSURERY EDUCATION GRANT-3 Y.O.,GRANTS,2102626617
08.02.2017,CHILDREN'S SERVICES,HAVILAH DAY CARE NURSERY,"4,590.00",NURSURERY EDUCATION GRANT-3 Y.O.,GRANTS,2102626618
08.02.2017,CHILDREN'S SERVICES,HEAVEN SENT NURSERY LTD,"11,430.00",NURSURERY EDUCATION GRANT-3 Y.O.,GRANTS,2102626619
08.02.2017,CHILDREN'S SERVICES,HERMAN WHYTE T/A LITTLE CLIMBERS DAYCARE PROJECT,"2,934.00",NURSURERY EDUCATION GRANT-3 Y.O.,GRANTS,2102626633
08.02.2017,CHILDREN'S SERVICES,JAMES ALLEN GIRLS SCHOOL,"8,419.50",NURSURERY EDUCATION GRANT-3 Y.O.,GRANTS,2102626622
08.02.2017,CHILDREN'S SERVICES,JOHN DONNE PRIMARY SCHOOL,"1,049.40",NURSURERY EDUCATION GRANT-3 Y.O.,GRANTS,2102627171
08.02.2017,CHILDREN'S SERVICES,JOHN DONNE PRIMARY SCHOOL,"22,999.50",NURSURERY EDUCATION GRANT-3 Y.O.,GRANTS,2102626623
08.02.2017,CHILDREN'S SERVICES,JULIE THOMPSON,"15,238.80",NURSURERY EDUCATION GRANT-3 Y.O.,GRANTS,2102626582
08.02.2017,CHILDREN'S SERVICES,K & O CHILDCARE LTD,"10,350.00",NURSURERY EDUCATION GRANT-3 Y.O.,GRANTS,2102626625
08.02.2017,CHILDREN'S SERVICES,KINGS COLLEGE NHS FOUNDATION TRUST,"14,868.00",NURSURERY EDUCATION GRANT-3 Y.O.,GRANTS,2102626626
08.02.2017,CHILDREN'S SERVICES,LILIES DAY NURSERY,"36,450.00",NURSURERY EDUCATION GRANT-3 Y.O.,GRANTS,2102626630
08.02.2017,CHILDREN'S SERVICES,LITTLE ACORNS DAY NURSERY,"1,335.60",NURSURERY EDUCATION GRANT-3 Y.O.,GRANTS,2102627173
08.02.2017,CHILDREN'S SERVICES,LITTLE ACORNS DAY NURSERY,"20,781.00",NURSURERY EDUCATION GRANT-3 Y.O.,GRANTS,2102626631
08.02.2017,CHILDREN'S SERVICES,LITTLE FINGERS MONTESSORI 2,"4,986.00",NURSURERY EDUCATION GRANT-3 Y.O.,GRANTS,2102626629
08.02.2017,CHILDREN'S SERVICES,LITTLE JUNGLE NURSERY LIMITED,"21,888.00",NURSURERY EDUCATION GRANT-3 Y.O.,GRANTS,2102626634
08.02.2017,CHILDREN'S SERVICES,LITTLE PILLARS MONTESSORI LTD,"1,440.00",NURSURERY EDUCATION GRANT-3 Y.O.,GRANTS,2102626636
08.02.2017,CHILDREN'S SERVICES,LITTLE WINNERS DAY NURSERY 1,"8,538.00",NURSURERY EDUCATION GRANT-3 Y.O.,GRANTS,2102626635
08.02.2017,CHILDREN'S SERVICES,LOGICOUS LTD,"6,897.00",NURSURERY EDUCATION GRANT-3 Y.O.,GRANTS,2102626579
08.02.2017,CHILDREN'S SERVICES,LONDON EARLY YEARS FOUNDATION,"21,897.60",NURSURERY EDUCATION GRANT-3 Y.O.,GRANTS,2102626581
08.02.2017,CHILDREN'S SERVICES,LONDON EARLY YEARS FOUNDATION,"14,166.00",NURSURERY EDUCATION GRANT-3 Y.O.,GRANTS,2102626587
08.02.2017,CHILDREN'S SERVICES,LONDON EARLY YEARS FOUNDATION,"14,776.80",NURSURERY EDUCATION GRANT-3 Y.O.,GRANTS,2102626662
08.02.2017,CHILDREN'S SERVICES,MAGIC ROUNDABOUT NURSERIES LTD,"13,086.00",NURSURERY EDUCATION GRANT-3 Y.O.,GRANTS,2102626638
08.02.2017,CHILDREN'S SERVICES,MATVIC VENTURES LTD T/A MAGIC MIND NURSERY & PRE-SCHOOL,"6,246.00",NURSURERY EDUCATION GRANT-3 Y.O.,GRANTS,2102626637
08.02.2017,CHILDREN'S SERVICES,MIATA EDUCATIONAL SERVICES LTD,"5,562.00",NURSURERY EDUCATION GRANT-3 Y.O.,GRANTS,2102626602
08.02.2017,CHILDREN'S SERVICES,MINI TREASURES NURSERY,381.6,NURSURERY EDUCATION GRANT-3 Y.O.,GRANTS,2102627174
08.02.2017,CHILDREN'S SERVICES,MINI TREASURES NURSERY,"10,314.00",NURSURERY EDUCATION GRANT-3 Y.O.,GRANTS,2102626639
08.02.2017,CHILDREN'S SERVICES,MINI TREASURES NURSERY LTD,477,NURSURERY EDUCATION GRANT-3 Y.O.,GRANTS,2102627175
08.02.2017,CHILDREN'S SERVICES,MOTHER GOOSE NURSERIES - GREENDALE FIELDS LTD,"4,914.00",NURSURERY EDUCATION GRANT-3 Y.O.,GRANTS,2102626640
08.02.2017,CHILDREN'S SERVICES,MOTHER GOOSE NURSERIES T/A MOTHER GOOSE,"6,246.00",NURSURERY EDUCATION GRANT-3 Y.O.,GRANTS,2102626642
08.02.2017,CHILDREN'S SERVICES,MOTHER GOOSE NURSERIES T/A MOTHER GOOSE NURSERIES (UPLAND ) LTD,"4,986.00",NURSURERY EDUCATION GRANT-3 Y.O.,GRANTS,2102626641
08.02.2017,CHILDREN'S SERVICES,MUSTARD SEED PRE-SCHOOL,"6,768.90",NURSURERY EDUCATION GRANT-3 Y.O.,GRANTS,2102626643
08.02.2017,CHILDREN'S SERVICES,NEW VISION DAY NURSERY,286.2,NURSURERY EDUCATION GRANT-3 Y.O.,GRANTS,2102627176
08.02.2017,CHILDREN'S SERVICES,NEW VISION DAY NURSERY,"9,336.00",NURSURERY EDUCATION GRANT-3 Y.O.,GRANTS,2102626647
08.02.2017,CHILDREN'S SERVICES,NICKI DAY NURSERY LTD,763.2,NURSURERY EDUCATION GRANT-3 Y.O.,GRANTS,2102627177
08.02.2017,CHILDREN'S SERVICES,NICKI DAY NURSERY LTD,"10,341.00",NURSURERY EDUCATION GRANT-3 Y.O.,GRANTS,2102626648
08.02.2017,CHILDREN'S SERVICES,PATRICIA IBIRONKE T/A JOYFUL STAR NURSERY,"1,664.70",NURSURERY EDUCATION GRANT-3 Y.O.,GRANTS,2102626624
08.02.2017,CHILDREN'S SERVICES,PEOPLES ASSOCIATION YOUTH VISION,"2,016.00",NURSURERY EDUCATION GRANT-3 Y.O.,GRANTS,2102626654
08.02.2017,CHILDREN'S SERVICES,PIPLINGS NURSERY ED,"4,914.00",NURSURERY EDUCATION GRANT-3 Y.O.,GRANTS,2102626650
08.02.2017,CHILDREN'S SERVICES,PLAYDAYS UK LTD,"9,108.00",NURSURERY EDUCATION GRANT-3 Y.O.,GRANTS,2102626659
08.02.2017,CHILDREN'S SERVICES,PLAYSHACK PLAYGROUP,"5,886.00",NURSURERY EDUCATION GRANT-3 Y.O.,GRANTS,2102626651
08.02.2017,CHILDREN'S SERVICES,PUDDLEDUCK NURSERY,"13,680.00",NURSURERY EDUCATION GRANT-3 Y.O.,GRANTS,2102626652
08.02.2017,CHILDREN'S SERVICES,REDRIFF PRIMARY SCHOOL,"26,860.50",NURSURERY EDUCATION GRANT-3 Y.O.,GRANTS,2102626653
08.02.2017,CHILDREN'S SERVICES,ROCKINGHAM COMMUNITY NURSERY,"20,988.00",NURSURERY EDUCATION GRANT-3 Y.O.,GRANTS,2102626655
08.02.2017,CHILDREN'S SERVICES,ROCKINGHAM PRE-SCHOOL,900,NURSURERY EDUCATION GRANT-3 Y.O.,GRANTS,2102626656
08.02.2017,CHILDREN'S SERVICES,ROTHERHITHE PRIMARY SCHOOL,763.2,NURSURERY EDUCATION GRANT-3 Y.O.,GRANTS,2102627181
08.02.2017,CHILDREN'S SERVICES,ROTHERHITHE PRIMARY SCHOOL,"12,744.00",NURSURERY EDUCATION GRANT-3 Y.O.,GRANTS,2102626657
08.02.2017,CHILDREN'S SERVICES,S R C COMMUNITY NURSERY,763.2,NURSURERY EDUCATION GRANT-3 Y.O.,GRANTS,2102627182
08.02.2017,CHILDREN'S SERVICES,S R C COMMUNITY NURSERY,"15,246.00",NURSURERY EDUCATION GRANT-3 Y.O.,GRANTS,2102626663
08.02.2017,CHILDREN'S SERVICES,SANDRA LITCHMORE,477,NURSURERY EDUCATION GRANT-3 Y.O.,GRANTS,2102627163
08.02.2017,CHILDREN'S SERVICES,SANDRA LITCHMORE,"8,478.00",NURSURERY EDUCATION GRANT-3 Y.O.,GRANTS,2102626605
08.02.2017,CHILDREN'S SERVICES,SMART KIDS DAY NURSERY,"2,484.00",NURSURERY EDUCATION GRANT-3 Y.O.,GRANTS,2102626660
08.02.2017,CHILDREN'S SERVICES,SMART START,"39,762.00",NURSURERY EDUCATION GRANT-3 Y.O.,GRANTS,2102626661
08.02.2017,CHILDREN'S SERVICES,ST JOHNS PRE SCHOOL,"8,640.00",NURSURERY EDUCATION GRANT-3 Y.O.,GRANTS,2102626665
08.02.2017,CHILDREN'S SERVICES,ST JUDES PLAYGROUP,"4,846.50",NURSURERY EDUCATION GRANT-3 Y.O.,GRANTS,2102626666
08.02.2017,CHILDREN'S SERVICES,ST MARY'S PRE-SCHOOL,"8,730.00",NURSURERY EDUCATION GRANT-3 Y.O.,GRANTS,2102626667
08.02.2017,CHILDREN'S SERVICES,SUCCESS ASSOCIATES,"4,725.00",NURSURERY EDUCATION GRANT-3 Y.O.,GRANTS,2102626628
08.02.2017,CHILDREN'S SERVICES,SURE AND FIRM FOUNDATIONS,"7,776.00",NURSURERY EDUCATION GRANT-3 Y.O.,GRANTS,2102626644
08.02.2017,CHILDREN'S SERVICES,TADWORTH PRE-SCHOOL,"5,508.00",NURSURERY EDUCATION GRANT-3 Y.O.,GRANTS,2102626668
08.02.2017,CHILDREN'S SERVICES,THE BEECHES NURSERY GROUP LTD,"14,184.00",NURSURERY EDUCATION GRANT-3 Y.O.,GRANTS,2102626607
08.02.2017,CHILDREN'S SERVICES,THE BOSCO CENTRE,"9,576.00",NURSURERY EDUCATION GRANT-3 Y.O.,GRANTS,2102626583
08.02.2017,CHILDREN'S SERVICES,THE CHERRY TREE MONTESSORI NURSERY,"8,064.00",NURSURERY EDUCATION GRANT-3 Y.O.,GRANTS,2102626590
08.02.2017,CHILDREN'S SERVICES,THE FRUIT TREE DAY NURSERY,"11,655.00",NURSURERY EDUCATION GRANT-3 Y.O.,GRANTS,2102626670
08.02.2017,CHILDREN'S SERVICES,THE VILLA SCHOOL & NURSERY LTD,"57,075.00",NURSURERY EDUCATION GRANT-3 Y.O.,GRANTS,2102626671
08.02.2017,CHILDREN'S SERVICES,TINU ODEKU T/A LITTLE ANGELS CHILDCARE SERVICES,"3,366.00",NURSURERY EDUCATION GRANT-3 Y.O.,GRANTS,2102626632
08.02.2017,CHILDREN'S SERVICES,TODDLE ON INN LTD,828,NURSURERY EDUCATION GRANT-3 Y.O.,GRANTS,2102626672
08.02.2017,CHILDREN'S SERVICES,UNDER THE WILLOW NURSERY,"6,588.00",NURSURERY EDUCATION GRANT-3 Y.O.,GRANTS,2102626673
08.02.2017,CHILDREN'S SERVICES,VICTORY IN COMMUNITY RESOURCE CENTRE,"6,556.80",NURSURERY EDUCATION GRANT-3 Y.O.,GRANTS,2102626674
08.02.2017,CHILDREN'S SERVICES,VIVY DAY NURSERY,"5,094.00",NURSURERY EDUCATION GRANT-3 Y.O.,GRANTS,2102626675
08.02.2017,CHILDREN'S SERVICES,WILLIAM BOOTH COLLEGE T/A HUMPTY DUMPTY NURSERY,"1,512.00",NURSURERY EDUCATION GRANT-3 Y.O.,GRANTS,2102626620
08.02.2017,CHILDREN'S SERVICES,WUSINATU BANGURA,828,NURSURERY EDUCATION GRANT-3 Y.O.,GRANTS,2102626676
08.02.2017,CHILDREN'S SERVICES,KING EDWARDS SCHOOL WITLEY,"2,497.50",PUPIL PREMIUM CURRENT YEAR,EXTERNAL AGENCIES AND BODIES,5902235546
08.02.2017,CHILDREN'S SERVICES,REDACTED PERSONAL DATA,269.08,RESIDENCE ORDERS,PAYMENTS TO CARERS,2102626854
08.02.2017,CHILDREN'S SERVICES,REDACTED PERSONAL DATA,264.16,RESIDENCE ORDERS,PAYMENTS TO CARERS,2102626952
08.02.2017,CHILDREN'S SERVICES,REDACTED PERSONAL DATA,263.71,SPECIAL GUARDIANSHIP,PAYMENTS TO CARERS,2102626933
08.02.2017,CHILDREN'S SERVICES,REDACTED PERSONAL DATA,276.1,SPECIAL GUARDIANSHIP,PAYMENTS TO CARERS,2102626884
08.02.2017,CHILDREN'S SERVICES,REDACTED PERSONAL DATA,269.08,SPECIAL GUARDIANSHIP,PAYMENTS TO CARERS,2102626984
08.02.2017,CHILDREN'S SERVICES,REDACTED PERSONAL DATA,-551.08,SPECIAL GUARDIANSHIP,PAYMENTS TO CARERS,2102614843
08.02.2017,CHILDREN'S SERVICES,REDACTED PERSONAL DATA,340.66,SPECIAL GUARDIANSHIP,PAYMENTS TO CARERS,2102627019
08.02.2017,CHILDREN'S SERVICES,REDACTED PERSONAL DATA,269.08,SPECIAL GUARDIANSHIP,PAYMENTS TO CARERS,2102627001
08.02.2017,CHILDREN'S SERVICES,REDACTED PERSONAL DATA,350,SPECIAL GUARDIANSHIP,PAYMENTS TO CARERS,2102626973
08.02.2017,CHILDREN'S SERVICES,REDACTED PERSONAL DATA,276.1,SPECIAL GUARDIANSHIP,PAYMENTS TO CARERS,2102626934
08.02.2017,CHILDREN'S SERVICES,REDACTED PERSONAL DATA,354.59,SPECIAL GUARDIANSHIP,PAYMENTS TO CARERS,2102627010
08.02.2017,CHILDREN'S SERVICES,REDACTED PERSONAL DATA,525,SPECIAL GUARDIANSHIP,PAYMENTS TO CARERS,2102626756
08.02.2017,CHILDREN'S SERVICES,REDACTED PERSONAL DATA,525,SPECIAL GUARDIANSHIP,PAYMENTS TO CARERS,2102626947
08.02.2017,CHILDREN'S SERVICES,REDACTED PERSONAL DATA,525,SPECIAL GUARDIANSHIP,PAYMENTS TO CARERS,2102626995
08.02.2017,CHILDREN'S SERVICES,REDACTED PERSONAL DATA,377.2,SPECIALIST CARE,SECTION 17 PAYMENTS TO CLIENTS,2102626680
08.02.2017,COMMUNITIES,HOMELY HOUSING LTD,"3,612.00",NO RECOURSE TO PUBLIC FUNDS,SECTION 17 PAYMENTS TO AGENCIES/CARERS,5902235639
08.02.2017,COMMUNITIES,THE CAMDEN SOCIETY (CATERING),965.3,TENANT MGT INITITIVES,EXTERNAL AGENCIES AND BODIES,5902235466
08.02.2017,COMMUNITIES,TOM HOPKINS ASSOCIATES LTD,"1,470.00",TENANT MGT INITITIVES,TRAINING,5902235633
08.02.2017,CUSTOMER EXPERIENCE HGF,IC CONSULTANTS LTD,276,CORONER'S,PROFESSIONAL FEES,5902235570
08.02.2017,CUSTOMER EXPERIENCE HGF,IC CONSULTANTS LTD,312,CORONER'S,PROFESSIONAL FEES,5902235575
08.02.2017,CUSTOMER EXPERIENCE HGF,IC CONSULTANTS LTD,312,CORONER'S,PROFESSIONAL FEES,5902235583
08.02.2017,CUSTOMER EXPERIENCE HGF,IC CONSULTANTS LTD,332,CORONER'S,PROFESSIONAL FEES,5902235588
08.02.2017,CUSTOMER EXPERIENCE HGF,IC CONSULTANTS LTD,368,CORONER'S,PROFESSIONAL FEES,5902235576
08.02.2017,CUSTOMER EXPERIENCE HGF,IC CONSULTANTS LTD,368,CORONER'S,PROFESSIONAL FEES,5902235585
08.02.2017,CUSTOMER EXPERIENCE HGF,IC CONSULTANTS LTD,420,CORONER'S,PROFESSIONAL FEES,5902235572
08.02.2017,CUSTOMER EXPERIENCE HGF,IC CONSULTANTS LTD,464,CORONER'S,PROFESSIONAL FEES,5902235587
08.02.2017,CUSTOMER EXPERIENCE HGF,IC CONSULTANTS LTD,492,CORONER'S,PROFESSIONAL FEES,5902235579
08.02.2017,CUSTOMER EXPERIENCE HGF,IC CONSULTANTS LTD,560,CORONER'S,PROFESSIONAL FEES,5902235582
08.02.2017,CUSTOMER EXPERIENCE HGF,IC CONSULTANTS LTD,580,CORONER'S,PROFESSIONAL FEES,5902235567
08.02.2017,CUSTOMER EXPERIENCE HGF,ANDY GALE HOUSING CONSULTANCY,"14,699.71",HOMELESS & HOUSING OPTIONS MGT,PROFESSIONAL FEES,5902235596
08.02.2017,CUSTOMER EXPERIENCE HGF,J & M OASIS LTD,"37,961.50",NIGHTLY TA (NSC),EXTERNAL AGENCIES AND BODIES,5902235512
08.02.2017,CUSTOMER EXPERIENCE HGF,INTERSERVE (FACILITIES MANAGEMENT),"6,514.96",REGISTRARS,BUILDING R&M,2102626474
08.02.2017,CUSTOMER EXPERIENCE HGF,SABIO NETWORK SERVICES LTD,"8,153.88",SYSTEMS,TELEPHONES (LAND LINES),5902235498
08.02.2017,ENVIRONMENT AND LEISURE,APPLEYARD & TREW,"16,000.00",CAPITAL PS (LEISURE),CONSTRUCTION FEES  - EXTERNAL,5902235564
08.02.2017,ENVIRONMENT AND LEISURE,DAVID J WEBB SURVEYS LTD,900,CAPITAL PS (LEISURE),CONSTRUCTION FEES  - EXTERNAL,5902235641
08.02.2017,ENVIRONMENT AND LEISURE,FAITHFULL & GOULD,"15,588.73",CAPITAL PS (LEISURE),"PLANT, MACHINERY & EQUIPMENT ACQUISITION",5902235631
08.02.2017,ENVIRONMENT AND LEISURE,GODFREYS (SEVENOAKS) LTD,"16,198.00",CAPITAL PS (LEISURE),CONSTRUCTION,5902235656
08.02.2017,ENVIRONMENT AND LEISURE,PICK EVERARD,462.38,CAPITAL PS (LEISURE),CONSTRUCTION FEES  - EXTERNAL,5902235653
08.02.2017,ENVIRONMENT AND LEISURE,VINCENTSTOKES LTD,"136,411.49",CAPITAL PS (LEISURE),CONSTRUCTION MAIN CONTRACT -CERTIFICATED,2102627201
08.02.2017,ENVIRONMENT AND LEISURE,WALWORTH GARDEN SERVICES,960,CAPITAL PS (LEISURE),CONST'N MAIN CONTRACT - NON CERTIFICATED,5902235529
08.02.2017,ENVIRONMENT DIRECTORATE,HITACHI CAPITAL VEHICLE SOLN LTD,"8,231.09",CAR LEASING CTRL A/C,VEHICLE LEASING CHARGES,5902235615
08.02.2017,ENVIRONMENT DIRECTORATE,DAWSON RENTALS SWEEPERS,"2,200.00",COMMERCIAL VEH CTRL A/C,HIRED VEHICLES,5902235616
08.02.2017,ENVIRONMENT DIRECTORATE,DAWSON RENTALS SWEEPERS,"2,200.00",COMMERCIAL VEH CTRL A/C,HIRED VEHICLES,5902235619
08.02.2017,ENVIRONMENT DIRECTORATE,DAWSON RENTALS SWEEPERS,"2,200.00",COMMERCIAL VEH CTRL A/C,HIRED VEHICLES,5902235623
08.02.2017,ENVIRONMENT DIRECTORATE,DAWSON RENTALS SWEEPERS,"2,200.00",COMMERCIAL VEH CTRL A/C,HIRED VEHICLES,5902235626
08.02.2017,ENVIRONMENT DIRECTORATE,ENTERPRISE FLEX E RENT,"1,276.00",COMMERCIAL VEH CTRL A/C,HIRED VEHICLES,5902235541
08.02.2017,ENVIRONMENT DIRECTORATE,GULLIVERS TRUCK HIRE LTD,265,COMMERCIAL VEH CTRL A/C,HIRED VEHICLES,5902235549
08.02.2017,ENVIRONMENT DIRECTORATE,GULLIVERS TRUCK HIRE LTD,915,COMMERCIAL VEH CTRL A/C,HIRED VEHICLES,5902235547
08.02.2017,ENVIRONMENT DIRECTORATE,LCV HIRE SOLUTIONS LTD,272.8,COMMERCIAL VEH CTRL A/C,HIRED VEHICLES,5902235464
08.02.2017,ENVIRONMENT DIRECTORATE,LCV HIRE SOLUTIONS LTD,332.01,COMMERCIAL VEH CTRL A/C,HIRED VEHICLES,5902235465
08.02.2017,ENVIRONMENT DIRECTORATE,TIPPERHIRE LTD,483,COMMERCIAL VEH CTRL A/C,HIRED VEHICLES,5902235460
08.02.2017,ENVIRONMENT DIRECTORATE,TIPPERHIRE LTD,483,COMMERCIAL VEH CTRL A/C,HIRED VEHICLES,5902235461
08.02.2017,ENVIRONMENT DIRECTORATE,TIPPERHIRE LTD,483,COMMERCIAL VEH CTRL A/C,HIRED VEHICLES,5902235462
08.02.2017,ENVIRONMENT DIRECTORATE,KINGS COLLEGE LONDON,"1,558.50",LICENSING,STATIONERY,5902235560
08.02.2017,ENVIRONMENT DIRECTORATE,KYBO CORP,845,LICENSING,STATIONERY,5902235621
08.02.2017,ENVIRONMENT DIRECTORATE,BELL BRUSH COMPANY,867.25,MANAGEMENT TEAM,MATERIALS,5902235476
08.02.2017,ENVIRONMENT DIRECTORATE,COMPLETE TREE CARE LTD,"1,574.43",NON HOUSING GROUNDS,AGENCY STAFF,5902235651
08.02.2017,ENVIRONMENT DIRECTORATE,COMMUNITY CYCLEWORKS,"1,930.00",STP MONITORING AND INITIATIVES,PROFESSIONAL FEES,5902235531
08.02.2017,ENVIRONMENT DIRECTORATE,THE OUT OF HOME MEDIA CONSULTANCY LTD,"6,375.00",STREET SCENE MANAGER OVERHEADS,PROFESSIONAL FEES,5902235597
08.02.2017,ENVIRONMENT DIRECTORATE,PROJECT SKILLS SOLUTIONS LTD,507,STREET WORKS OVERHEADS,BOOKS & PUBLICATIONS,5902235558
08.02.2017,ENVIRONMENT DIRECTORATE,PROJECT SKILLS SOLUTIONS LTD,507,STREET WORKS OVERHEADS,BOOKS & PUBLICATIONS,5902235558
08.02.2017,ENVIRONMENT DIRECTORATE,PROJECT SKILLS SOLUTIONS LTD,595,STREET WORKS OVERHEADS,BOOKS & PUBLICATIONS,5902235558
08.02.2017,F & C S EXCLUDING CORPORATE BUDGETS,CIPFA BUSINESS LTD,380,CORPORATE SERVICES AND F&G,BOOKS & PUBLICATIONS,5902235624
08.02.2017,F & C S EXCLUDING CORPORATE BUDGETS,CIPFA BUSINESS LTD,380,CORPORATE SERVICES AND F&G,BOOKS & PUBLICATIONS,5902235624
08.02.2017,F & C S EXCLUDING CORPORATE BUDGETS,CIPFA BUSINESS LTD,650,CORPORATE SERVICES AND F&G,BOOKS & PUBLICATIONS,5902235624
08.02.2017,F & C S EXCLUDING CORPORATE BUDGETS,INSTITUTE OF LEGAL EXECUTIVES,364,LEGAL SVCES MANAGEMENT,SUBSCRIPTIONS,5902235507
08.02.2017,F & C S EXCLUDING CORPORATE BUDGETS,INSTITUTE OF LEGAL EXECUTIVES,364,LEGAL SVCES MANAGEMENT,SUBSCRIPTIONS,5902235514
08.02.2017,F & C S EXCLUDING CORPORATE BUDGETS,LEXISNEXIS UK,"26,410.00",LEGAL SVCES MANAGEMENT,SOFTWARE,5902235496
08.02.2017,HOUSING,DUCTCLEAN (UK) LTD,"43,924.55",DUCTCLEAN,MANUAL CREDITORS,2102627193
08.02.2017,HOUSING,EURO CONTRACTS (LONDON) LTD,266.5,EUROCONTRACTS,MANUAL CREDITORS,5902235518
08.02.2017,HOUSING,EURO CONTRACTS (LONDON) LTD,"2,404.48",EUROCONTRACTS,MANUAL CREDITORS,5902235521
08.02.2017,HOUSING,C A BALDWIN & CO LTD,395,STORES,CREDITORS -GR/IR CLEARING ACCOUNT,5902235562
08.02.2017,HOUSING,C A BALDWIN & CO LTD,482,STORES,CREDITORS -GR/IR CLEARING ACCOUNT,5902235562
08.02.2017,HOUSING,C A BALDWIN & CO LTD,504,STORES,CREDITORS -GR/IR CLEARING ACCOUNT,5902235562
08.02.2017,HOUSING,CROSSFOLD ELECTRICAL WHOLESALERS,525,STORES,CREDITORS -GR/IR CLEARING ACCOUNT,5902235627
08.02.2017,HOUSING,CROSSFOLD ELECTRICAL WHOLESALERS,683,STORES,CREDITORS -GR/IR CLEARING ACCOUNT,5902235627
08.02.2017,HOUSING,CROSSFOLD ELECTRICAL WHOLESALERS,"1,024.50",STORES,CREDITORS -GR/IR CLEARING ACCOUNT,5902235625
08.02.2017,HOUSING,CROSSFOLD ELECTRICAL WHOLESALERS,"2,071.00",STORES,CREDITORS -GR/IR CLEARING ACCOUNT,5902235627
08.02.2017,HOUSING,FAYERS PLUMBING & BUILDING SUPPLIES,"1,079.60",STORES,CREDITORS -GR/IR CLEARING ACCOUNT,5902235595
08.02.2017,HOUSING,PPG ARCHITECTURAL COATINGS,264.6,STORES,CREDITORS -GR/IR CLEARING ACCOUNT,5902235628
08.02.2017,HOUSING,PPG ARCHITECTURAL COATINGS,264.6,STORES,CREDITORS -GR/IR CLEARING ACCOUNT,5902235628
08.02.2017,HOUSING,SMI GROUP,299,STORES,CREDITORS -GR/IR CLEARING ACCOUNT,5902235530
08.02.2017,HOUSING,SMI GROUP,344.5,STORES,CREDITORS -GR/IR CLEARING ACCOUNT,5902235530
08.02.2017,HOUSING,TOUCAN TOOL CO LTD,390,STORES,CREDITORS -GR/IR CLEARING ACCOUNT,5902235613
08.02.2017,HOUSING HRA,BELL PHILLIPS ARCHITECTS LTD,"82,533.00",CAPITAL PS (HRA),CONSTRUCTION FEES  - EXTERNAL,5902235503
08.02.2017,HOUSING HRA,CALFORD SEADEN LLP,"3,272.45",CAPITAL PS (HRA),CONSTRUCTION FEES  - EXTERNAL,5902235532
08.02.2017,HOUSING HRA,CALFORD SEADEN LLP,"3,436.12",CAPITAL PS (HRA),CONSTRUCTION FEES  - EXTERNAL,5902235533
08.02.2017,HOUSING HRA,INVICTA BUILDING SERVICES LTD,"125,744.77",CAPITAL PS (HRA),CONSTRUCTION MAIN CONTRACT -CERTIFICATED,2102627195
08.02.2017,HOUSING HRA,KEEPMOAT REGENERATION (APOLLO) LTD,"16,642.65",CAPITAL PS (HRA),CONSTRUCTION MAIN CONTRACT -CERTIFICATED,2102627198
08.02.2017,HOUSING HRA,KEEPMOAT REGENERATION (APOLLO) LTD,"39,010.18",CAPITAL PS (HRA),CONSTRUCTION MAIN CONTRACT -CERTIFICATED,2102627198
08.02.2017,HOUSING HRA,KEEPMOAT REGENERATION (APOLLO) LTD,"57,718.90",CAPITAL PS (HRA),CONSTRUCTION MAIN CONTRACT -CERTIFICATED,2102627199
08.02.2017,HOUSING HRA,KEEPMOAT REGENERATION (APOLLO) LTD,"73,969.47",CAPITAL PS (HRA),CONSTRUCTION MAIN CONTRACT -CERTIFICATED,2102627198
08.02.2017,HOUSING HRA,KEEPMOAT REGENERATION (APOLLO) LTD,"82,716.94",CAPITAL PS (HRA),CONSTRUCTION MAIN CONTRACT -CERTIFICATED,2102627197
08.02.2017,HOUSING HRA,SALTASH ENTERPRISES LTD,"44,338.17",CAPITAL PS (HRA),CONSTRUCTION MAIN CONTRACT -CERTIFICATED,2102627203
08.02.2017,HOUSING HRA,SALTASH ENTERPRISES LTD,"63,429.58",CAPITAL PS (HRA),CONSTRUCTION MAIN CONTRACT -CERTIFICATED,2102627202
08.02.2017,HOUSING HRA,GEOFFREY OSBORNE LIMITED,"87,651.75",CAPITAL PS (REGEN),CONSTRUCTION MAIN CONTRACT -CERTIFICATED,2102627196
08.02.2017,HOUSING HRA,JOHN BURKE ASSOCIATES,900,CAPITAL PS (REGEN),CONSTRUCTION FEES - INTERNAL,5902235652
08.02.2017,HOUSING HRA,JOHN BURKE ASSOCIATES,"1,080.00",CAPITAL PS (REGEN),CONSTRUCTION FEES - INTERNAL,5902235649
08.02.2017,LEISURE DIRECTORATE,RED61 LTD,"10,000.00",FIREWORK DISPLAY,MEDICAL / HEALTH & SAFETY SERVICES,5902235643
08.02.2017,LEISURE DIRECTORATE,THE RENEWABLE ENERGY COMPANY LTD,-300.89,HOMERSTALL ROAD SPORTS GROUND,ELECTRICITY,5902235442
08.02.2017,LEISURE DIRECTORATE,THE RENEWABLE ENERGY COMPANY LTD,329.69,HOMERSTALL ROAD SPORTS GROUND,GAS,5902235510
08.02.2017,LEISURE DIRECTORATE,THE RENEWABLE ENERGY COMPANY LTD,503.91,HOMERSTALL ROAD SPORTS GROUND,ELECTRICITY,5902235506
08.02.2017,MODERNISATION,THE OUT OF HOME MEDIA CONSULTANCY LTD,"6,600.00",COMMERCIAL PROPERTIES,PROFESSIONAL FEES,5902235597
08.02.2017,MODERNISATION HGF,THAMES REACH EMPOLYMENT ACADEMY,277,ADULTS MULTI-AGENCY SAFEGUARDING TRNG,GRANTS,5902235561
08.02.2017,MODERNISATION HGF,TMP (UK) LIMITED,787,TMP,RECRUITMENT ADVERTISING,5902235483
08.02.2017,MODERNISATION HGF,TMP (UK) LIMITED,876.3,TMP,RECRUITMENT ADVERTISING,5902235524
08.02.2017,PLANNING AND TRANSPORT,KYBO CORP,409.5,DEVELOPMENT CONTROL ADMINSTRATION,COMPUTER MAINTENANCE,5902235543
08.02.2017,PLANNING AND TRANSPORT,KYBO CORP,624,DEVELOPMENT CONTROL ADMINSTRATION,COMPUTER MAINTENANCE,5902235544
08.02.2017,PLANNING AND TRANSPORT,SOUTHWARK NEWSPAPER LTD,504,DEVELOPMENT CONTROL ADMINSTRATION,MARKETING & PUBLICITY SERVICES,5902235495
08.02.2017,PLANNING AND TRANSPORT,SOUTHWARK NEWSPAPER LTD,840,DEVELOPMENT CONTROL ADMINSTRATION,MARKETING & PUBLICITY SERVICES,5902235481
08.02.2017,PLANNING AND TRANSPORT,HILSON MORAN PARTNERSHIP LTD,"2,920.00",MAJOR APPLICATIONS,PROFESSIONAL FEES,5902235499
08.02.2017,REGENERATION,STANBURY BUILDING SERVICES LTD,495,CPHA  MANAGED PROPERTIES,BUILDING R&M,2102627205
08.02.2017,REGENERATION,STANBURY BUILDING SERVICES LTD,795,CPHA  MANAGED PROPERTIES,BUILDING R&M,2102627207
08.02.2017,REGENERATION,OPEN COMMUNITIES LTD,813.75,QUEENS ROAD BLOCK F FEASIBILTY,PROFESSIONAL FEES,5902235539
08.02.2017,REGENERATION,OPEN COMMUNITIES LTD,891.25,QUEENS ROAD BLOCK F FEASIBILTY,PROFESSIONAL FEES,5902235537
08.02.2017,REGENERATION,WESTCO TRADING LTD,400,STAKEHOLDER ENGAGEMENT,MARKETING & PUBLICITY SERVICES,5902235601
08.02.2017,REGENERATION,WESTCO TRADING LTD,"1,450.00",STAKEHOLDER ENGAGEMENT,MARKETING & PUBLICITY SERVICES,5902235601
08.02.2017,RESIDENT SERVICES,THE CAMDEN SOCIETY (CATERING),670.5,HOUSING STRATEGY (HRA),REFRESHMENTS FOR MEETINGS,5902235642
08.02.2017,RESIDENT SERVICES,THE ALBANY 2001 COMPANY LTD,410.2,OPERATIONS/OFFICES ACCOMMODATION,REFRESHMENTS FOR MEETINGS,5902235477
08.02.2017,SOUTHWARK BUILDING SERVICES,EMPIRE BUILDERS,"8,029.50",BUSINESS SUPPORT,OTHER CONTRACTORS,2102627194
09.02.2017,ADULT SOCIAL CARE,REDACTED PERSONAL DATA,488,APPOINTEESHIPS,OTHER PAYMENTS FOR CLIENTS,5902235732
09.02.2017,ADULT SOCIAL CARE,MEDEQUIP ASSISTIVE TECHNOLOGY LTD,308.28,ICES CONTRACT,EQUIPMENT PURCHASE & REPAIR,5902235737
09.02.2017,ADULT SOCIAL CARE,MEDEQUIP ASSISTIVE TECHNOLOGY LTD,621.6,ICES CONTRACT,EQUIPMENT PURCHASE & REPAIR,5902235735
09.02.2017,ADULT SOCIAL CARE,MEDEQUIP ASSISTIVE TECHNOLOGY LTD,621.6,ICES CONTRACT,EQUIPMENT PURCHASE & REPAIR,5902235736
09.02.2017,ADULT SOCIAL CARE,MEDEQUIP ASSISTIVE TECHNOLOGY LTD,"152,852.92",ICES CONTRACT,EQUIPMENT PURCHASE & REPAIR,5902235733
09.02.2017,ADULT SOCIAL CARE,CARE DIRECT UK LTD,586.81,LD LTS 18-64,HOMECARE - SPOT,2102627503
09.02.2017,ADULT SOCIAL CARE,CARE DIRECT UK LTD,755.44,LD STS 18-64,HOMECARE - IC,2102627462
09.02.2017,ADULT SOCIAL CARE,CARE DIRECT UK LTD,343.99,MH LTS 65+,HOMECARE - SPOT,2102627408
09.02.2017,ADULT SOCIAL CARE,CARE DIRECT UK LTD,451.92,PHY LTS 18-64,HOMECARE - SPOT,2102627438
09.02.2017,ADULT SOCIAL CARE,CARE DIRECT UK LTD,627.32,PHY LTS 18-64,HOMECARE - C&V,2102627530
09.02.2017,ADULT SOCIAL CARE,CARE DIRECT UK LTD,661.01,PHY LTS 18-64,HOMECARE - SPOT,2102627504
09.02.2017,ADULT SOCIAL CARE,CARE DIRECT UK LTD,711.58,PHY LTS 18-64,HOMECARE - SPOT,2102627420
09.02.2017,ADULT SOCIAL CARE,LONDON CARE PLC,460.88,PHY LTS 18-64,HOMECARE - C&V,2102627541
09.02.2017,ADULT SOCIAL CARE,CARE DIRECT UK LTD,256.29,PHY LTS 65+,HOMECARE - SPOT,2102627436
09.02.2017,ADULT SOCIAL CARE,CARE DIRECT UK LTD,258.33,PHY LTS 65+,HOMECARE - SPOT,2102627396
09.02.2017,ADULT SOCIAL CARE,CARE DIRECT UK LTD,263.01,PHY LTS 65+,HOMECARE - SPOT,2102627470
09.02.2017,ADULT SOCIAL CARE,CARE DIRECT UK LTD,266.42,PHY LTS 65+,HOMECARE - SPOT,2102627376
09.02.2017,ADULT SOCIAL CARE,CARE DIRECT UK LTD,269.8,PHY LTS 65+,HOMECARE - C&V,2102627523
09.02.2017,ADULT SOCIAL CARE,CARE DIRECT UK LTD,279.93,PHY LTS 65+,HOMECARE - C&V,2102627401
09.02.2017,ADULT SOCIAL CARE,CARE DIRECT UK LTD,283.29,PHY LTS 65+,HOMECARE - SPOT,2102627500
09.02.2017,ADULT SOCIAL CARE,CARE DIRECT UK LTD,286.66,PHY LTS 65+,HOMECARE - SPOT,2102627372
09.02.2017,ADULT SOCIAL CARE,CARE DIRECT UK LTD,330.51,PHY LTS 65+,HOMECARE - SPOT,2102627378
09.02.2017,ADULT SOCIAL CARE,CARE DIRECT UK LTD,377.72,PHY LTS 65+,HOMECARE - SPOT,2102627448
09.02.2017,ADULT SOCIAL CARE,CARE DIRECT UK LTD,377.72,PHY LTS 65+,HOMECARE - SPOT,2102627469
09.02.2017,ADULT SOCIAL CARE,CARE DIRECT UK LTD,391.21,PHY LTS 65+,HOMECARE - SPOT,2102627434
09.02.2017,ADULT SOCIAL CARE,CARE DIRECT UK LTD,394.58,PHY LTS 65+,HOMECARE - C&V,2102627468
09.02.2017,ADULT SOCIAL CARE,CARE DIRECT UK LTD,397.96,PHY LTS 65+,HOMECARE - SPOT,2102627370
09.02.2017,ADULT SOCIAL CARE,CARE DIRECT UK LTD,418.19,PHY LTS 65+,HOMECARE - SPOT,2102627344
09.02.2017,ADULT SOCIAL CARE,CARE DIRECT UK LTD,424.93,PHY LTS 65+,HOMECARE - SPOT,2102627432
09.02.2017,ADULT SOCIAL CARE,CARE DIRECT UK LTD,424.94,PHY LTS 65+,HOMECARE - SPOT,2102627374
09.02.2017,ADULT SOCIAL CARE,CARE DIRECT UK LTD,424.94,PHY LTS 65+,HOMECARE - SPOT,2102627477
09.02.2017,ADULT SOCIAL CARE,CARE DIRECT UK LTD,462.03,PHY LTS 65+,HOMECARE - SPOT,2102627409
09.02.2017,ADULT SOCIAL CARE,CARE DIRECT UK LTD,465.41,PHY LTS 65+,HOMECARE - SPOT,2102627517
09.02.2017,ADULT SOCIAL CARE,CARE DIRECT UK LTD,499.13,PHY LTS 65+,HOMECARE - SPOT,2102627463
09.02.2017,ADULT SOCIAL CARE,CARE DIRECT UK LTD,519.33,PHY LTS 65+,HOMECARE - SPOT,2102627446
09.02.2017,ADULT SOCIAL CARE,CARE DIRECT UK LTD,519.36,PHY LTS 65+,HOMECARE - SPOT,2102627399
09.02.2017,ADULT SOCIAL CARE,CARE DIRECT UK LTD,519.4,PHY LTS 65+,HOMECARE - SPOT,2102627454
09.02.2017,ADULT SOCIAL CARE,CARE DIRECT UK LTD,580.07,PHY LTS 65+,HOMECARE - SPOT,2102627437
09.02.2017,ADULT SOCIAL CARE,CARE DIRECT UK LTD,583.42,PHY LTS 65+,HOMECARE - C&V,2102627415
09.02.2017,ADULT SOCIAL CARE,CARE DIRECT UK LTD,607.05,PHY LTS 65+,HOMECARE - SPOT,2102627459
09.02.2017,ADULT SOCIAL CARE,CARE DIRECT UK LTD,613.8,PHY LTS 65+,HOMECARE - SPOT,2102627358
09.02.2017,ADULT SOCIAL CARE,CARE DIRECT UK LTD,708.23,PHY LTS 65+,HOMECARE - SPOT,2102627407
09.02.2017,ADULT SOCIAL CARE,CARE DIRECT UK LTD,708.26,PHY LTS 65+,HOMECARE - SPOT,2102627428
09.02.2017,ADULT SOCIAL CARE,LIFECARE CONSULTING LTD,391.21,PHY LTS 65+,HOMECARE - SPOT,2102627535
09.02.2017,ADULT SOCIAL CARE,LIFECARE CONSULTING LTD,391.21,PHY LTS 65+,HOMECARE - SPOT,2102627537
09.02.2017,ADULT SOCIAL CARE,LIFECARE CONSULTING LTD,489.01,PHY LTS 65+,HOMECARE - SPOT,2102627536
09.02.2017,ADULT SOCIAL CARE,LIFECARE CONSULTING LTD,489.01,PHY LTS 65+,HOMECARE - SPOT,2102627540
09.02.2017,ADULT SOCIAL CARE,ALUN BAYLISS LTD,"2,200.00",SAFEGUARDING TEAM,OTHER CONTRACTORS,5902235776
09.02.2017,ADULT SOCIAL CARE,CARE DIRECT UK LTD,263.05,SOCIAL ISOLATION,HOMECARE - SPOT,2102627508
09.02.2017,ADULT SOCIAL CARE,KENT COUNTY COUNCIL - LASER,"1,199.17",SOUTHWARK RESOURCE CENTRE,ELECTRICITY,5902235714
09.02.2017,ADULT SOCIAL CARE,KENT COUNTY COUNCIL - LASER,"1,436.68",SOUTHWARK RESOURCE CENTRE,ELECTRICITY,5902235715
09.02.2017,ADULT SOCIAL CARE,TUNSTALL HEALTHCARE (UK) LTD,402.2,SOUTHWARK RESOURCE CENTRE,EQUIPMENT PURCHASE & REPAIR,5902235755
09.02.2017,ADULT SOCIAL CARE,TUNSTALL HEALTHCARE (UK) LTD,"3,747.00",SOUTHWARK RESOURCE CENTRE,EQUIPMENT PURCHASE & REPAIR,5902235750
09.02.2017,ASSET MANAGEMENT,M C TECHNICIANS LTD,310,ADAPTATIONS,BUILDING R&M,5902235668
09.02.2017,ASSET MANAGEMENT,SGN CONNECTIONS LTD,"9,556.58",ENG CONTRACTS,HEATING - INDIVIDUAL SYSTEM REPAIR,5902235772
09.02.2017,ASSET MANAGEMENT,A & E ELKINS LTD,"55,271.00",REPAIRS OPERATIONS,OTHER R&M,2102627555
09.02.2017,BERMONDSEY AND ROTHERHITHE COMMUNITY COUNCIL,DAVID IDOWU FOUNDATION ,"1,727.28",DAVID IDOWU FOUNDATION YOUTH INK ,GRANT,CHEQUE PAYMENT
09.02.2017,BERMONDSEY AND ROTHERHITHE COMMUNITY COUNCIL,WHAT'S ON IN ROTHERHITHE GROUP (WORG) ,500,REPRINT OF THE ROTHERHITHE MAP ,GRANT,CHEQUE PAYMENT
09.02.2017,CENTRAL FUNCTIONS,PRB ESTATES LTD,"73,072.23",GARAGE REPAIRS,BUILDING R&M,2102627593
09.02.2017,CENTRAL FUNCTIONS,EDF ENERGY PLC,294.97,HEATING ACCOUNT,ELECTRICITY,5902235847
09.02.2017,CENTRAL FUNCTIONS,EDF ENERGY PLC,436.83,HEATING ACCOUNT,ELECTRICITY,5902235842
09.02.2017,CENTRAL FUNCTIONS,CAPITA BUSINESS SERVICES LTD,"4,153.32",HOME OWNERSHIP,AGENCY STAFF,5902235674
09.02.2017,CENTRAL FUNCTIONS,JUDGE AND PRIESTLEY SOLICITORS,420,OPERATIONAL TEAM,LEGAL FEES & COURT COSTS,5902235661
09.02.2017,CENTRAL FUNCTIONS,MOBYSOFT LTD,"1,014.02",OPERATIONAL TEAM,TRAINING,5902234590
09.02.2017,CHIEF EXECUTIVE,CONWAY AECOM LTD,"6,486.86",CAPITAL PS (REGEN),CONSTRUCTION,2102627592
09.02.2017,CHIEF EXECUTIVE,CONWAY AECOM LTD,"18,862.50",CAPITAL PS (REGEN),CONSTR'N SUB CONTRACT - NON CERTIFICATED,2102627591
09.02.2017,CHIEF EXECUTIVE,DEBRA GOSLING,750,CAPITAL PS (REGEN),CONSTRUCTION FEES  - EXTERNAL,5902235774
09.02.2017,CHIEF EXECUTIVE'S OFFICE,THE WALWORTH SOCIETY,364,BUSINESS SUPPORT,GRANTS,5902235758
09.02.2017,CHILDREN AND ADULT,AHR ARCHITECTS LTD,"27,285.00",CAPITAL PS (EDUCATION),CONSTRUCTION FEES - ARCHITECT,5902235087
09.02.2017,CHILDREN AND ADULT,CBS MAINTENANCE SERVICES LTD,"3,958.87",CAPITAL PS (EDUCATION),CONSTRUCTION MAIN CONTRACT,2102627590
09.02.2017,CHILDREN AND ADULT,LIBRA CONSTRUCTION SERVICES LTD,"140,566.29",CAPITAL PS (EDUCATION),CONSTRUCTION MAIN CONTRACT -CERTIFICATED,2102627562
09.02.2017,CHILDREN AND ADULT,MORGAN SINDALL PLC,"216,152.64",CAPITAL PS (EDUCATION),CONST'N MAIN CONTRACT - NON CERTIFICATED,2102627549
09.02.2017,CHILDREN AND ADULT,MORGAN SINDALL PLC,"677,301.79",CAPITAL PS (EDUCATION),CONSTRUCTION MAIN CONTRACT -CERTIFICATED,2102627552
09.02.2017,CHILDREN AND ADULT,MORGAN SINDALL PLC,"795,736.06",CAPITAL PS (EDUCATION),CONSTRUCTION MAIN CONTRACT -CERTIFICATED,2102627550
09.02.2017,CHILDREN AND ADULT,RUSSELL TREW LIMITED,"3,621.25",CAPITAL PS (EDUCATION),CONSTRUCTION MAIN CONTRACT -CERTIFICATED,2102627547
09.02.2017,CHILDREN AND ADULT,INTERSERVE (FACILITIES MANAGEMENT),"24,060.94",CAPITAL PS (SOC SERV),CONSTRUCTION MAIN CONTRACT -CERTIFICATED,2102627602
09.02.2017,CHILDREN AND ADULT,NUMBER 10 INTERIM LTD,"2,625.00",CAPITAL PS (STRAT SERV),ICT ACQUISITION FEES,5902234931
09.02.2017,CHILDREN AND ADULT,NUMBER 10 INTERIM LTD,"2,625.00",CAPITAL PS (STRAT SERV),ICT ACQUISITION FEES,5902235766
09.02.2017,CHILDREN'S SERVICES,BACONS COLLEGE,"16,508.14",ACADEMIES SECONDARY,HIGH NEEDS - TOP UP FUNDING,2102627575
09.02.2017,CHILDREN'S SERVICES,HARRIS PRIMARY ACADEMY PECKHAM PARK,"42,896.53",ACADEMIES SECONDARY,HIGH NEEDS - TOP UP FUNDING,2102627563
09.02.2017,CHILDREN'S SERVICES,HARRIS PRIMARY FREE SCHOOL PECKHAM,"23,333.15",ACADEMIES SECONDARY,HIGH NEEDS - TOP UP FUNDING,2102627577
09.02.2017,CHILDREN'S SERVICES,KINGSDALE FOUNDATION SCHOOL,"3,769.77",ACADEMIES SECONDARY,HIGH NEEDS - TOP UP FUNDING,2102627571
09.02.2017,CHILDREN'S SERVICES,KINGSDALE FOUNDATION SCHOOL,"4,664.30",ACADEMIES SECONDARY,HIGH NEEDS - TOP UP FUNDING,2102627570
09.02.2017,CHILDREN'S SERVICES,PSYCHOTHERAPY SPACE LTD,360,ADOPTION REFORM GRANT (PART B),PROFESSIONAL FEES,5902235832
09.02.2017,CHILDREN'S SERVICES,TFL TELESALES / OYSTER FULFILMENT,455.2,CENTRAL COSTS - SEN,REMOVAL EXPENSES,5902235212
09.02.2017,CHILDREN'S SERVICES,BELVEDERE COMMUNITY CENTRE,"4,009.68",CONTACT,OTHER PAYMENTS FOR CLIENTS,5902235851
09.02.2017,CHILDREN'S SERVICES,TAVISTOCK & PORTMAN NHS FT,425,EDUCATIONAL PSYCHOLOGY - SEND,TRAINING,5902235689
09.02.2017,CHILDREN'S SERVICES,BACONS COLLEGE,"12,872.85",FE & SIXTH FORM COLLEGES,HIGH NEEDS - TOP UP FUNDING,2102627574
09.02.2017,CHILDREN'S SERVICES,BACONS COLLEGE,"28,487.18",FE & SIXTH FORM COLLEGES,HIGH NEEDS - TOP UP FUNDING,2102627576
09.02.2017,CHILDREN'S SERVICES,GREENSHAW LEARNING TRUST,"3,769.77",FE & SIXTH FORM COLLEGES,STATEMENTED FEES,2102627581
09.02.2017,CHILDREN'S SERVICES,HORNBEAM ACADEMY TRUST,"2,916.66",FE & SIXTH FORM COLLEGES,STATEMENTED FEES,2102627587
09.02.2017,CHILDREN'S SERVICES,HORNBEAM ACADEMY TRUST,"6,105.50",FE & SIXTH FORM COLLEGES,STATEMENTED FEES,2102627588
09.02.2017,CHILDREN'S SERVICES,ISLINGTON COUNCIL,"13,809.00",FE & SIXTH FORM COLLEGES,STATEMENTED FEES,2102627579
09.02.2017,CHILDREN'S SERVICES,KINGSDALE FOUNDATION SCHOOL,"15,079.08",FE & SIXTH FORM COLLEGES,HIGH NEEDS - TOP UP FUNDING,2102627572
09.02.2017,CHILDREN'S SERVICES,LONDON BOROUGH OF MERTON,"19,182.21",FE & SIXTH FORM COLLEGES,STATEMENTED FEES,2102627585
09.02.2017,CHILDREN'S SERVICES,REDACTED PERSONAL DATA,"1,100.00",HOME 2 SCHOOL TRANSPORT,OTHER PAYMENTS FOR CLIENTS,5902235811
09.02.2017,CHILDREN'S SERVICES,REDACTED PERSONAL DATA,960,HOME 2 SCHOOL TRANSPORT,OTHER PAYMENTS FOR CLIENTS,5902234922
09.02.2017,CHILDREN'S SERVICES,REDACTED PERSONAL DATA,"1,392.00",HOME 2 SCHOOL TRANSPORT,OTHER PAYMENTS FOR CLIENTS,5902234922
09.02.2017,CHILDREN'S SERVICES,ISLINGTON COUNCIL,"3,440.00",OLA - EY AND PRIMARY,STATEMENTED FEES,2102627578
09.02.2017,CHILDREN'S SERVICES,ST SAVIOURS CE PRIMARY SCHOOL,"7,539.54",OLA - EY AND PRIMARY,STATEMENTED FEES,2102627586
09.02.2017,CHILDREN'S SERVICES,ISLINGTON COUNCIL,"19,662.00",OLA - SPECIAL,STATEMENTED FEES,2102627580
09.02.2017,CHILDREN'S SERVICES,LONDON BOROUGH OF MERTON,"19,182.21",OLA - SPECIAL,STATEMENTED FEES,2102627584
09.02.2017,CHILDREN'S SERVICES,PARKWOOD HALL CO-OPERATIVE ACADEMY,"19,703.75",OLA - SPECIAL,STATEMENTED FEES,2102627583
09.02.2017,CHILDREN'S SERVICES,PARKWOOD HALL CO-OPERATIVE ACADEMY,"30,747.54",OLA - SPECIAL,STATEMENTED FEES,2102627582
09.02.2017,CHILDREN'S SERVICES,JOHN GUEST SAFEGUARDING LIMITED,400,PRIMARY ACHIEVEMENT,CONSULTANTS SERVICES,5902235699
09.02.2017,CHILDREN'S SERVICES,JPW CONSULTANCY SERVICES LTD,"1,500.00",PRIMARY ACHIEVEMENT,CONSULTANTS SERVICES,5902235701
09.02.2017,CHILDREN'S SERVICES,CAMBIAN CHILDCARE LTD,"-15,038.70",RESIDENTIAL,RESIDENTIAL CARE,5902235803
09.02.2017,CHILDREN'S SERVICES,CAMBIAN CHILDCARE LTD,"-10,025.80",RESIDENTIAL,RESIDENTIAL CARE,5902235800
09.02.2017,CHILDREN'S SERVICES,CAMBIAN CHILDCARE LTD,"-9,524.51",RESIDENTIAL,RESIDENTIAL CARE,5902235834
09.02.2017,CHILDREN'S SERVICES,CAMBIAN CHILDCARE LTD,"-4,010.32",RESIDENTIAL,RESIDENTIAL CARE,5902235835
09.02.2017,CHILDREN'S SERVICES,CAMBIAN CHILDCARE LTD,"1,285.71",RESIDENTIAL,RESIDENTIAL CARE,5902235787
09.02.2017,CHILDREN'S SERVICES,CAMBIAN CHILDCARE LTD,"4,010.32",RESIDENTIAL,RESIDENTIAL CARE,5902235795
09.02.2017,CHILDREN'S SERVICES,CAMBIAN CHILDCARE LTD,"5,764.95",RESIDENTIAL,RESIDENTIAL CARE,5902235793
09.02.2017,CHILDREN'S SERVICES,CAMBIAN CHILDCARE LTD,"6,857.12",RESIDENTIAL,RESIDENTIAL CARE,5902235782
09.02.2017,CHILDREN'S SERVICES,CAMBIAN CHILDCARE LTD,"9,524.51",RESIDENTIAL,RESIDENTIAL CARE,5902235790
09.02.2017,CHILDREN'S SERVICES,CAMBIAN CHILDCARE LTD,"10,025.80",RESIDENTIAL,RESIDENTIAL CARE,5902235797
09.02.2017,CHILDREN'S SERVICES,CAMBIAN CHILDCARE LTD,"15,038.70",RESIDENTIAL,RESIDENTIAL CARE,5902235799
09.02.2017,CHILDREN'S SERVICES,CAVENDISH SCHOOL,"1,154.40",SEN TRANSPORT,STATEMENTED FEES,2102627566
09.02.2017,CHILDREN'S SERVICES,EAGLE HOUSE SCHOOL (MITCHAM),"16,618.33",SEN TRANSPORT,STATEMENTED FEES,2102627565
09.02.2017,CHILDREN'S SERVICES,PHOENIXPLACE,"4,416.00",SEN TRANSPORT,STATEMENTED FEES,2102627569
09.02.2017,CHILDREN'S SERVICES,PULSE HEALTHCARE LTD,897,SEN TRANSPORT,STATEMENTED FEES,5902235166
09.02.2017,CHILDREN'S SERVICES,THE LINK SECONDARY SCHOOL,"7,217.33",SEN TRANSPORT,STATEMENTED FEES,2102627564
09.02.2017,CHILDREN'S SERVICES,REDACTED PERSONAL DATA,"-3,465.72",SPECIAL GUARDIANSHIP,PAYMENTS TO CARERS,2102627472
09.02.2017,CHILDREN'S SERVICES,REDACTED PERSONAL DATA,"6,548.31",SPECIAL GUARDIANSHIP,PAYMENTS TO CARERS,2102627473
09.02.2017,CHILDREN'S SERVICES,REDACTED PERSONAL DATA,377.2,SPECIALIST CARE,SECTION 17 PAYMENTS TO CLIENTS,2102627545
09.02.2017,CHILDREN'S SERVICES,THAMES WATER UTILITIES LTD,583.56,THOMAS CALTON CENTRE,WATER,5902235848
09.02.2017,CHILDREN'S SERVICES,THAMES WATER UTILITIES LTD,612.82,THOMAS CALTON CENTRE,WATER,5902235779
09.02.2017,CHILDREN'S SERVICES,THAMES WATER UTILITIES LTD,"4,002.18",THOMAS CALTON CENTRE,WATER,5902235854
09.02.2017,COMMUNITIES,CITYGLEN LTD,"1,170.00",NO RECOURSE TO PUBLIC FUNDS,SECTION 17 PAYMENTS TO AGENCIES/CARERS,5902235719
09.02.2017,COMMUNITIES,CITYGLEN LTD,"1,350.00",NO RECOURSE TO PUBLIC FUNDS,SECTION 17 PAYMENTS TO AGENCIES/CARERS,5902235720
09.02.2017,COMMUNITIES,CITYGLEN LTD,"1,395.00",NO RECOURSE TO PUBLIC FUNDS,SECTION 17 PAYMENTS TO AGENCIES/CARERS,5902235690
09.02.2017,COMMUNITIES,HOMELY HOUSING LTD,"3,612.00",NO RECOURSE TO PUBLIC FUNDS,SECTION 17 PAYMENTS TO AGENCIES/CARERS,5902235664
09.02.2017,COMMUNITIES,REDACTED PERSONAL DATA,834,NRPF CHILDREN,SECTION 17 PAYMENTS TO AGENCIES/CARERS,2102627595
09.02.2017,COMMUNITIES,REDACTED PERSONAL DATA,"1,042.50",NRPF CHILDREN,SECTION 17 PAYMENTS TO AGENCIES/CARERS,2102627597
09.02.2017,COMMUNITIES,REDACTED PERSONAL DATA,834,NRPF PHYSICAL DISABILITIES,RENTS,2102627596
09.02.2017,COMMUNITIES,REDACTED PERSONAL DATA,"1,042.50",NRPF PHYSICAL DISABILITIES,RENTS,2102627598
09.02.2017,CUSTOMER EXPERIENCE HGF,ACCESS INDEPENDENT LTD,"1,156.25",BLUE BADGES,PROFESSIONAL FEES,5902235429
09.02.2017,CUSTOMER EXPERIENCE HGF,ASSET GROVE LETTINGS LTD,"1,395.00",NIGHTLY TA (NSC),EXTERNAL AGENCIES AND BODIES,5902235678
09.02.2017,CUSTOMER EXPERIENCE HGF,RS REAL ESTATE LTD,"18,031.00",NIGHTLY TA (NSC),EXTERNAL AGENCIES AND BODIES,5902235680
09.02.2017,CUSTOMER EXPERIENCE HGF,SK HOUSING LTD,"13,364.85",NIGHTLY TA (NSC),EXTERNAL AGENCIES AND BODIES,5902235673
09.02.2017,CUSTOMER EXPERIENCE HGF,SOUTH OF THE RIVER INVESTMENTS LTD,"90,224.80",NIGHTLY TA (NSC),EXTERNAL AGENCIES AND BODIES,5902235671
09.02.2017,CUSTOMER EXPERIENCE HGF,UXBRIDGE ESTATE AGENTS LTD,"2,604.00",NIGHTLY TA (NSC),EXTERNAL AGENCIES AND BODIES,5902235759
09.02.2017,CUSTOMER EXPERIENCE HGF,UXBRIDGE ESTATE AGENTS LTD,"3,414.65",NIGHTLY TA (NSC),EXTERNAL AGENCIES AND BODIES,5902235764
09.02.2017,ENVIRONMENT AND LEISURE,APR SERVICES LTD,750,CAPITAL PS (LEISURE),CONSTRUCTION FEES  - EXTERNAL,5902235170
09.02.2017,ENVIRONMENT AND LEISURE,COMPLETE ECOLOGY LTD,-450,CAPITAL PS (LEISURE),CONSTRUCTION FEES,5902236292
09.02.2017,ENVIRONMENT AND LEISURE,COMPLETE ECOLOGY LTD,450,CAPITAL PS (LEISURE),CONSTRUCTION FEES,5902235702
09.02.2017,ENVIRONMENT AND LEISURE,DAVID J WEBB SURVEYS LTD,"1,100.00",CAPITAL PS (LEISURE),CONSTRUCTION SITE COSTS,5902235845
09.02.2017,ENVIRONMENT AND LEISURE,JERRAM FALKUS CONSTRUCTION,"113,769.63",CAPITAL PS (LEISURE),CONSTRUCTION MAIN CONTRACT -CERTIFICATED,2102627556
09.02.2017,ENVIRONMENT AND LEISURE,R HERRIDGE & PARTNERS,480,CAPITAL PS (LEISURE),CONSTRUCTION FEES - INTERNAL,2102627553
09.02.2017,ENVIRONMENT AND LEISURE,R HERRIDGE & PARTNERS,665,CAPITAL PS (LEISURE),CONSTRUCTION FEES - INTERNAL,2102627553
09.02.2017,ENVIRONMENT AND LEISURE,R HERRIDGE & PARTNERS,"1,040.00",CAPITAL PS (LEISURE),CONSTRUCTION FEES - INTERNAL,2102627553
09.02.2017,ENVIRONMENT AND LEISURE,R HERRIDGE & PARTNERS,"2,000.00",CAPITAL PS (LEISURE),CONST'N MAIN CONTRACT - NON CERTIFICATED,2102627554
09.02.2017,ENVIRONMENT AND LEISURE,THE CONSERVATION VOLUNTEERS,"5,866.71",CAPITAL PS (LEISURE),CAPITAL GRANTS,5902235347
09.02.2017,ENVIRONMENT DIRECTORATE,FIVEWAYS MUNICIPAL VEHICLE HIRE LTD,725,COMMERCIAL VEH CTRL A/C,HIRED VEHICLES,5902235739
09.02.2017,ENVIRONMENT DIRECTORATE,FIVEWAYS MUNICIPAL VEHICLE HIRE LTD,725,COMMERCIAL VEH CTRL A/C,HIRED VEHICLES,5902235740
09.02.2017,ENVIRONMENT DIRECTORATE,FIVEWAYS MUNICIPAL VEHICLE HIRE LTD,725,COMMERCIAL VEH CTRL A/C,HIRED VEHICLES,5902235741
09.02.2017,ENVIRONMENT DIRECTORATE,FIVEWAYS MUNICIPAL VEHICLE HIRE LTD,725,COMMERCIAL VEH CTRL A/C,HIRED VEHICLES,5902235747
09.02.2017,ENVIRONMENT DIRECTORATE,PACE ACCIDENT REPAIRS CENTRE LTD,360,COMMERCIAL VEH CTRL A/C,HIRED VEHICLES,5902235768
09.02.2017,ENVIRONMENT DIRECTORATE,PACE ACCIDENT REPAIRS CENTRE LTD,360,COMMERCIAL VEH CTRL A/C,HIRED VEHICLES,5902235770
09.02.2017,ENVIRONMENT DIRECTORATE,PACE ACCIDENT REPAIRS CENTRE LTD,360,COMMERCIAL VEH CTRL A/C,HIRED VEHICLES,5902235775
09.02.2017,ENVIRONMENT DIRECTORATE,PACE ACCIDENT REPAIRS CENTRE LTD,360,COMMERCIAL VEH CTRL A/C,HIRED VEHICLES,5902235777
09.02.2017,ENVIRONMENT DIRECTORATE,IMPERIAL JANITORIAL SUPPLIES LTD,368,ESTATE CLEANING-GENERAL,"CLOTHING, UNIFORMS & LAUNDRY",5902235693
09.02.2017,ENVIRONMENT DIRECTORATE,DRAIN SCAN,256,GULLY MAINT NON PINC RD,OTHER CONTRACTORS,5902235823
09.02.2017,ENVIRONMENT DIRECTORATE,DRAIN SCAN,260,GULLY MAINT NON PINC RD,OTHER CONTRACTORS,5902235829
09.02.2017,ENVIRONMENT DIRECTORATE,DRAIN SCAN,280,GULLY MAINT NON PINC RD,OTHER CONTRACTORS,5902235814
09.02.2017,ENVIRONMENT DIRECTORATE,DRAIN SCAN,280,GULLY MAINT NON PINC RD,OTHER CONTRACTORS,5902235815
09.02.2017,ENVIRONMENT DIRECTORATE,DRAIN SCAN,280,GULLY MAINT NON PINC RD,OTHER CONTRACTORS,5902235818
09.02.2017,ENVIRONMENT DIRECTORATE,DRAIN SCAN,280,GULLY MAINT NON PINC RD,OTHER CONTRACTORS,5902235831
09.02.2017,ENVIRONMENT DIRECTORATE,DRAIN SCAN,756,GULLY MAINT NON PINC RD,OTHER CONTRACTORS,5902235660
09.02.2017,ENVIRONMENT DIRECTORATE,WYBONE LTD,"2,154.00",STREET CLEANING-GENERAL,MATERIALS,5902235710
09.02.2017,ENVIRONMENT DIRECTORATE,EDF ENERGY PLC,311.77,STREET TRADING A/C,ELECTRICITY,5902235692
09.02.2017,ENVIRONMENT DIRECTORATE,PHILLIP WESTON,"1,500.00",TRADING STANDARDS,MEDICAL / HEALTH & SAFETY SERVICES,5902235812
09.02.2017,ENVIRONMENT DIRECTORATE,RICHARD FRANKFURT PHOTOGRAPHIC LTD,260.54,TRADING STANDARDS,EQUIPMENT PURCHASE & REPAIR,5902235801
09.02.2017,ENVIRONMENT DIRECTORATE,CONWAY AECOM LTD,"3,893.86",TRANSPORT ENGINEERING,OTHER CONTRACTORS,5902235667
09.02.2017,HOUSING,KEEPMOAT REGENERATION (APOLLO) LTD,"126,837.66",CAPITAL PS (HRA),CONSTRUCTION MAIN CONTRACT -CERTIFICATED,2102627557
09.02.2017,HOUSING GENERAL FUND,THE LIFECARE CENTRE LTD,"4,589.00",CAPITAL PS (HOUSING GF),CAPITAL GRANTS,5902235765
09.02.2017,HOUSING GENERAL FUND,INTERSERVE (FACILITIES MANAGEMENT),"34,916.18",CAPITAL PS (REGEN),CONSTRUCTION,2102627589
09.02.2017,HOUSING HRA,JOHN BURKE ASSOCIATES,600,CAPITAL PS (HRA),CONSTRUCTION FEES  - EXTERNAL,5902235763
09.02.2017,HOUSING HRA,JOHN BURKE ASSOCIATES,645,CAPITAL PS (HRA),CONSTRUCTION FEES  - EXTERNAL,5902235773
09.02.2017,HOUSING HRA,JOHN BURKE ASSOCIATES,928,CAPITAL PS (HRA),CONSTRUCTION FEES  - EXTERNAL,5902235700
09.02.2017,HOUSING HRA,JOHN BURKE ASSOCIATES,"1,065.00",CAPITAL PS (HRA),CONSTRUCTION FEES  - EXTERNAL,5902235762
09.02.2017,HOUSING HRA,JOHN BURKE ASSOCIATES,"1,770.00",CAPITAL PS (HRA),CONSTRUCTION FEES  - EXTERNAL,5902235771
09.02.2017,HOUSING HRA,JOHN BURKE ASSOCIATES,"3,936.00",CAPITAL PS (HRA),CONSTRUCTION FEES - INTERNAL,5902235682
09.02.2017,HOUSING HRA,KEEPMOAT REGENERATION (APOLLO) LTD,"40,000.00",CAPITAL PS (HRA),CONSTRUCTION MAIN CONTRACT -CERTIFICATED,2102627560
09.02.2017,HOUSING HRA,KEEPMOAT REGENERATION (APOLLO) LTD,"49,272.30",CAPITAL PS (HRA),CONSTRUCTION MAIN CONTRACT -CERTIFICATED,2102627561
09.02.2017,HOUSING HRA,KEEPMOAT REGENERATION (APOLLO) LTD,"88,615.09",CAPITAL PS (HRA),CONSTRUCTION MAIN CONTRACT -CERTIFICATED,2102627558
09.02.2017,HOUSING HRA,KEEPMOAT REGENERATION (APOLLO) LTD,"154,452.22",CAPITAL PS (HRA),CONSTRUCTION MAIN CONTRACT -CERTIFICATED,2102627559
09.02.2017,HOUSING HRA,MICHAEL CONSTRUCTION LTD,"5,390.00",CAPITAL PS (HRA),CONST'N MAIN CONTRACT - NON CERTIFICATED,2102627599
09.02.2017,HOUSING HRA,MICHAEL CONSTRUCTION LTD,"5,830.00",CAPITAL PS (HRA),CONST'N MAIN CONTRACT - NON CERTIFICATED,2102627600
09.02.2017,HOUSING HRA,MICHAEL CONSTRUCTION LTD,"6,510.00",CAPITAL PS (HRA),CONST'N MAIN CONTRACT - NON CERTIFICATED,2102627601
09.02.2017,HOUSING HRA,MORGAN SINDALL PLC,"604,224.00",CAPITAL PS (HRA),CONSTRUCTION MAIN CONTRACT -CERTIFICATED,2102627551
09.02.2017,HOUSING HRA,UK GUNITE LIMITED,"80,554.00",CAPITAL PS (HRA),CONSTRUCTION MAIN CONTRACT -CERTIFICATED,2102627594
09.02.2017,HOUSING HRA,ADAM KHAN ARCHITECTS LTD,"4,317.59",CAPITAL PS (REGEN),CONSTRUCTION FEES - ARCHITECT,5902235791
09.02.2017,HOUSING HRA,ADAM KHAN ARCHITECTS LTD,"29,515.95",CAPITAL PS (REGEN),CONSTRUCTION FEES - ARCHITECT,5902235789
09.02.2017,HOUSING HRA,JOHN BURKE ASSOCIATES,960,CAPITAL PS (REGEN),CONSTRUCTION FEES - INTERNAL,5902235806
09.02.2017,HOUSING HRA,JOHN BURKE ASSOCIATES,960,CAPITAL PS (REGEN),CONSTRUCTION FEES - INTERNAL,5902235810
09.02.2017,LEISURE DIRECTORATE,EDWARDES (CAMBERWELL) LTD,309.45,BMX TRACK BURGESS PARK,EQUIPMENT PURCHASE & REPAIR,5902235659
09.02.2017,LEISURE DIRECTORATE,MAPLIN ELECTRONICS LTD,466.65,CEMETERIES,OTHER R&M,5902235734
09.02.2017,LEISURE DIRECTORATE,R GRAY & SON,803.9,CREMATORIUM,OTHER R&M,5902235663
09.02.2017,LEISURE DIRECTORATE,EDF ENERGY PLC,264.35,NUNHEAD LIBRARY,ELECTRICITY,5902235675
09.02.2017,LEISURE DIRECTORATE,MARICER - CARAVAN ELECTRICAL PARK SERVICES LTD,291.84,SDM BUDGET,EQUIPMENT PURCHASE & REPAIR,5902235703
09.02.2017,LEISURE DIRECTORATE,SIEMENS FINANCIAL SERVICES LIMITED,"1,733.81",SDM BUDGET,OP LEASE/HIRE CHARGES:PLANT/EQUIP/FURNIT,5902235706
09.02.2017,LEISURE DIRECTORATE,KENT COUNTY COUNCIL - LASER,-614.32,STOCK SERVICES,GAS,5902235695
09.02.2017,LEISURE DIRECTORATE,KENT COUNTY COUNCIL - LASER,818.3,STOCK SERVICES,GAS,5902235694
09.02.2017,LEISURE DIRECTORATE,THE INDEPENDENT ACADEMIC RESEARCH STUDIES INTERNATIONAL INSTITUTE,"5,558.61",YOUTH MANAGEMENT AND ADMIN,EXTERNAL AGENCIES AND BODIES,5902235826
09.02.2017,LEISURE DIRECTORATE,THE METRO CENTRE LTD,"7,787.50",YOUTH MANAGEMENT AND ADMIN,GRANTS,5902235820
09.02.2017,MODERNISATION HGF,NPOWER LTD,409.37,CURLEW HOUSE,ELECTRICITY,5902235677
09.02.2017,MODERNISATION HGF,COMENSURA LTD,"3,273.47",MONTHLY ADMIN FEE,AGENCY STAFF,5902235738
09.02.2017,MODERNISATION HGF,ASSESSMENT & DEVELOPMENT,381.6,OCCUPATIONAL ASSESSMENT,EQUIPMENT PURCHASE & REPAIR,5902235838
09.02.2017,MODERNISATION HGF,JOHN STATTERS ASSOCIATES,"1,187.50",OCCUPATIONAL ASSESSMENT,CONSULTANTS SERVICES,5902235666
09.02.2017,MODERNISATION HGF,JOHN STATTERS ASSOCIATES,"2,375.00",OCCUPATIONAL ASSESSMENT,CONSULTANTS SERVICES,5902235843
09.02.2017,MODERNISATION HGF,CHANGE BOARD HOLDINGS LTD,600,ORGANISATIONAL DEVELOPMENT,TRAINING,5902235168
09.02.2017,MODERNISATION HGF,COMENSURA LTD,"467,773.07",WEEKLY PAYMENTS,AGENCY STAFF,5902235738
09.02.2017,REGENERATION,GERALD EVE LLP,"6,937.75",MISC INDUSTRIAL PROPERTIES,PROFESSIONAL FEES,5902235065
09.02.2017,REGENERATION,ACS CONSULTING (LONDON),420,SOUTHWARK REGEN IN PARTNERSHIP PROGRAMME,PROFESSIONAL FEES,5902235837
09.02.2017,RESIDENT SERVICES,BENJAMIN OSWALD (UK) HOLDINGS LTD,"3,240.00",OPERATIONS/OFFICES ACCOMMODATION,REMOVAL EXPENSES,5902235717
09.02.2017,RESIDENT SERVICES,BENJAMIN OSWALD (UK) HOLDINGS LTD,"5,562.00",OPERATIONS/OFFICES ACCOMMODATION,REMOVAL EXPENSES,5902235718
09.02.2017,RESIDENT SERVICES,TFL TELESALES / OYSTER FULFILMENT,292.5,PARKING CONTROL,OTHER CONTRACTORS,5902235817
09.02.2017,RESIDENT SERVICES,A & H PEST CONTROL LTD,"1,490.00",PECKHAM,PEST CONTROL,5902235796
09.02.2017,RESIDENT SERVICES,SALTASH ENTERPRISES LTD,"19,904.00",SPECIAL NEEDS HOSTELS,PLANNED MAINTENANCE,5902235482
09.02.2017,VARIOUS,LAND REGISTRY,267,LAND REGISTRY SEARCHES,CHARGES,DIRECT DEBIT PAYMENT
10.02.2017,ADULT SOCIAL CARE,ARP CHARITABLE SERVICE,"1,481.68",DRUGS & ALCOHOL REHABITATION PLACES,PLACEMENTS - REHAB,2102627928
10.02.2017,ADULT SOCIAL CARE,KAIROS COMMUNITY TRUST,"2,432.00",DRUGS & ALCOHOL REHABITATION PLACES,DAYCARE,2102627927
10.02.2017,ADULT SOCIAL CARE,REDACTED PERSONAL DATA,399,DRUGS & ALCOHOL REHABITATION PLACES,DAYCARE,2102627639
10.02.2017,ADULT SOCIAL CARE,REDACTED PERSONAL DATA,"1,995.00",DRUGS & ALCOHOL REHABITATION PLACES,DAYCARE,2102627631
10.02.2017,ADULT SOCIAL CARE,KENT COUNTY COUNCIL - LASER,294.27,FRED FRANCIS CENTRE,GAS,5902236181
10.02.2017,ADULT SOCIAL CARE,KENT COUNTY COUNCIL - LASER,357.33,FRED FRANCIS CENTRE,GAS,5902236178
10.02.2017,ADULT SOCIAL CARE,KENT COUNTY COUNCIL - LASER,491.28,FRED FRANCIS CENTRE,GAS,5902236182
10.02.2017,ADULT SOCIAL CARE,KENT COUNTY COUNCIL - LASER,728.13,FRED FRANCIS CENTRE,GAS,5902236205
10.02.2017,ADULT SOCIAL CARE,CARE DIRECT UK LTD,586.81,LD LTS 18-64,HOMECARE - SPOT,2102627761
10.02.2017,ADULT SOCIAL CARE,CARE DIRECT UK LTD,323.76,MEM LTS 65+,HOMECARE - SPOT,2102627758
10.02.2017,ADULT SOCIAL CARE,METRO HOMECARE LTD,505.88,MEM LTS 65+,HOMECARE - SPOT,2102627705
10.02.2017,ADULT SOCIAL CARE,METRO HOMECARE LTD,283.29,MH LTS 65+,HOMECARE - C&V,2102627635
10.02.2017,ADULT SOCIAL CARE,METRO HOMECARE LTD,431.68,MH LTS 65+,HOMECARE - C&V,2102627669
10.02.2017,ADULT SOCIAL CARE,CARE DIRECT UK LTD,451.92,PHY LTS 18-64,HOMECARE - SPOT,2102627768
10.02.2017,ADULT SOCIAL CARE,CARE DIRECT UK LTD,661.01,PHY LTS 18-64,HOMECARE - SPOT,2102627740
10.02.2017,ADULT SOCIAL CARE,LONDON CARE PLC,629.6,PHY LTS 18-64,HOMECARE - C&V,2102627726
10.02.2017,ADULT SOCIAL CARE,METRO HOMECARE LTD,337.25,PHY LTS 18-64,HOMECARE - C&V,2102627715
10.02.2017,ADULT SOCIAL CARE,METRO HOMECARE LTD,364.23,PHY LTS 18-64,HOMECARE - SPOT,2102627707
10.02.2017,ADULT SOCIAL CARE,METRO HOMECARE LTD,445.17,PHY LTS 18-64,HOMECARE - SPOT,2102627688
10.02.2017,ADULT SOCIAL CARE,METRO HOMECARE LTD,573.33,PHY LTS 18-64,HOMECARE - SPOT,2102627645
10.02.2017,ADULT SOCIAL CARE,METRO HOMECARE LTD,"1,065.71",PHY LTS 18-64,HOMECARE - SPOT,2102627662
10.02.2017,ADULT SOCIAL CARE,METRO HOMECARE LTD,"1,133.16",PHY LTS 18-64,HOMECARE - SPOT,2102627665
10.02.2017,ADULT SOCIAL CARE,METRO HOMECARE LTD,"1,322.02",PHY LTS 18-64,HOMECARE - SPOT,2102627706
10.02.2017,ADULT SOCIAL CARE,CARE DIRECT UK LTD,269.8,PHY LTS 65+,HOMECARE - C&V,2102627785
10.02.2017,ADULT SOCIAL CARE,CARE DIRECT UK LTD,283.29,PHY LTS 65+,HOMECARE - SPOT,2102627753
10.02.2017,ADULT SOCIAL CARE,CARE DIRECT UK LTD,391.21,PHY LTS 65+,HOMECARE - SPOT,2102627767
10.02.2017,ADULT SOCIAL CARE,CARE DIRECT UK LTD,424.94,PHY LTS 65+,HOMECARE - SPOT,2102627738
10.02.2017,ADULT SOCIAL CARE,CARE DIRECT UK LTD,465.41,PHY LTS 65+,HOMECARE - SPOT,2102627754
10.02.2017,ADULT SOCIAL CARE,LONDON CARE PLC,419.73,PHY LTS 65+,HOMECARE - C&V,2102627731
10.02.2017,ADULT SOCIAL CARE,METRO HOMECARE LTD,283.29,PHY LTS 65+,HOMECARE - SPOT,2102627682
10.02.2017,ADULT SOCIAL CARE,METRO HOMECARE LTD,300.15,PHY LTS 65+,HOMECARE - SPOT,2102627694
10.02.2017,ADULT SOCIAL CARE,METRO HOMECARE LTD,303.53,PHY LTS 65+,HOMECARE - SPOT,2102627692
10.02.2017,ADULT SOCIAL CARE,METRO HOMECARE LTD,303.53,PHY LTS 65+,HOMECARE - SPOT,2102627724
10.02.2017,ADULT SOCIAL CARE,METRO HOMECARE LTD,310.27,PHY LTS 65+,HOMECARE - SPOT,2102627632
10.02.2017,ADULT SOCIAL CARE,METRO HOMECARE LTD,310.27,PHY LTS 65+,HOMECARE - C&V,2102627702
10.02.2017,ADULT SOCIAL CARE,METRO HOMECARE LTD,330.51,PHY LTS 65+,HOMECARE - SPOT,2102627695
10.02.2017,ADULT SOCIAL CARE,METRO HOMECARE LTD,337.25,PHY LTS 65+,HOMECARE - C&V,2102627698
10.02.2017,ADULT SOCIAL CARE,METRO HOMECARE LTD,337.25,PHY LTS 65+,HOMECARE - C&V,2102627699
10.02.2017,ADULT SOCIAL CARE,METRO HOMECARE LTD,350.74,PHY LTS 65+,HOMECARE - C&V,2102627638
10.02.2017,ADULT SOCIAL CARE,METRO HOMECARE LTD,350.74,PHY LTS 65+,HOMECARE - SPOT,2102627658
10.02.2017,ADULT SOCIAL CARE,METRO HOMECARE LTD,350.74,PHY LTS 65+,HOMECARE - SPOT,2102627678
10.02.2017,ADULT SOCIAL CARE,METRO HOMECARE LTD,357.49,PHY LTS 65+,HOMECARE - C&V,2102627700
10.02.2017,ADULT SOCIAL CARE,METRO HOMECARE LTD,364.23,PHY LTS 65+,HOMECARE - C&V,2102627660
10.02.2017,ADULT SOCIAL CARE,METRO HOMECARE LTD,364.23,PHY LTS 65+,HOMECARE - SPOT,2102627708
10.02.2017,ADULT SOCIAL CARE,METRO HOMECARE LTD,384.47,PHY LTS 65+,HOMECARE - SPOT,2102627716
10.02.2017,ADULT SOCIAL CARE,METRO HOMECARE LTD,424.94,PHY LTS 65+,HOMECARE - C&V,2102627683
10.02.2017,ADULT SOCIAL CARE,METRO HOMECARE LTD,424.94,PHY LTS 65+,HOMECARE - SPOT,2102627696
10.02.2017,ADULT SOCIAL CARE,METRO HOMECARE LTD,424.94,PHY LTS 65+,HOMECARE - SPOT,2102627709
10.02.2017,ADULT SOCIAL CARE,METRO HOMECARE LTD,428.33,PHY LTS 65+,HOMECARE - SPOT,2102627723
10.02.2017,ADULT SOCIAL CARE,METRO HOMECARE LTD,431.68,PHY LTS 65+,HOMECARE - C&V,2102627667
10.02.2017,ADULT SOCIAL CARE,METRO HOMECARE LTD,438.43,PHY LTS 65+,HOMECARE - SPOT,2102627718
10.02.2017,ADULT SOCIAL CARE,METRO HOMECARE LTD,472.15,PHY LTS 65+,HOMECARE - SPOT,2102627673
10.02.2017,ADULT SOCIAL CARE,METRO HOMECARE LTD,472.15,PHY LTS 65+,HOMECARE - SPOT,2102627714
10.02.2017,ADULT SOCIAL CARE,METRO HOMECARE LTD,478.9,PHY LTS 65+,HOMECARE - SPOT,2102627704
10.02.2017,ADULT SOCIAL CARE,METRO HOMECARE LTD,485.64,PHY LTS 65+,HOMECARE - SPOT,2102627674
10.02.2017,ADULT SOCIAL CARE,METRO HOMECARE LTD,485.64,PHY LTS 65+,HOMECARE - SPOT,2102627719
10.02.2017,ADULT SOCIAL CARE,METRO HOMECARE LTD,492.39,PHY LTS 65+,HOMECARE - SPOT,2102627643
10.02.2017,ADULT SOCIAL CARE,METRO HOMECARE LTD,492.39,PHY LTS 65+,HOMECARE - SPOT,2102627671
10.02.2017,ADULT SOCIAL CARE,METRO HOMECARE LTD,519.36,PHY LTS 65+,HOMECARE - SPOT,2102627675
10.02.2017,ADULT SOCIAL CARE,METRO HOMECARE LTD,539.6,PHY LTS 65+,HOMECARE - SPOT,2102627649
10.02.2017,ADULT SOCIAL CARE,METRO HOMECARE LTD,539.6,PHY LTS 65+,HOMECARE - SPOT,2102627680
10.02.2017,ADULT SOCIAL CARE,METRO HOMECARE LTD,546.35,PHY LTS 65+,HOMECARE - SPOT,2102627679
10.02.2017,ADULT SOCIAL CARE,METRO HOMECARE LTD,607.05,PHY LTS 65+,HOMECARE - SPOT,2102627711
10.02.2017,ADULT SOCIAL CARE,METRO HOMECARE LTD,849.87,PHY LTS 65+,HOMECARE - C&V,2102627677
10.02.2017,ADULT SOCIAL CARE,METRO HOMECARE LTD,903.83,PHY LTS 65+,HOMECARE - SPOT,2102627666
10.02.2017,ADULT SOCIAL CARE,METRO HOMECARE LTD,"1,025.24",PHY LTS 65+,HOMECARE - C&V,2102627712
10.02.2017,ADULT SOCIAL CARE,METRO HOMECARE LTD,"1,038.73",PHY LTS 65+,HOMECARE - C&V,2102627725
10.02.2017,ADULT SOCIAL CARE,METRO HOMECARE LTD,"1,133.16",PHY LTS 65+,HOMECARE - SPOT,2102627685
10.02.2017,ADULT SOCIAL CARE,METRO HOMECARE LTD,"1,153.40",PHY LTS 65+,HOMECARE - SPOT,2102627668
10.02.2017,ADULT SOCIAL CARE,METRO HOMECARE LTD,"1,207.36",PHY LTS 65+,HOMECARE - C&V,2102627686
10.02.2017,ADULT SOCIAL CARE,METRO HOMECARE LTD,"1,295.04",PHY LTS 65+,HOMECARE - C&V,2102627647
10.02.2017,ADULT SOCIAL CARE,METRO HOMECARE LTD,"1,537.86",PHY LTS 65+,HOMECARE - SPOT,2102627697
10.02.2017,ADULT SOCIAL CARE,METRO HOMECARE LTD,"1,591.82",PHY LTS 65+,HOMECARE - SPOT,2102627690
10.02.2017,ADULT SOCIAL CARE,METRO HOMECARE LTD,"1,672.76",PHY LTS 65+,HOMECARE - SPOT,2102627701
10.02.2017,ADULT SOCIAL CARE,NESTOR PRIMECARE SERVICES LTD,-842,PHY LTS 65+,HOMECARE - C&V,2102626361
10.02.2017,ADULT SOCIAL CARE,METRO HOMECARE LTD,370.98,PHY STS 65+,HOMECARE - IC,2102627664
10.02.2017,ADULT SOCIAL CARE,F A ALBIN AND SONS,"1,197.00",PUBLIC FUNERALS S.46,MISCELLANEOUS EXPENSES,5902236193
10.02.2017,ADULT SOCIAL CARE,F A ALBIN AND SONS,"2,794.00",PUBLIC FUNERALS S.46,MISCELLANEOUS EXPENSES,5902236189
10.02.2017,ADULT SOCIAL CARE,4SONS CARE ASSESSMENT LTD,415.05,SAFEGUARDING TEAM,OTHER CONTRACTORS,5902235920
10.02.2017,ADULT SOCIAL CARE,LUCAS CONSULT LTD,695.9,SAFEGUARDING TEAM,EXTERNAL AGENCIES AND BODIES,5902235778
10.02.2017,ADULT SOCIAL CARE,ROMEDICAL LTD,360,SAFEGUARDING TEAM,OTHER CONTRACTORS,5902236230
10.02.2017,ADULT SOCIAL CARE,ROMEDICAL LTD,364.03,SAFEGUARDING TEAM,OTHER CONTRACTORS,5902235961
10.02.2017,ADULT SOCIAL CARE,ROMEDICAL LTD,367.21,SAFEGUARDING TEAM,OTHER CONTRACTORS,5902236230
10.02.2017,ADULT SOCIAL CARE,ROMEDICAL LTD,367.9,SAFEGUARDING TEAM,OTHER CONTRACTORS,5902235879
10.02.2017,ADULT SOCIAL CARE,ROMEDICAL LTD,367.9,SAFEGUARDING TEAM,OTHER CONTRACTORS,5902235960
10.02.2017,ADULT SOCIAL CARE,ROMEDICAL LTD,372.36,SAFEGUARDING TEAM,OTHER CONTRACTORS,5902235876
10.02.2017,ADULT SOCIAL CARE,ROMEDICAL LTD,548.13,SAFEGUARDING TEAM,OTHER CONTRACTORS,5902235883
10.02.2017,ADULT SOCIAL CARE,CARE DIRECT UK LTD,263.05,SOCIAL ISOLATION,HOMECARE - SPOT,2102627776
10.02.2017,ADULT SOCIAL CARE,METRO HOMECARE LTD,290.04,SOCIAL ISOLATION,HOMECARE - SPOT,2102627684
10.02.2017,ADULT SOCIAL CARE,METRO HOMECARE LTD,330.51,SUB LTS 18-64,HOMECARE - SPOT,2102627703
10.02.2017,ADULT SOCIAL CARE,METRO HOMECARE LTD,397.96,SUB LTS 18-64,HOMECARE - SPOT,2102627710
10.02.2017,ADULT SOCIAL CARE,METRO HOMECARE LTD,418.19,SUB STS 18-64,HOMECARE - IC,2102627689
10.02.2017,ASSET MANAGEMENT,GAS ADVISORY SERVICES LIMITED,"16,508.17",ENG CONTRACTS (SOUTH),HEATING -DISTRICT SERVICE (CONTRACT SUM),5902236263
10.02.2017,ASSET MANAGEMENT,POTTER RAPER AND PARTNERS,"4,048.76",FRA WORKS,ESTATE LIGHTING R&M,5902236192
10.02.2017,ASSET MANAGEMENT,CALFORD SEADEN LLP,"7,251.02",HIP MAJOR WORKS,CONSULTANTS SERVICES,5902235867
10.02.2017,ASSET MANAGEMENT,POTTER RAPER AND PARTNERS,312,REPAIRS OPERATIONS,PROFESSIONAL FEES,5902236273
10.02.2017,CENTRAL FUNCTIONS,TEAL CONSULTING LTD,"8,087.20",OPERATIONAL TEAM,AGENCY STAFF,5902236275
10.02.2017,CENTRAL FUNCTIONS,TEAL CONSULTING LTD,"9,383.62",OPERATIONAL TEAM,AGENCY STAFF,5902235617
10.02.2017,CENTRAL FUNCTIONS,NEWINGTON T&RA,650,TENANTS FUND,COMPUTER CONSUMABLES,5902235890
10.02.2017,CHIEF EXECUTIVE,BCA LANDSCAPE,"1,714.06",CAPITAL PS (REGEN),CONSTRUCTION FEES - ARCHITECT,5902235638
10.02.2017,CHIEF EXECUTIVE,STREET TREE CARE LTD,"10,059.00",CAPITAL PS (REGEN),CONSTRUCTION FEES  - EXTERNAL,5902236258
10.02.2017,CHIEF EXECUTIVE,THAMES REACH EMPOLYMENT ACADEMY,"1,488.00",CAPITAL PS (REGEN),CONSTR'N SUB CONTRACT - NON CERTIFICATED,5902236252
10.02.2017,CHIEF EXECUTIVE'S OFFICE,INSPIRE AT ST PETER'S LTD,"32,730.81",CHIEF EXEC'S OFFICE,GRANTS,5902235452
10.02.2017,CHIEF EXECUTIVE'S OFFICE,WALWORTH GARDEN FARM,"2,911.66",YOUTH FUND EMPLOYMENT,GRANTS,2102627606
10.02.2017,CHILDREN AND ADULT,FEILDEN CLEGG BRADLEY STUDIOS LLP,"7,800.00",CAPITAL PS (EDUCATION),CONSTRUCTION FEES - ARCHITECT,5902235093
10.02.2017,CHILDREN AND ADULT,MORGAN SINDALL PLC,"508,873.64",CAPITAL PS (EDUCATION),CONST'N MAIN CONTRACT - NON CERTIFICATED,2102627605
10.02.2017,CHILDREN AND ADULT,WESTCO TRADING LTD,"1,800.00",CAPITAL PS (EDUCATION),CONSTRUCTION SITE COSTS,5902235488
10.02.2017,CHILDREN'S SERVICES,PARENTS AND CHILDREN TOGETHER,"29,700.00",ADOPTION PLACEMENTS & INTER AGENCY,EXTERNAL AGENCIES AND BODIES,5902236176
10.02.2017,CHILDREN'S SERVICES,PETE CRONIN PHOTOGRAPHY & VIDEO,775,ADOPTION PLACEMENTS & INTER AGENCY,EXTERNAL AGENCIES AND BODIES,5902236227
10.02.2017,CHILDREN'S SERVICES,JEANETTE SCOTT,959.5,ADOPTION REFORM GRANT (PART B),PROFESSIONAL FEES,5902236231
10.02.2017,CHILDREN'S SERVICES,SIMON HOWES,969.5,ADOPTION REFORM GRANT (PART B),EXTERNAL AGENCIES AND BODIES,5902236232
10.02.2017,CHILDREN'S SERVICES,NATIONAL FOSTERING AGENCY,"2,998.01",AGENCY FOSTERING,EXTERNAL AGENCIES AND BODIES,5902235853
10.02.2017,CHILDREN'S SERVICES,ALBION PRIMARY SCHOOL,"5,499.00",ALBION JMI,HIGH NEEDS - TOP UP FUNDING,5902235966
10.02.2017,CHILDREN'S SERVICES,ALBION PRIMARY SCHOOL,"9,354.00",ALBION JMI,EARLY YEARS - 3 AND 4 YEAR OLDS,5902235965
10.02.2017,CHILDREN'S SERVICES,ALBION PRIMARY SCHOOL,"140,108.00",ALBION JMI,SCHOOLS CAPITATION,5902235964
10.02.2017,CHILDREN'S SERVICES,ALFRED SALTER PRIMARY SCHOOL,"12,868.00",ALFRED SALTER PRIMARY,EARLY YEARS - 3 AND 4 YEAR OLDS,5902235968
10.02.2017,CHILDREN'S SERVICES,ALFRED SALTER PRIMARY SCHOOL,"18,359.00",ALFRED SALTER PRIMARY,HIGH NEEDS - TOP UP FUNDING,5902235969
10.02.2017,CHILDREN'S SERVICES,ALFRED SALTER PRIMARY SCHOOL,"185,068.00",ALFRED SALTER PRIMARY,SCHOOLS CAPITATION,5902235967
10.02.2017,CHILDREN'S SERVICES,BELLENDEN PRIMARY SCHOOL,"1,260.00",BELLENDEN JMI,HIGH NEEDS - TOP UP FUNDING,5902235972
10.02.2017,CHILDREN'S SERVICES,BELLENDEN PRIMARY SCHOOL,"10,455.00",BELLENDEN JMI,EARLY YEARS - 3 AND 4 YEAR OLDS,5902235971
10.02.2017,CHILDREN'S SERVICES,BELLENDEN PRIMARY SCHOOL,"105,475.00",BELLENDEN JMI,SCHOOLS CAPITATION,5902235970
10.02.2017,CHILDREN'S SERVICES,BEORMUND PRIMARY SCHOOL,"68,695.00",BEORMUND SCHOOL,HIGH NEEDS - BASE FUNDING,5902235973
10.02.2017,CHILDREN'S SERVICES,BESSEMER GRANGE PRIMARY SCHOOL,"7,819.00",BESSEMER GRNGE PRIMARY,HIGH NEEDS - TOP UP FUNDING,5902235977
10.02.2017,CHILDREN'S SERVICES,BESSEMER GRANGE PRIMARY SCHOOL,"8,835.00",BESSEMER GRNGE PRIMARY,GRANTS,5902235976
10.02.2017,CHILDREN'S SERVICES,BESSEMER GRANGE PRIMARY SCHOOL,"14,123.00",BESSEMER GRNGE PRIMARY,EARLY YEARS - 3 AND 4 YEAR OLDS,5902235975
10.02.2017,CHILDREN'S SERVICES,BESSEMER GRANGE PRIMARY SCHOOL,"232,576.00",BESSEMER GRNGE PRIMARY,SCHOOLS CAPITATION,5902235974
10.02.2017,CHILDREN'S SERVICES,BOUCHER C OF E PRIMARY SCHOOL,"3,179.00",BOUTCHER GRANGE JMI,HIGH NEEDS - TOP UP FUNDING,5902235980
10.02.2017,CHILDREN'S SERVICES,BOUCHER C OF E PRIMARY SCHOOL,"97,827.00",BOUTCHER GRANGE JMI,SCHOOLS CAPITATION,5902235979
10.02.2017,CHILDREN'S SERVICES,BRUNSWICK PARK PRIMARY SCHOOL,"14,269.00",BRUNSWICK PARK JM,EARLY YEARS - 3 AND 4 YEAR OLDS,5902235982
10.02.2017,CHILDREN'S SERVICES,BRUNSWICK PARK PRIMARY SCHOOL,"35,907.00",BRUNSWICK PARK JM,HIGH NEEDS - TOP UP FUNDING,5902235983
10.02.2017,CHILDREN'S SERVICES,BRUNSWICK PARK PRIMARY SCHOOL,"222,661.00",BRUNSWICK PARK JM,SCHOOLS CAPITATION,5902235981
10.02.2017,CHILDREN'S SERVICES,CAMELOT PRIMARY SCHOOL,"6,358.00",CAMELOT JMI,HIGH NEEDS - TOP UP FUNDING,5902235986
10.02.2017,CHILDREN'S SERVICES,CAMELOT PRIMARY SCHOOL,"11,792.00",CAMELOT JMI,EARLY YEARS - 3 AND 4 YEAR OLDS,5902235985
10.02.2017,CHILDREN'S SERVICES,CAMELOT PRIMARY SCHOOL,"221,976.00",CAMELOT JMI,SCHOOLS CAPITATION,5902235984
10.02.2017,CHILDREN'S SERVICES,REDACTED PERSONAL DATA,450,CARE PRACTICE GROUP SET C,OTHER PAYMENTS FOR CLIENTS,2102627878
10.02.2017,CHILDREN'S SERVICES,ZENITH CARS LTD,375,CARE PRACTICE GROUP SET C,HIRED VEHICLES,5902236217
10.02.2017,CHILDREN'S SERVICES,CATHEDRAL SCHOOL OF ST SAVIOUR & MARY,"7,854.00",CATHDRL SCH OF ST,EARLY YEARS - 3 AND 4 YEAR OLDS,5902236154
10.02.2017,CHILDREN'S SERVICES,CATHEDRAL SCHOOL OF ST SAVIOUR & MARY,"90,479.00",CATHDRL SCH OF ST,SCHOOLS CAPITATION,5902236153
10.02.2017,CHILDREN'S SERVICES,CHARLES DICKENS PRIMARY SCHOOL,"2,320.00",CHARLES DICKENS JMI,HIGH NEEDS - TOP UP FUNDING,5902235989
10.02.2017,CHILDREN'S SERVICES,CHARLES DICKENS PRIMARY SCHOOL,"9,922.00",CHARLES DICKENS JMI,EARLY YEARS - 3 AND 4 YEAR OLDS,5902235988
10.02.2017,CHILDREN'S SERVICES,CHARLES DICKENS PRIMARY SCHOOL,"146,386.00",CHARLES DICKENS JMI,SCHOOLS CAPITATION,5902235987
10.02.2017,CHILDREN'S SERVICES,CHARLOTTE  SHARMAN PRIMARY SCHOOL,"2,119.00",CHARLOTTE SHARMAN JMI,HIGH NEEDS - TOP UP FUNDING,5902235993
10.02.2017,CHILDREN'S SERVICES,CHARLOTTE  SHARMAN PRIMARY SCHOOL,"2,850.00",CHARLOTTE SHARMAN JMI,GRANTS,5902235992
10.02.2017,CHILDREN'S SERVICES,CHARLOTTE  SHARMAN PRIMARY SCHOOL,"7,774.00",CHARLOTTE SHARMAN JMI,EARLY YEARS - 3 AND 4 YEAR OLDS,5902235991
10.02.2017,CHILDREN'S SERVICES,CHARLOTTE  SHARMAN PRIMARY SCHOOL,"144,556.00",CHARLOTTE SHARMAN JMI,SCHOOLS CAPITATION,5902235990
10.02.2017,CHILDREN'S SERVICES,CHERRY GARDEN SCHOOL,"117,658.00",CHERRY GARDEN,HIGH NEEDS - BASE FUNDING,5902235999
10.02.2017,CHILDREN'S SERVICES,COBOURG PRIMARY SCHOOL,570,COBURG JMI,GRANTS,5902236003
10.02.2017,CHILDREN'S SERVICES,COBOURG PRIMARY SCHOOL,"2,119.00",COBURG JMI,HIGH NEEDS - TOP UP FUNDING,5902236004
10.02.2017,CHILDREN'S SERVICES,COBOURG PRIMARY SCHOOL,"8,473.00",COBURG JMI,EARLY YEARS - 3 AND 4 YEAR OLDS,5902236002
10.02.2017,CHILDREN'S SERVICES,COBOURG PRIMARY SCHOOL,"187,041.00",COBURG JMI,SCHOOLS CAPITATION,5902236001
10.02.2017,CHILDREN'S SERVICES,COMBER GROVE PRIMARY SCHOOL,"5,298.00",COMBER GROVE PRIMARY,HIGH NEEDS - TOP UP FUNDING,5902236007
10.02.2017,CHILDREN'S SERVICES,COMBER GROVE PRIMARY SCHOOL,"10,551.00",COMBER GROVE PRIMARY,EARLY YEARS - 3 AND 4 YEAR OLDS,5902236006
10.02.2017,CHILDREN'S SERVICES,COMBER GROVE PRIMARY SCHOOL,"140,355.00",COMBER GROVE PRIMARY,SCHOOLS CAPITATION,5902236005
10.02.2017,CHILDREN'S SERVICES,CRAMPTON PRIMARY SCHOOL,"7,819.00",CRAMPTON JMI,HIGH NEEDS - TOP UP FUNDING,5902236009
10.02.2017,CHILDREN'S SERVICES,CRAMPTON PRIMARY SCHOOL,"102,129.00",CRAMPTON JMI,SCHOOLS CAPITATION,5902236008
10.02.2017,CHILDREN'S SERVICES,CRAWFORD PRIMARY SCHOOL,"5,499.00",CRAWFORD JMI,HIGH NEEDS - TOP UP FUNDING,5902236012
10.02.2017,CHILDREN'S SERVICES,CRAWFORD PRIMARY SCHOOL,"12,435.00",CRAWFORD JMI,EARLY YEARS - 3 AND 4 YEAR OLDS,5902236011
10.02.2017,CHILDREN'S SERVICES,CRAWFORD PRIMARY SCHOOL,"202,165.00",CRAWFORD JMI,SCHOOLS CAPITATION,5902236010
10.02.2017,CHILDREN'S SERVICES,DULWICH WOOD CHILDRENS CENTRE,"36,963.00",D.WOOD - CENTRAL,EARLY YEARS - 3 AND 4 YEAR OLDS,5902236166
10.02.2017,CHILDREN'S SERVICES,RED R DESIGN,450,DISABILITY & HIV,MARKETING & PUBLICITY SERVICES,5902236208
10.02.2017,CHILDREN'S SERVICES,REDACTED PERSONAL DATA,400,DISABILITY & HIV,COMPUTER CONSUMABLES,2102627918
10.02.2017,CHILDREN'S SERVICES,REDACTED PERSONAL DATA,300,DISABILITY & HIV,ADDITIONAL PAYMENTS TO AGENCIES/CARERS,2102627917
10.02.2017,CHILDREN'S SERVICES,REDACTED PERSONAL DATA,690.92,DISABILITY & HIV,PAYMENTS TO CARERS,2102627897
10.02.2017,CHILDREN'S SERVICES,REDACTED PERSONAL DATA,798.12,DISABILITY & HIV,PAYMENTS TO CARERS,2102627886
10.02.2017,CHILDREN'S SERVICES,REDACTED PERSONAL DATA,990,DISABILITY & HIV,ADDITIONAL PAYMENTS TO AGENCIES/CARERS,2102627895
10.02.2017,CHILDREN'S SERVICES,REDACTED PERSONAL DATA,400,DISABILITY & HIV,COMPUTER CONSUMABLES,2102627907
10.02.2017,CHILDREN'S SERVICES,REDACTED PERSONAL DATA,475.25,DISABILITY & HIV,PAYMENTS TO CARERS,2102627884
10.02.2017,CHILDREN'S SERVICES,REDACTED PERSONAL DATA,475.25,DISABILITY & HIV,PAYMENTS TO CARERS,2102627893
10.02.2017,CHILDREN'S SERVICES,REDACTED PERSONAL DATA,324,DISABILITY & HIV,PAYMENTS TO CARERS,2102627904
10.02.2017,CHILDREN'S SERVICES,REDACTED PERSONAL DATA,400,DISABILITY & HIV,COMPUTER CONSUMABLES,2102627915
10.02.2017,CHILDREN'S SERVICES,REDACTED PERSONAL DATA,300,DISABILITY & HIV,ADDITIONAL PAYMENTS TO AGENCIES/CARERS,2102627882
10.02.2017,CHILDREN'S SERVICES,REDACTED PERSONAL DATA,445.47,DISABILITY & HIV,PAYMENTS TO CARERS,2102627885
10.02.2017,CHILDREN'S SERVICES,REDACTED PERSONAL DATA,388,DISABILITY & HIV,PAYMENTS TO CARERS,2102627887
10.02.2017,CHILDREN'S SERVICES,REDACTED PERSONAL DATA,352,DISABILITY & HIV,PAYMENTS TO CARERS,2102627908
10.02.2017,CHILDREN'S SERVICES,REDACTED PERSONAL DATA,408,DISABILITY & HIV,PAYMENTS TO CARERS,2102627902
10.02.2017,CHILDREN'S SERVICES,REDACTED PERSONAL DATA,400,DISABILITY & HIV,COMPUTER CONSUMABLES,2102627911
10.02.2017,CHILDREN'S SERVICES,REDACTED PERSONAL DATA,580.62,DISABILITY & HIV,PAYMENTS TO CARERS,2102627925
10.02.2017,CHILDREN'S SERVICES,REDACTED PERSONAL DATA,420.4,DISABILITY & HIV,PAYMENTS TO CARERS,2102627909
10.02.2017,CHILDREN'S SERVICES,REDACTED PERSONAL DATA,280,DISABILITY & HIV,PAYMENTS TO CARERS,2102627889
10.02.2017,CHILDREN'S SERVICES,REDACTED PERSONAL DATA,280,DISABILITY & HIV,PAYMENTS TO CARERS,2102627912
10.02.2017,CHILDREN'S SERVICES,REDACTED PERSONAL DATA,280,DISABILITY & HIV,PAYMENTS TO CARERS,2102627913
10.02.2017,CHILDREN'S SERVICES,REDACTED PERSONAL DATA,709.78,DISABILITY & HIV,PAYMENTS TO CARERS,2102627883
10.02.2017,CHILDREN'S SERVICES,REDACTED PERSONAL DATA,309.96,DISABILITY & HIV,PAYMENTS TO CARERS,2102627903
10.02.2017,CHILDREN'S SERVICES,REDACTED PERSONAL DATA,440,DISABILITY & HIV,PAYMENTS TO CARERS,2102627924
10.02.2017,CHILDREN'S SERVICES,DOG KENNEL HILL PRIMARY SCHOOL,"5,499.00",DOG KENNEL HILL JMI,HIGH NEEDS - TOP UP FUNDING,5902236015
10.02.2017,CHILDREN'S SERVICES,DOG KENNEL HILL PRIMARY SCHOOL,"11,542.00",DOG KENNEL HILL JMI,EARLY YEARS - 3 AND 4 YEAR OLDS,5902236014
10.02.2017,CHILDREN'S SERVICES,DOG KENNEL HILL PRIMARY SCHOOL,"181,722.00",DOG KENNEL HILL JMI,SCHOOLS CAPITATION,5902236013
10.02.2017,CHILDREN'S SERVICES,DULWICH VILLAGE CE INFANTS SCHOOL,"7,618.00",DULWICH VILLAGE I,HIGH NEEDS - TOP UP FUNDING,5902236017
10.02.2017,CHILDREN'S SERVICES,DULWICH VILLAGE CE INFANTS SCHOOL,"110,403.00",DULWICH VILLAGE I,SCHOOLS CAPITATION,5902236016
10.02.2017,CHILDREN'S SERVICES,HEBER PRIMARY SCHOOL,"6,000.00",EARLY YEARS IMPROVEMENT,EARLY YEARS - 3 AND 4 YEAR OLDS,5902236190
10.02.2017,CHILDREN'S SERVICES,EDEN SPRINGS (UK) LTD,367.5,EDUC&PARTICIPATION & TRAINING TEAM,CATERING MATERIALS & SUPPLIES,5902236179
10.02.2017,CHILDREN'S SERVICES,ENGLISH MARTYRS RC PRIMARY SCHOOL,"2,119.00",ENGLISH MARTYRS JMI,HIGH NEEDS - TOP UP FUNDING,5902236027
10.02.2017,CHILDREN'S SERVICES,ENGLISH MARTYRS RC PRIMARY SCHOOL,"10,101.00",ENGLISH MARTYRS JMI,EARLY YEARS - 3 AND 4 YEAR OLDS,5902236026
10.02.2017,CHILDREN'S SERVICES,ENGLISH MARTYRS RC PRIMARY SCHOOL,"174,073.00",ENGLISH MARTYRS JMI,SCHOOLS CAPITATION,5902236025
